Workbook

Sheet Main
B10: 2019-04-05
B12: Sheet No. | C12: Template Name | D12: Summary
B13: 1 | C13: Future Intra | D13: For Intraday trading in F&O segment
B14: 2 | C14: Cash Intra | D14: For Intraday trading in cash market segment
B15: 3 | C15: Mid-cap Intra | D15: For Intraday trading in Mid-cap stocks
B16: 4 | C16: Bulk Deals | D16: Reveals Bulk Deals carried on NSE & BSE
B17: 5 | C17: Call Tracker

Sheet Future Intra
M5: Back to Main Page
A6: FOR INTRA DAY TRADING | L6: =Main!B10 -> 2019-04-05
A9: Sr.no | B9: Sector | C9: Scrip | D9: CLOSE RATE | E9: Pivot Point | F9: Supports | I9: Resistances
B10: Sector | D10: Point | E10: Point | F10: S1 | G10: S2 | H10: S3 | I10: R1 | J10: R2 | K10: R3 | L10: HIGH | M10: LOW | N10: OI | O10: % Change in OI
A11: 1 | B11: Index | C11: BANKNIFTY | D11: 30155.00 | E11: 30225.97 | F11: 29957.93 | G11: 29760.87 | H11: 29492.83 | I11: 30423.03 | J11: 30691.07 | K11: 30888.13 | L11: 30494 | M11: 30028.9 | N11: 2036040 | O11: -1.47%
A12: 2 | B12: Index | C12: NIFTY | D12: 11679.55 | E12: 11691.67 | F12: 11629.33 | G12: 11579.12 | H12: 11516.78 | I12: 11741.88 | J12: 11804.22 | K12: 11854.43 | L12: 11754 | M12: 11641.45 | N12: 16773075 | O12: -0.18%
A13: 3 | B13: Index | C13: NIFTYIT | D13: 15870.00 | E13: 15899.00 | F13: 15787.00 | G13: 15704.00 | H13: 15592.00 | I13: 15982.00 | J13: 16094.00 | K13: 16177.00 | L13: 16011 | M13: 15816 | N13: 16750 | O13: 3.40%
A14: 4 | B14: Cement | C14: ACC | D14: 1637.95 | E14: 1641.80 | F14: 1621.15 | G14: 1604.35 | H14: 1583.70 | I14: 1658.60 | J14: 1679.25 | K14: 1696.05 | L14: 1662.45 | M14: 1625 | N14: 2603200 | O14: 2.86%
A15: 5 | B15: Others | C15: ADANIENT | D15: 148.65 | E15: 148.60 | F15: 146.20 | G15: 143.75 | H15: 141.35 | I15: 151.05 | J15: 153.45 | K15: 155.90 | L15: 151 | M15: 146.15 | N15: 40200000 | O15: -2.28%
A16: 6 | B16: Others | C16: ADANIPORTS | D16: 382.30 | E16: 381.05 | F16: 378.30 | G16: 374.30 | H16: 371.55 | I16: 385.05 | J16: 387.80 | K16: 391.80 | L16: 383.8 | M16: 377.05 | N16: 20912500 | O16: -1.68%
A17: 7 | B17: Power | C17: ADANIPOWER | D17: 48.45 | E17: 48.77 | F17: 47.63 | G17: 46.82 | H17: 45.68 | I17: 49.58 | J17: 50.72 | K17: 51.53 | L17: 49.9 | M17: 47.95 | N17: 154840000 | O17: -0.03%
A18: 8 | B18: Pharma | C18: AJANTPHARM | D18: 1022.35 | E18: 1017.38 | F18: 1008.97 | G18: 995.58 | H18: 987.17 | I18: 1030.77 | J18: 1039.18 | K18: 1052.57 | L18: 1025.8 | M18: 1004 | N18: 740000 | O18: 1.02%
A19: 9 | B19: Banking | C19: ALBK | D19: 52.90 | E19: 53.22 | F19: 51.98 | G19: 51.07 | H19: 49.83 | I19: 54.13 | J19: 55.37 | K19: 56.28 | L19: 54.45 | M19: 52.3 | N19: 26156000 | O19: 0.30%
A20: 10 | B20: Automobile | C20: AMARAJABAT | D20: 681.35 | E20: 681.57 | F20: 662.83 | G20: 644.32 | H20: 625.58 | I20: 700.08 | J20: 718.82 | K20: 737.33 | L20: 700.3 | M20: 663.05 | N20: 2228800 | O20: 17.75%
A21: 11 | B21: Cement | C21: AMBUJACEM | D21: 224.50 | E21: 226.55 | F21: 221.95 | G21: 219.40 | H21: 214.80 | I21: 229.10 | J21: 233.70 | K21: 236.25 | L21: 231.15 | M21: 224 | N21: 18492500 | O21: 31.34%
A22: 12 | B22: Others | C22: APOLLOHOSP | D22: 1262.65 | E22: 1263.67 | F22: 1252.98 | G22: 1243.32 | H22: 1232.63 | I22: 1273.33 | J22: 1284.02 | K22: 1293.68 | L22: 1274.35 | M22: 1254 | N22: 1259500 | O22: -1.14%
A23: 13 | B23: Automobile | C23: APOLLOTYRE | D23: 223.80 | E23: 222.10 | F23: 219.90 | G23: 216.00 | H23: 213.80 | I23: 226.00 | J23: 228.20 | K23: 232.10 | L23: 224.3 | M23: 218.2 | N23: 10809000 | O23: -3.84%
A24: 14 | B24: Textile | C24: ARVIND | D24: 92.20 | E24: 91.92 | F24: 89.98 | G24: 87.77 | H24: 85.83 | I24: 94.13 | J24: 96.07 | K24: 98.28 | L24: 93.85 | M24: 89.7 | N24: 4802000 | O24: -3.38%
A25: 15 | B25: Automobile | C25: ASHOKLEY | D25: 88.30 | E25: 88.47 | F25: 87.43 | G25: 86.57 | H25: 85.53 | I25: 89.33 | J25: 90.37 | K25: 91.23 | L25: 89.5 | M25: 87.6 | N25: 72940000 | O25: 2.78%
A26: 16 | B26: FMCG | C26: ASIANPAINT | D26: 1527.70 | E26: 1525.15 | F26: 1516.55 | G26: 1505.40 | H26: 1496.80 | I26: 1536.30 | J26: 1544.90 | K26: 1556.05 | L26: 1533.75 | M26: 1514 | N26: 5587200 | O26: 1.23%
A27: 17 | B27: Pharma | C27: AUROPHARMA | D27: 790.60 | E27: 787.70 | F27: 781.65 | G27: 772.70 | H27: 766.65 | I27: 796.65 | J27: 802.70 | K27: 811.65 | L27: 793.75 | M27: 778.75 | N27: 15547000 | O27: -0.68%
A28: 18 | B28: Banking | C28: AXISBANK | D28: 766.70 | E28: 769.00 | F28: 761.60 | G28: 756.50 | H28: 749.10 | I28: 774.10 | J28: 781.50 | K28: 786.60 | L28: 776.4 | M28: 763.9 | N28: 32796000 | O28: -0.55%
A29: 19 | B29: Automobile | C29: BAJAJ-AUTO | D29: 2877.60 | E29: 2877.52 | F29: 2856.68 | G29: 2835.77 | H29: 2814.93 | I29: 2898.43 | J29: 2919.27 | K29: 2940.18 | L29: 2898.35 | M29: 2856.6 | N29: 3764000 | O29: -0.56%
A30: 20 | B30: Others | C30: BAJAJFINSV | D30: 7358.65 | E30: 7374.53 | F30: 7296.12 | G30: 7233.58 | H30: 7155.17 | I30: 7437.07 | J30: 7515.48 | K30: 7578.02 | L30: 7452.95 | M30: 7312 | N30: 682125 | O30: 0.50%
A31: 21 | B31: Finance | C31: BAJFINANCE | D31: 3060.35 | E31: 3060.10 | F31: 3035.25 | G31: 3010.15 | H31: 2985.30 | I31: 3085.20 | J31: 3110.05 | K31: 3135.15 | L31: 3084.95 | M31: 3035 | N31: 5212000 | O31: 0.57%
A32: 22 | B32: Others | C32: BALKRISIND | D32: 985.60 | E32: 988.85 | F32: 979.20 | G32: 972.80 | H32: 963.15 | I32: 995.25 | J32: 1004.90 | K32: 1011.30 | L32: 998.5 | M32: 982.45 | N32: 2034400 | O32: 0.43%
A33: 23 | B33: Banking | C33: BANKBARODA | D33: 132.30 | E33: 132.75 | F33: 130.65 | G33: 129.00 | H33: 126.90 | I33: 134.40 | J33: 136.50 | K33: 138.15 | L33: 134.85 | M33: 131.1 | N33: 49256000 | O33: -2.08%
A34: 24 | B34: Banking | C34: BANKINDIA | D34: 101.65 | E34: 102.72 | F34: 99.93 | G34: 98.22 | H34: 95.43 | I34: 104.43 | J34: 107.22 | K34: 108.93 | L34: 105.5 | M34: 101 | N34: 23400000 | O34: -1.54%
A35: 25 | B35: FMCG | C35: BATAINDIA | D35: 1398.00 | E35: 1393.25 | F35: 1385.10 | G35: 1372.20 | H35: 1364.05 | I35: 1406.15 | J35: 1414.30 | K35: 1427.20 | L35: 1401.4 | M35: 1380.35 | N35: 2000900 | O35: 0.86%
A36: 26 | B36: Capital_Goods | C36: BEL | D36: 97.95 | E36: 98.07 | F36: 96.43 | G36: 94.92 | H36: 93.28 | I36: 99.58 | J36: 101.22 | K36: 102.73 | L36: 99.7 | M36: 96.55 | N36: 33378000 | O36: -2.90%
A37: 27 | B37: Infrastructure | C37: BEML | D37: 989.35 | E37: 997.32 | F37: 976.28 | G37: 963.22 | H37: 942.18 | I37: 1010.38 | J37: 1031.42 | K37: 1044.48 | L37: 1018.35 | M37: 984.25 | N37: 1503600 | O37: -8.67%
A38: 28 | B38: Others | C38: BERGEPAINT | D38: 333.60 | E38: 332.27 | F38: 330.23 | G38: 326.87 | H38: 324.83 | I38: 335.63 | J38: 337.67 | K38: 341.03 | L38: 334.3 | M38: 328.9 | N38: 3242800 | O38: 1.03%
A39: 29 | B39: Finance | C39: BHARATFIN | D39: 1108.25 | E39: 1113.62 | F39: 1095.63 | G39: 1083.02 | H39: 1065.03 | I39: 1126.23 | J39: 1144.22 | K39: 1156.83 | L39: 1131.6 | M39: 1101 | N39: 3978500 | O39: -1.55%
A40: 30 | B40: Automobile | C40: BHARATFORG | D40: 510.90 | E40: 508.70 | F40: 504.40 | G40: 497.90 | H40: 493.60 | I40: 515.20 | J40: 519.50 | K40: 526.00 | L40: 513 | M40: 502.2 | N40: 9501600 | O40: -1.99%
A41: 31 | B41: Telecom | C41: BHARTIARTL | D41: 357.90 | E41: 357.68 | F41: 354.77 | G41: 351.63 | H41: 348.72 | I41: 360.82 | J41: 363.73 | K41: 366.87 | L41: 360.6 | M41: 354.55 | N41: 35310700 | O41: 2.28%
A42: 32 | B42: Capital_Goods | C42: BHEL | D42: 73.80 | E42: 73.93 | F42: 72.42 | G42: 71.03 | H42: 69.52 | I42: 75.32 | J42: 76.83 | K42: 78.22 | L42: 75.45 | M42: 72.55 | N42: 68272500 | O42: 2.49%
A43: 33 | B43: Pharma | C43: BIOCON | D43: 618.05 | E43: 615.20 | F43: 611.40 | G43: 604.75 | H43: 600.95 | I43: 621.85 | J43: 625.65 | K43: 632.30 | L43: 619 | M43: 608.55 | N43: 5957100 | O43: -1.22%
A44: 34 | B44: Automobile | C44: BOSCHLTD | D44: 17975.95 | E44: 18026.80 | F44: 17870.30 | G44: 17764.65 | H44: 17608.15 | I44: 18132.45 | J44: 18288.95 | K44: 18394.60 | L44: 18183.3 | M44: 17921.15 | N44: 153270 | O44: -1.01%
A45: 35 | B45: Oil_Gas | C45: BPCL | D45: 357.30 | E45: 359.73 | F45: 354.12 | G45: 350.93 | H45: 345.32 | I45: 362.92 | J45: 368.53 | K45: 371.72 | L45: 365.35 | M45: 356.55 | N45: 10841400 | O45: 27.58%
A46: 36 | B46: FMCG | C46: BRITANNIA | D46: 3054.45 | E46: 3036.10 | F46: 3010.40 | G46: 2966.35 | H46: 2940.65 | I46: 3080.15 | J46: 3105.85 | K46: 3149.90 | L46: 3061.8 | M46: 2992.05 | N46: 2049000 | O46: -1.75%
A47: 37 | B47: Pharma | C47: CADILAHC | D47: 346.15 | E47: 344.50 | F47: 341.20 | G47: 336.25 | H47: 332.95 | I47: 349.45 | J47: 352.75 | K47: 357.70 | L47: 347.8 | M47: 339.55 | N47: 11272000 | O47: -0.65%
A48: 38 | B48: Banking | C48: CANBK | D48: 284.30 | E48: 286.62 | F48: 280.93 | G48: 277.57 | H48: 271.88 | I48: 289.98 | J48: 295.67 | K48: 299.03 | L48: 292.3 | M48: 283.25 | N48: 10004000 | O48: 2.94%
A49: 39 | B49: Others | C49: CANFINHOME | D49: 349.45 | E49: 351.05 | F49: 342.85 | G49: 336.25 | H49: 328.05 | I49: 357.65 | J49: 365.85 | K49: 372.45 | L49: 359.25 | M49: 344.45 | N49: 3666600 | O49: -4.41%
A50: 40 | B50: Oil_Gas | C50: CASTROLIND | D50: 167.05 | E50: 167.92 | F50: 164.83 | G50: 162.62 | H50: 159.53 | I50: 170.13 | J50: 173.22 | K50: 175.43 | L50: 171 | M50: 165.7 | N50: 7197800 | O50: -1.95%
A51: 41 | B51: Automobile | C51: CEATLTD | D51: 1113.70 | E51: 1110.03 | F51: 1101.57 | G51: 1089.43 | H51: 1080.97 | I51: 1122.17 | J51: 1130.63 | K51: 1142.77 | L51: 1118.5 | M51: 1097.9 | N51: 1071200 | O51: -4.36%
A52: 42 | B52: Textile | C52: CENTURYTEX | D52: 918.20 | E52: 916.33 | F52: 910.37 | G52: 902.53 | H52: 896.57 | I52: 924.17 | J52: 930.13 | K52: 937.97 | L52: 922.3 | M52: 908.5 | N52: 3976800 | O52: -1.02%
A53: 43 | B53: Power | C53: CESC | D53: 730.85 | E53: 722.47 | F53: 711.93 | G53: 693.02 | H53: 682.48 | I53: 741.38 | J53: 751.92 | K53: 770.83 | L53: 733 | M53: 703.55 | N53: 1470700 | O53: -0.07%
A54: 44 | B54: Power | C54: CGPOWER | D54: 39.95 | E54: 40.23 | F54: 39.22 | G54: 38.48 | H54: 37.47 | I54: 40.97 | J54: 41.98 | K54: 42.72 | L54: 41.25 | M54: 39.5 | N54: 25740000 | O54: -1.11%
A55: 45 | B55: Others | C55: CHENNPETRO | D55: 262.55 | E55: 260.80 | F55: 258.55 | G55: 254.55 | H55: 252.30 | I55: 264.80 | J55: 267.05 | K55: 271.05 | L55: 263.05 | M55: 256.8 | N55: 1215000 | O55: -4.26%
A56: 46 | B56: Others | C56: CHOLAFIN | D56: 1464.80 | E56: 1469.52 | F56: 1443.78 | G56: 1422.77 | H56: 1397.03 | I56: 1490.53 | J56: 1516.27 | K56: 1537.28 | L56: 1495.25 | M56: 1448.5 | N56: 551000 | O56: -0.90%
A57: 47 | B57: Pharma | C57: CIPLA | D57: 525.30 | E57: 524.35 | F57: 522.45 | G57: 519.60 | H57: 517.70 | I57: 527.20 | J57: 529.10 | K57: 531.95 | L57: 526.25 | M57: 521.5 | N57: 7685000 | O57: -2.97%
A58: 48 | B58: Others | C58: COALINDIA | D58: 235.95 | E58: 235.68 | F58: 234.42 | G58: 232.88 | H58: 231.62 | I58: 237.22 | J58: 238.48 | K58: 240.02 | L58: 236.95 | M58: 234.15 | N58: 32102400 | O58: -1.68%
A59: 49 | B59: FMCG | C59: COLPAL | D59: 1253.60 | E59: 1251.47 | F59: 1245.73 | G59: 1237.87 | H59: 1232.13 | I59: 1259.33 | J59: 1265.07 | K59: 1272.93 | L59: 1257.2 | M59: 1243.6 | N59: 1636600 | O59: -2.58%
A60: 50 | B60: Others | C60: CONCOR | D60: 534.05 | E60: 534.35 | F60: 528.70 | G60: 523.35 | H60: 517.70 | I60: 539.70 | J60: 545.35 | K60: 550.70 | L60: 540 | M60: 529 | N60: 1241022 | O60: 8.47%
A61: 51 | B61: Capital_Goods | C61: CUMMINSIND | D61: 721.55 | E61: 730.18 | F61: 710.37 | G61: 699.18 | H61: 679.37 | I61: 741.37 | J61: 761.18 | K61: 772.37 | L61: 750 | M61: 719 | N61: 1676500 | O61: 4.13%
A62: 52 | B62: FMCG | C62: DABUR | D62: 407.40 | E62: 407.15 | F62: 405.40 | G62: 403.40 | H62: 401.65 | I62: 409.15 | J62: 410.90 | K62: 412.90 | L62: 408.9 | M62: 405.15 | N62: 13406250 | O62: -2.33%
A63: 53 | B63: Banking | C63: DCBBANK | D63: 199.90 | E63: 200.32 | F63: 198.38 | G63: 196.87 | H63: 194.93 | I63: 201.83 | J63: 203.77 | K63: 205.28 | L63: 202.25 | M63: 198.8 | N63: 6255000 | O63: 1.16%
A64: 54 | B64: Finance | C64: DHFL | D64: 149.95 | E64: 149.67 | F64: 147.58 | G64: 145.22 | H64: 143.13 | I64: 152.03 | J64: 154.12 | K64: 156.48 | L64: 151.75 | M64: 147.3 | N64: 20304000 | O64: 1.49%
A65: 55 | B65: Media | C65: DISHTV | D65: 39.40 | E65: 40.00 | F65: 38.25 | G65: 37.10 | H65: 35.35 | I65: 41.15 | J65: 42.90 | K65: 44.05 | L65: 41.75 | M65: 38.85 | N65: 62288000 | O65: 1.92%
A66: 56 | B66: Pharma | C66: DIVISLAB | D66: 1713.70 | E66: 1706.37 | F66: 1688.23 | G66: 1662.77 | H66: 1644.63 | I66: 1731.83 | J66: 1749.97 | K66: 1775.43 | L66: 1724.5 | M66: 1680.9 | N66: 2846800 | O66: -0.25%
A67: 57 | B67: Realty | C67: DLF | D67: 202.50 | E67: 202.70 | F67: 199.10 | G67: 195.70 | H67: 192.10 | I67: 206.10 | J67: 209.70 | K67: 213.10 | L67: 206.3 | M67: 199.3 | N67: 36212800 | O67: -1.44%
A68: 58 | B68: Pharma | C68: DRREDDY | D68: 2795.50 | E68: 2795.77 | F68: 2777.13 | G68: 2758.77 | H68: 2740.13 | I68: 2814.13 | J68: 2832.77 | K68: 2851.13 | L68: 2814.4 | M68: 2777.4 | N68: 3594000 | O68: 1.75%
A69: 59 | B69: Automobile | C69: EICHERMOT | D69: 20633.65 | E69: 20470.22 | F69: 20195.43 | G69: 19757.22 | H69: 19482.43 | I69: 20908.43 | J69: 21183.22 | K69: 21621.43 | L69: 20745 | M69: 20032 | N69: 398725 | O69: -2.44%
A70: 60 | B70: Infrastructure | C70: ENGINERSIN | D70: 119.25 | E70: 118.63 | F70: 117.62 | G70: 115.98 | H70: 114.97 | I70: 120.27 | J70: 121.28 | K70: 122.92 | L70: 119.65 | M70: 117 | N70: 10315600 | O70: -3.16%
A71: 61 | B71: Finance | C71: EQUITAS | D71: 136.30 | E71: 137.23 | F71: 134.87 | G71: 133.43 | H71: 131.07 | I71: 138.67 | J71: 141.03 | K71: 142.47 | L71: 139.6 | M71: 135.8 | N71: 11372000 | O71: 2.23%
A72: 62 | B72: Automobile | C72: ESCORTS | D72: 775.80 | E72: 773.85 | F72: 769.20 | G72: 762.60 | H72: 757.95 | I72: 780.45 | J72: 785.10 | K72: 791.70 | L72: 778.5 | M72: 767.25 | N72: 2968900 | O72: -2.42%
A73: 63 | B73: Automobile | C73: EXIDEIND | D73: 216.65 | E73: 215.18 | F73: 212.97 | G73: 209.28 | H73: 207.07 | I73: 218.87 | J73: 221.08 | K73: 224.77 | L73: 217.4 | M73: 211.5 | N73: 10376000 | O73: -2.26%
A74: 64 | B74: Banking | C74: FEDERALBNK | D74: 95.75 | E74: 96.17 | F74: 94.68 | G74: 93.62 | H74: 92.13 | I74: 97.23 | J74: 98.72 | K74: 99.78 | L74: 97.65 | M74: 95.1 | N74: 62608000 | O74: 1.50%
A75: 65 | B75: Oil_Gas | C75: GAIL | D75: 349.10 | E75: 350.95 | F75: 344.75 | G75: 340.40 | H75: 334.20 | I75: 355.30 | J75: 361.50 | K75: 365.85 | L75: 357.15 | M75: 346.6 | N75: 9598533 | O75: 5.23%
A76: 66 | B76: Pharma | C76: GLENMARK | D76: 657.80 | E76: 654.10 | F76: 648.55 | G76: 639.30 | H76: 633.75 | I76: 663.35 | J76: 668.90 | K76: 678.15 | L76: 659.65 | M76: 644.85 | N76: 3852000 | O76: -2.85%
A77: 67 | B77: Infrastructure | C77: GMRINFRA | D77: 19.25 | E77: 19.17 | F77: 18.78 | G77: 18.32 | H77: 17.93 | I77: 19.63 | J77: 20.02 | K77: 20.48 | L77: 19.55 | M77: 18.7 | N77: 191340000 | O77: 0.35%
A78: 68 | B78: Others | C78: GODFRYPHLP | D78: 1135.65 | E78: 1133.03 | F78: 1124.62 | G78: 1113.58 | H78: 1105.17 | I78: 1144.07 | J78: 1152.48 | K78: 1163.52 | L78: 1141.45 | M78: 1122 | N78: 502600 | O78: -0.55%
A79: 69 | B79: FMCG | C79: GODREJCP | D79: 679.35 | E79: 674.68 | F79: 663.52 | G79: 647.68 | H79: 636.52 | I79: 690.52 | J79: 701.68 | K79: 717.52 | L79: 685.85 | M79: 658.85 | N79: 5816400 | O79: 0.49%
A80: 70 | B80: FMCG | C80: GODREJIND | D80: 533.65 | E80: 533.70 | F80: 529.10 | G80: 524.55 | H80: 519.95 | I80: 538.25 | J80: 542.85 | K80: 547.40 | L80: 538.3 | M80: 529.15 | N80: 1212000 | O80: 1.25%
A81: 71 | B81: Cement | C81: GRASIM | D81: 841.50 | E81: 840.12 | F81: 832.83 | G81: 824.17 | H81: 816.88 | I81: 848.78 | J81: 856.07 | K81: 864.73 | L81: 847.4 | M81: 831.45 | N81: 11565000 | O81: 0.64%
A82: 72 | B82: Others | C82: GSFC | D82: 103.45 | E82: 103.13 | F82: 101.82 | G82: 100.18 | H82: 98.87 | I82: 104.77 | J82: 106.08 | K82: 107.72 | L82: 104.45 | M82: 101.5 | N82: 10767700 | O82: 1.15%
A83: 73 | B83: Others | C83: HAVELLS | D83: 772.75 | E83: 770.03 | F83: 765.62 | G83: 758.48 | H83: 754.07 | I83: 777.17 | J83: 781.58 | K83: 788.72 | L83: 774.45 | M83: 762.9 | N83: 4178000 | O83: -1.07%
A84: 74 | B84: Technology | C84: HCLTECH | D84: 1106.65 | E84: 1105.68 | F84: 1091.02 | G84: 1075.38 | H84: 1060.72 | I84: 1121.32 | J84: 1135.98 | K84: 1151.62 | L84: 1120.35 | M84: 1090.05 | N84: 8338400 | O84: 2.28%
A85: 75 | B85: Finance | C85: HDFC | D85: 2052.30 | E85: 2045.63 | F85: 2021.27 | G85: 1990.23 | H85: 1965.87 | I85: 2076.67 | J85: 2101.03 | K85: 2132.07 | L85: 2070 | M85: 2014.6 | N85: 26527500 | O85: -1.39%
A86: 76 | B86: Banking | C86: HDFCBANK | D86: 2304.45 | E86: 2312.15 | F86: 2292.35 | G86: 2280.25 | H86: 2260.45 | I86: 2324.25 | J86: 2344.05 | K86: 2356.15 | L86: 2331.95 | M86: 2300.05 | N86: 9759000 | O86: -0.95%
A87: 77 | B87: Automobile | C87: HEROMOTOCO | D87: 2660.40 | E87: 2647.83 | F87: 2625.67 | G87: 2590.93 | H87: 2568.77 | I87: 2682.57 | J87: 2704.73 | K87: 2739.47 | L87: 2670 | M87: 2613.1 | N87: 3006600 | O87: 1.50%
A88: 78 | B88: Technology | C88: HEXAWARE | D88: 365.00 | E88: 362.63 | F88: 358.92 | G88: 352.83 | H88: 349.12 | I88: 368.72 | J88: 372.43 | K88: 378.52 | L88: 366.35 | M88: 356.55 | N88: 2437500 | O88: -3.90%
A89: 79 | B89: Metals | C89: HINDALCO | D89: 212.20 | E89: 213.43 | F89: 210.27 | G89: 208.33 | H89: 205.17 | I89: 215.37 | J89: 218.53 | K89: 220.47 | L89: 216.6 | M89: 211.5 | N89: 32494000 | O89: 0.19%
A90: 80 | B90: Oil_Gas | C90: HINDPETRO | D90: 260.90 | E90: 261.85 | F90: 257.70 | G90: 254.50 | H90: 250.35 | I90: 265.05 | J90: 269.20 | K90: 272.40 | L90: 266 | M90: 258.65 | N90: 15397200 | O90: 3.74%
A91: 81 | B91: FMCG | C91: HINDUNILVR | D91: 1679.50 | E91: 1682.85 | F91: 1667.70 | G91: 1655.90 | H91: 1640.75 | I91: 1694.65 | J91: 1709.80 | K91: 1721.60 | L91: 1698 | M91: 1671.05 | N91: 12448200 | O91: 0.39%
A92: 82 | B92: Metals | C92: HINDZINC | D92: 285.50 | E92: 285.50 | F92: 283.50 | G92: 281.50 | H92: 279.50 | I92: 287.50 | J92: 289.50 | K92: 291.50 | L92: 287.5 | M92: 283.5 | N92: 3724800 | O92: -0.94%
A93: 83 | B93: Finance | C93: IBULHSGFIN | D93: 906.45 | E93: 898.63 | F93: 885.12 | G93: 863.78 | H93: 850.27 | I93: 919.97 | J93: 933.48 | K93: 954.82 | L93: 912.15 | M93: 877.3 | N93: 16292000 | O93: -4.69%
A94: 84 | B94: Banking | C94: ICICIBANK | D94: 391.95 | E94: 393.52 | F94: 388.68 | G94: 385.42 | H94: 380.58 | I94: 396.78 | J94: 401.62 | K94: 404.88 | L94: 398.35 | M94: 390.25 | N94: 88302500 | O94: 1.68%
A95: 85 | B95: Others | C95: ICICIPRULI | D95: 363.45 | E95: 364.08 | F95: 360.42 | G95: 357.38 | H95: 353.72 | I95: 367.12 | J95: 370.78 | K95: 373.82 | L95: 367.75 | M95: 361.05 | N95: 8007000 | O95: -0.61%
A96: 86 | B96: Banking | C96: IDBI | D96: 44.50 | E96: 44.45 | F96: 43.90 | G96: 43.30 | H96: 42.75 | I96: 45.05 | J96: 45.60 | K96: 46.20 | L96: 45 | M96: 43.85 | N96: 27960000 | O96: -2.17%
A97: 87 | B97: Telecom | C97: IDEA | D97: 15.20 | E97: 15.30 | F97: 14.70 | G97: 14.20 | H97: 13.60 | I97: 15.80 | J97: 16.40 | K97: 16.90 | L97: 15.9 | M97: 14.8 | N97: 395035444 | O97: 5.27%
A98: 88 | B98: Finance | C98: IDFC | D98: 46.70 | E98: 46.62 | F98: 45.43 | G98: 44.17 | H98: 42.98 | I98: 47.88 | J98: 49.07 | K98: 50.33 | L98: 47.8 | M98: 45.35 | N98: 90156000 | O98: -0.52%
A99: 89 | B99: Banking | C99: IDFCFIRSTB | D99: 54.35 | E99: 54.42 | F99: 53.78 | G99: 53.22 | H99: 52.58 | I99: 54.98 | J99: 55.62 | K99: 56.18 | L99: 55.05 | M99: 53.85 | N99: 121800000 | O99: -0.41%
A100: 90 | B100: Finance | C100: IFCI | D100: 13.15 | E100: 13.20 | F100: 12.95 | G100: 12.75 | H100: 12.50 | I100: 13.40 | J100: 13.65 | K100: 13.85 | L100: 13.45 | M100: 13 | N100: 58135000 | O100: 0.18%
A101: 91 | B101: Oil_Gas | C101: IGL | D101: 305.50 | E101: 306.55 | F101: 302.15 | G101: 298.80 | H101: 294.40 | I101: 309.90 | J101: 314.30 | K101: 317.65 | L101: 310.95 | M101: 303.2 | N101: 3561250 | O101: 2.53%
A102: 92 | B102: Cement | C102: INDIACEM | D102: 108.85 | E102: 109.00 | F102: 107.10 | G102: 105.35 | H102: 103.45 | I102: 110.75 | J102: 112.65 | K102: 114.40 | L102: 110.9 | M102: 107.25 | N102: 19701000 | O102: -4.41%
A103: 93 | B103: Banking | C103: INDIANB | D103: 274.70 | E103: 276.20 | F103: 269.60 | G103: 264.50 | H103: 257.90 | I103: 281.30 | J103: 287.90 | K103: 293.00 | L103: 282.8 | M103: 271.1 | N103: 3640000 | O103: -7.99%
A104: 94 | B104: Others | C104: INDIGO | D104: 1439.40 | E104: 1424.87 | F104: 1398.83 | G104: 1358.27 | H104: 1332.23 | I104: 1465.43 | J104: 1491.47 | K104: 1532.03 | L104: 1450.9 | M104: 1384.3 | N104: 2393400 | O104: -6.82%
A105: 95 | B105: Banking | C105: INDUSINDBK | D105: 1751.10 | E105: 1759.62 | F105: 1729.23 | G105: 1707.37 | H105: 1676.98 | I105: 1781.48 | J105: 1811.87 | K105: 1833.73 | L105: 1790 | M105: 1737.75 | N105: 6912900 | O105: 3.49%
A106: 96 | B106: Technology | C106: INFIBEAM | D106: 41.35 | E106: 41.45 | F106: 40.80 | G106: 40.25 | H106: 39.60 | I106: 42.00 | J106: 42.65 | K106: 43.20 | L106: 42.1 | M106: 40.9 | N106: 13812000 | O106: -1.23%
A107: 97 | B107: Telecom | C107: INFRATEL | D107: 318.35 | E107: 319.02 | F107: 316.08 | G107: 313.82 | H107: 310.88 | I107: 321.28 | J107: 324.22 | K107: 326.48 | L107: 321.95 | M107: 316.75 | N107: 6174000 | O107: 1.28%
A108: 98 | B108: Technology | C108: INFY | D108: 754.20 | E108: 754.87 | F108: 750.33 | G108: 746.47 | H108: 741.93 | I108: 758.73 | J108: 763.27 | K108: 767.13 | L108: 759.4 | M108: 751 | N108: 47473200 | O108: 0.33%
A109: 99 | B109: Oil_Gas | C109: IOC | D109: 155.95 | E109: 155.70 | F109: 154.60 | G109: 153.25 | H109: 152.15 | I109: 157.05 | J109: 158.15 | K109: 159.50 | L109: 156.8 | M109: 154.35 | N109: 58978500 | O109: -0.90%
A110: 100 | B110: Infrastructure | C110: IRB | D110: 145.35 | E110: 146.98 | F110: 142.27 | G110: 139.18 | H110: 134.47 | I110: 150.07 | J110: 154.78 | K110: 157.87 | L110: 151.7 | M110: 143.9 | N110: 9120000 | O110: 0.60%
A111: 101 | B111: FMCG | C111: ITC | D111: 296.70 | E111: 297.10 | F111: 295.45 | G111: 294.20 | H111: 292.55 | I111: 298.35 | J111: 300.00 | K111: 301.25 | L111: 298.75 | M111: 295.85 | N111: 59445600 | O111: 0.45%
A112: 102 | B112: Others | C112: JETAIRWAYS | D112: 243.45 | E112: 240.28 | F112: 233.02 | G112: 222.58 | H112: 215.32 | I112: 250.72 | J112: 257.98 | K112: 268.42 | L112: 247.55 | M112: 229.85 | N112: 7119200 | O112: -5.93%
A113: 103 | B113: Metals | C113: JINDALSTEL | D113: 183.15 | E113: 183.18 | F113: 180.07 | G113: 176.98 | H113: 173.87 | I113: 186.27 | J113: 189.38 | K113: 192.47 | L113: 186.3 | M113: 180.1 | N113: 23017500 | O113: -0.28%
A114: 104 | B114: Others | C114: JISLJALEQS | D114: 57.85 | E114: 57.78 | F114: 57.17 | G114: 56.48 | H114: 55.87 | I114: 58.47 | J114: 59.08 | K114: 59.77 | L114: 58.4 | M114: 57.1 | N114: 35820000 | O114: -1.99%
A115: 105 | B115: Metals | C115: JSWSTEEL | D115: 289.70 | E115: 289.58 | F115: 286.87 | G115: 284.03 | H115: 281.32 | I115: 292.42 | J115: 295.13 | K115: 297.97 | L115: 292.3 | M115: 286.75 | N115: 39588000 | O115: 0.40%
A116: 106 | B116: Others | C116: JUBLFOOD | D116: 1445.10 | E116: 1442.87 | F116: 1431.73 | G116: 1418.37 | H116: 1407.23 | I116: 1456.23 | J116: 1467.37 | K116: 1480.73 | L116: 1454 | M116: 1429.5 | N116: 3139000 | O116: 2.41%
A117: 107 | B117: Others | C117: JUSTDIAL | D117: 578.45 | E117: 583.08 | F117: 571.87 | G117: 565.28 | H117: 554.07 | I117: 589.67 | J117: 600.88 | K117: 607.47 | L117: 594.3 | M117: 576.5 | N117: 3288600 | O117: 5.48%
A118: 108 | B118: Others | C118: KAJARIACER | D118: 615.25 | E118: 613.38 | F118: 606.87 | G118: 598.48 | H118: 591.97 | I118: 621.77 | J118: 628.28 | K118: 636.67 | L118: 619.9 | M118: 605 | N118: 2050100 | O118: -1.87%
A119: 109 | B119: Banking | C119: KOTAKBANK | D119: 1334.30 | E119: 1339.28 | F119: 1323.77 | G119: 1313.23 | H119: 1297.72 | I119: 1349.82 | J119: 1365.33 | K119: 1375.87 | L119: 1354.8 | M119: 1328.75 | N119: 11092000 | O119: -0.17%
A120: 110 | B120: Technology | C120: BSOFT | D120: 100.85 | E120: 100.73 | F120: 99.77 | G120: 98.68 | H120: 97.72 | I120: 101.82 | J120: 102.78 | K120: 103.87 | L120: 101.7 | M120: 99.65 | N120: 3676500 | O120: -0.67%
A121: 111 | B121: Others | C121: KSCL | D121: 464.35 | E121: 466.23 | F121: 459.12 | G121: 453.88 | H121: 446.77 | I121: 471.47 | J121: 478.58 | K121: 483.82 | L121: 473.35 | M121: 461 | N121: 1072500 | O121: 5.15%
A122: 112 | B122: Banking | C122: KTKBANK | D122: 132.25 | E122: 132.55 | F122: 131.20 | G122: 130.15 | H122: 128.80 | I122: 133.60 | J122: 134.95 | K122: 136.00 | L122: 133.9 | M122: 131.5 | N122: 16464100 | O122: 0.32%
A123: 113 | B123: Finance | C123: L&TFH | D123: 150.70 | E123: 151.52 | F123: 149.33 | G123: 147.97 | H123: 145.78 | I123: 152.88 | J123: 155.07 | K123: 156.43 | L123: 153.7 | M123: 150.15 | N123: 17896500 | O123: 6.28%
A124: 114 | B124: Finance | C124: LICHSGFIN | D124: 537.75 | E124: 539.50 | F124: 531.75 | G124: 525.75 | H124: 518.00 | I124: 545.50 | J124: 553.25 | K124: 559.25 | L124: 547.25 | M124: 533.5 | N124: 7426100 | O124: -3.00%
A125: 115 | B125: Capital_Goods | C125: LT | D125: 1379.65 | E125: 1386.78 | F125: 1369.37 | G125: 1359.08 | H125: 1341.67 | I125: 1397.07 | J125: 1414.48 | K125: 1424.77 | L125: 1404.2 | M125: 1376.5 | N125: 7682250 | O125: 0.94%
A126: 116 | B126: Pharma | C126: LUPIN | D126: 795.05 | E126: 789.27 | F126: 780.18 | G126: 765.32 | H126: 756.23 | I126: 804.13 | J126: 813.22 | K126: 828.08 | L126: 798.35 | M126: 774.4 | N126: 10105200 | O126: -0.67%
A127: 117 | B127: Automobile | C127: M&M | D127: 658.25 | E127: 660.72 | F127: 653.53 | G127: 648.82 | H127: 641.63 | I127: 665.43 | J127: 672.62 | K127: 677.33 | L127: 667.9 | M127: 656 | N127: 20196000 | O127: 0.84%
A128: 118 | B128: Finance | C128: M&MFIN | D128: 416.00 | E128: 418.35 | F128: 411.85 | G128: 407.70 | H128: 401.20 | I128: 422.50 | J128: 429.00 | K128: 433.15 | L128: 424.85 | M128: 414.2 | N128: 11952500 | O128: 0.71%
A129: 119 | B129: Others | C129: MANAPPURAM | D129: 119.65 | E129: 119.92 | F129: 118.43 | G129: 117.22 | H129: 115.73 | I129: 121.13 | J129: 122.62 | K129: 123.83 | L129: 121.4 | M129: 118.7 | N129: 10440000 | O129: 1.05%
A130: 120 | B130: FMCG | C130: MARICO | D130: 356.65 | E130: 357.30 | F130: 354.60 | G130: 352.55 | H130: 349.85 | I130: 359.35 | J130: 362.05 | K130: 364.10 | L130: 360 | M130: 355.25 | N130: 5813600 | O130: -1.15%
A131: 121 | B131: Automobile | C131: MARUTI | D131: 7153.40 | E131: 7154.92 | F131: 7101.68 | G131: 7049.97 | H131: 6996.73 | I131: 7206.63 | J131: 7259.87 | K131: 7311.58 | L131: 7208.15 | M131: 7103.2 | N131: 2913900 | O131: -2.13%
A132: 122 | B132: FMCG | C132: MCDOWELL-N | D132: 543.05 | E132: 540.68 | F132: 533.67 | G132: 524.28 | H132: 517.27 | I132: 550.07 | J132: 557.08 | K132: 566.47 | L132: 547.7 | M132: 531.3 | N132: 12573750 | O132: 0.51%
A133: 123 | B133: Others | C133: MCX | D133: 789.80 | E133: 789.70 | F133: 781.60 | G133: 773.40 | H133: 765.30 | I133: 797.90 | J133: 806.00 | K133: 814.20 | L133: 797.8 | M133: 781.5 | N133: 1789200 | O133: 3.19%
A134: 124 | B134: Finance | C134: MFSL | D134: 443.10 | E134: 442.53 | F134: 435.57 | G134: 428.03 | H134: 421.07 | I134: 450.07 | J134: 457.03 | K134: 464.57 | L134: 449.5 | M134: 435 | N134: 1662000 | O134: -1.35%
A135: 125 | B135: Others | C135: MGL | D135: 998.30 | E135: 1003.75 | F135: 987.85 | G135: 977.40 | H135: 961.50 | I135: 1014.20 | J135: 1030.10 | K135: 1040.55 | L135: 1019.65 | M135: 993.3 | N135: 619800 | O135: -3.28%
A136: 126 | B136: Technology | C136: MINDTREE | D136: 949.30 | E136: 950.40 | F136: 946.30 | G136: 943.30 | H136: 939.20 | I136: 953.40 | J136: 957.50 | K136: 960.50 | L136: 954.5 | M136: 947.4 | N136: 4408200 | O136: 0.14%
A137: 127 | B137: Automobile | C137: MOTHERSUMI | D137: 151.45 | E137: 151.47 | F137: 149.88 | G137: 148.32 | H137: 146.73 | I137: 153.03 | J137: 154.62 | K137: 156.18 | L137: 153.05 | M137: 149.9 | N137: 33174000 | O137: -0.75%
A138: 128 | B138: Automobile | C138: MRF | D138: 60393.10 | E138: 60475.62 | F138: 60092.53 | G138: 59791.97 | H138: 59408.88 | I138: 60776.18 | J138: 61159.27 | K138: 61459.83 | L138: 60858.7 | M138: 60175.05 | N138: 31000 | O138: -0.48%
A139: 129 | B139: Others | C139: MRPL | D139: 71.00 | E139: 71.08 | F139: 69.42 | G139: 67.83 | H139: 66.17 | I139: 72.67 | J139: 74.33 | K139: 75.92 | L139: 72.75 | M139: 69.5 | N139: 4305000 | O139: 13.05%
A140: 130 | B140: Finance | C140: MUTHOOTFIN | D140: 603.85 | E140: 606.02 | F140: 598.88 | G140: 593.92 | H140: 586.78 | I140: 610.98 | J140: 618.12 | K140: 623.08 | L140: 613.15 | M140: 601.05 | N140: 2751000 | O140: 4.32%
A141: 131 | B141: Others | C141: NATIONALUM | D141: 55.90 | E141: 56.08 | F141: 55.42 | G141: 54.93 | H141: 54.27 | I141: 56.57 | J141: 57.23 | K141: 57.72 | L141: 56.75 | M141: 55.6 | N141: 36312000 | O141: 2.74%
A142: 132 | B142: Others | C142: NBCC | D142: 61.25 | E142: 61.73 | F142: 60.32 | G142: 59.38 | H142: 57.97 | I142: 62.67 | J142: 64.08 | K142: 65.02 | L142: 63.15 | M142: 60.8 | N142: 38440000 | O142: 0.29%
A143: 133 | B143: Infrastructure | C143: NCC | D143: 105.25 | E143: 107.10 | F143: 102.85 | G143: 100.45 | H143: 96.20 | I143: 109.50 | J143: 113.75 | K143: 116.15 | L143: 111.35 | M143: 104.7 | N143: 32520000 | O143: 3.83%
A144: 134 | B144: Others | C144: NESTLEIND | D144: 11013.15 | E144: 11026.68 | F144: 10903.92 | G144: 10794.68 | H144: 10671.92 | I144: 11135.92 | J144: 11258.68 | K144: 11367.92 | L144: 11149.45 | M144: 10917.45 | N144: 319300 | O144: -2.29%
A145: 135 | B145: Power | C145: NHPC | D145: 24.65 | E145: 24.65 | F145: 24.50 | G145: 24.35 | H145: 24.20 | I145: 24.80 | J145: 24.95 | K145: 25.10 | L145: 24.8 | M145: 24.5 | N145: 24678000 | O145: -1.93%
A146: 136 | B146: Technology | C146: NIITTECH | D146: 1336.35 | E146: 1337.33 | F146: 1329.02 | G146: 1321.68 | H146: 1313.37 | I146: 1344.67 | J146: 1352.98 | K146: 1360.32 | L146: 1345.65 | M146: 1330 | N146: 1549500 | O146: 7.89%
A147: 137 | B147: Metals | C147: NMDC | D147: 105.95 | E147: 105.93 | F147: 104.82 | G147: 103.68 | H147: 102.57 | I147: 107.07 | J147: 108.18 | K147: 109.32 | L147: 107.05 | M147: 104.8 | N147: 17982000 | O147: 0.23%
A148: 138 | B148: Power | C148: NTPC | D148: 136.50 | E148: 136.55 | F148: 135.40 | G148: 134.30 | H148: 133.15 | I148: 137.65 | J148: 138.80 | K148: 139.90 | L148: 137.7 | M148: 135.45 | N148: 72379200 | O148: -2.15%
A149: 139 | B149: Technology | C149: OFSS | D149: 3577.90 | E149: 3557.98 | F149: 3512.02 | G149: 3446.13 | H149: 3400.17 | I149: 3623.87 | J149: 3669.83 | K149: 3735.72 | L149: 3603.95 | M149: 3492.1 | N149: 293250 | O149: 7.18%
A150: 140 | B150: Oil_Gas | C150: OIL | D150: 179.65 | E150: 180.63 | F150: 177.77 | G150: 175.88 | H150: 173.02 | I150: 182.52 | J150: 185.38 | K150: 187.27 | L150: 183.5 | M150: 178.75 | N150: 8205186 | O150: 0.50%
A151: 141 | B151: Oil_Gas | C151: ONGC | D151: 156.30 | E151: 155.80 | F151: 154.85 | G151: 153.40 | H151: 152.45 | I151: 157.25 | J151: 158.20 | K151: 159.65 | L151: 156.75 | M151: 154.35 | N151: 52263750 | O151: -0.77%
A152: 142 | B152: Banking | C152: ORIENTBANK | D152: 111.90 | E152: 112.73 | F152: 109.32 | G152: 106.73 | H152: 103.32 | I152: 115.32 | J152: 118.73 | K152: 121.32 | L152: 116.15 | M152: 110.15 | N152: 15120000 | O152: -5.22%
A153: 143 | B153: Textile | C153: PAGEIND | D153: 24606.30 | E153: 24675.33 | F153: 24342.22 | G153: 24078.13 | H153: 23745.02 | I153: 24939.42 | J153: 25272.53 | K153: 25536.62 | L153: 25008.45 | M153: 24411.25 | N153: 104150 | O153: -0.41%
A154: 144 | B154: Others | C154: PCJEWELLER | D154: 81.55 | E154: 81.82 | F154: 80.63 | G154: 79.72 | H154: 78.53 | I154: 82.73 | J154: 83.92 | K154: 84.83 | L154: 83 | M154: 80.9 | N154: 9958000 | O154: 1.59%
A155: 145 | B155: Pharma | C155: PEL | D155: 2622.70 | E155: 2616.50 | F155: 2599.25 | G155: 2575.80 | H155: 2558.55 | I155: 2639.95 | J155: 2657.20 | K155: 2680.65 | L155: 2633.75 | M155: 2593.05 | N155: 3187308 | O155: 0.90%
A156: 146 | B156: Oil_Gas | C156: PETRONET | D156: 240.90 | E156: 241.80 | F156: 238.15 | G156: 235.40 | H156: 231.75 | I156: 244.55 | J156: 248.20 | K156: 250.95 | L156: 245.45 | M156: 239.05 | N156: 9522000 | O156: 8.51%
A157: 147 | B157: Finance | C157: PFC | D157: 120.45 | E157: 120.30 | F157: 118.90 | G157: 117.35 | H157: 115.95 | I157: 121.85 | J157: 123.25 | K157: 124.80 | L157: 121.7 | M157: 118.75 | N157: 29078000 | O157: -1.03%
A158: 148 | B158: FMCG | C158: PIDILITIND | D158: 1296.45 | E158: 1289.77 | F158: 1280.33 | G158: 1264.22 | H158: 1254.78 | I158: 1305.88 | J158: 1315.32 | K158: 1331.43 | L158: 1299.2 | M158: 1273.65 | N158: 2450000 | O158: -1.84%
A159: 149 | B159: Banking | C159: PNB | D159: 94.50 | E159: 94.87 | F159: 93.08 | G159: 91.67 | H159: 89.88 | I159: 96.28 | J159: 98.07 | K159: 99.48 | L159: 96.65 | M159: 93.45 | N159: 99295000 | O159: -2.13%
A160: 150 | B160: Power | C160: POWERGRID | D160: 200.50 | E160: 201.43 | F160: 198.87 | G160: 197.23 | H160: 194.67 | I160: 203.07 | J160: 205.63 | K160: 207.27 | L160: 204 | M160: 199.8 | N160: 16048000 | O160: 0.27%
A161: 151 | B161: Others | C161: PVR | D161: 1666.15 | E161: 1655.83 | F161: 1638.87 | G161: 1611.58 | H161: 1594.62 | I161: 1683.12 | J161: 1700.08 | K161: 1727.37 | L161: 1672.8 | M161: 1628.55 | N161: 568800 | O161: 2.23%
A162: 152 | B162: Cement | C162: RAMCOCEM | D162: 754.20 | E162: 752.95 | F162: 743.10 | G162: 732.00 | H162: 722.15 | I162: 764.05 | J162: 773.90 | K162: 785.00 | L162: 762.8 | M162: 741.85 | N162: 1611200 | O162: 0.50%
A163: 153 | B163: Others | C163: RAYMOND | D163: 804.90 | E163: 806.83 | F163: 795.67 | G163: 786.43 | H163: 775.27 | I163: 816.07 | J163: 827.23 | K163: 836.47 | L163: 818 | M163: 797.6 | N163: 3114400 | O163: 0.10%
A164: 154 | B164: Banking | C164: RBLBANK | D164: 651.25 | E164: 653.88 | F164: 644.92 | G164: 638.58 | H164: 629.62 | I164: 660.22 | J164: 669.18 | K164: 675.52 | L164: 662.85 | M164: 647.55 | N164: 7214400 | O164: 5.20%
A165: 155 | B165: Power | C165: RECLTD | D165: 152.15 | E165: 151.87 | F165: 150.38 | G165: 148.62 | H165: 147.13 | I165: 153.63 | J165: 155.12 | K165: 156.88 | L165: 153.35 | M165: 150.1 | N165: 30270000 | O165: 0.42%
A166: 156 | B166: Finance | C166: RELCAPITAL | D166: 186.50 | E166: 190.00 | F166: 180.50 | G166: 174.50 | H166: 165.00 | I166: 196.00 | J166: 205.50 | K166: 211.50 | L166: 199.5 | M166: 184 | N166: 8443500 | O166: 14.20%
A167: 157 | B167: Oil_Gas | C167: RELIANCE | D167: 1363.05 | E167: 1370.57 | F167: 1349.58 | G167: 1336.12 | H167: 1315.13 | I167: 1384.03 | J167: 1405.02 | K167: 1418.48 | L167: 1391.55 | M167: 1357.1 | N167: 47125500 | O167: 1.59%
A168: 158 | B168: Power | C168: RELINFRA | D168: 133.45 | E168: 134.88 | F168: 130.67 | G168: 127.88 | H168: 123.67 | I168: 137.67 | J168: 141.88 | K168: 144.67 | L168: 139.1 | M168: 132.1 | N168: 10533900 | O168: 3.16%
A169: 159 | B169: Others | C169: REPCOHOME | D169: 432.65 | E169: 443.27 | F169: 417.53 | G169: 402.42 | H169: 376.68 | I169: 458.38 | J169: 484.12 | K169: 499.23 | L169: 469 | M169: 428.15 | N169: 913000 | O169: 21.70%
A170: 160 | B170: Power | C170: RPOWER | D170: 10.40 | E170: 10.42 | F170: 10.28 | G170: 10.17 | H170: 10.03 | I170: 10.53 | J170: 10.67 | K170: 10.78 | L170: 10.55 | M170: 10.3 | N170: 104640000 | O170: -1.34%
A171: 161 | B171: Metals | C171: SAIL | D171: 58.45 | E171: 57.92 | F171: 56.88 | G171: 55.32 | H171: 54.28 | I171: 59.48 | J171: 60.52 | K171: 62.08 | L171: 58.95 | M171: 56.35 | N171: 83268000 | O171: -6.32%
A172: 162 | B172: Banking | C172: SBIN | D172: 324.20 | E172: 324.50 | F172: 320.70 | G172: 317.20 | H172: 313.40 | I172: 328.00 | J172: 331.80 | K172: 335.30 | L172: 328.3 | M172: 321 | N172: 73659000 | O172: 0.79%
A173: 163 | B173: Cement | C173: SHREECEM | D173: 19032.80 | E173: 18993.63 | F173: 18739.27 | G173: 18445.73 | H173: 18191.37 | I173: 19287.17 | J173: 19541.53 | K173: 19835.07 | L173: 19248 | M173: 18700.1 | N173: 88000 | O173: 17.02%
A174: 164 | B174: Capital_Goods | C174: SIEMENS | D174: 1148.15 | E174: 1152.87 | F174: 1138.28 | G174: 1128.42 | H174: 1113.83 | I174: 1162.73 | J174: 1177.32 | K174: 1187.18 | L174: 1167.45 | M174: 1143 | N174: 1593900 | O174: -4.64%
A175: 165 | B175: Banking | C175: SOUTHBANK | D175: 16.65 | E175: 16.68 | F175: 16.42 | G175: 16.18 | H175: 15.92 | I175: 16.92 | J175: 17.18 | K175: 17.42 | L175: 16.95 | M175: 16.45 | N175: 134320473 | O175: -1.34%
A176: 166 | B176: Textile | C176: SRF | D176: 2502.35 | E176: 2477.70 | F176: 2445.75 | G176: 2389.15 | H176: 2357.20 | I176: 2534.30 | J176: 2566.25 | K176: 2622.85 | L176: 2509.65 | M176: 2421.1 | N176: 1027000 | O176: 9.55%
A177: 167 | B177: Finance | C177: SRTRANSFIN | D177: 1215.35 | E177: 1215.73 | F177: 1203.62 | G177: 1191.88 | H177: 1179.77 | I177: 1227.47 | J177: 1239.58 | K177: 1251.32 | L177: 1227.85 | M177: 1204 | N177: 3635400 | O177: -1.53%
A178: 168 | B178: Pharma | C178: STAR | D178: 500.55 | E178: 494.03 | F178: 480.17 | G178: 459.78 | H178: 445.92 | I178: 514.42 | J178: 528.28 | K178: 548.67 | L178: 507.9 | M178: 473.65 | N178: 3226300 | O178: 9.32%
A179: 169 | B179: Pharma | C179: SUNPHARMA | D179: 469.35 | E179: 468.78 | F179: 463.67 | G179: 457.98 | H179: 452.87 | I179: 474.47 | J179: 479.58 | K179: 485.27 | L179: 473.9 | M179: 463.1 | N179: 50470200 | O179: -0.02%
A180: 170 | B180: Media | C180: SUNTV | D180: 632.15 | E180: 631.88 | F180: 625.72 | G180: 619.28 | H180: 613.12 | I180: 638.32 | J180: 644.48 | K180: 650.92 | L180: 638.05 | M180: 625.45 | N180: 5794000 | O180: -3.61%
A181: 171 | B181: Power | C181: SUZLON | D181: 6.80 | E181: 6.65 | F181: 6.40 | G181: 6.00 | H181: 5.75 | I181: 7.05 | J181: 7.30 | K181: 7.70 | L181: 6.9 | M181: 6.25 | N181: 303164000 | O181: 1.79%
A182: 172 | B182: Banking | C182: SYNDIBANK | D182: 43.50 | E182: 43.52 | F182: 42.58 | G182: 41.67 | H182: 40.73 | I182: 44.43 | J182: 45.37 | K182: 46.28 | L182: 44.45 | M182: 42.6 | N182: 29970000 | O182: -3.06%
A183: 173 | B183: Fertilisers | C183: TATACHEM | D183: 608.15 | E183: 603.63 | F183: 595.22 | G183: 582.28 | H183: 573.87 | I183: 616.57 | J183: 624.98 | K183: 637.92 | L183: 612.05 | M183: 590.7 | N183: 4008000 | O183: -6.13%
A184: 174 | B184: Telecom | C184: TATACOMM | D184: 600.10 | E184: 598.75 | F184: 594.85 | G184: 589.60 | H184: 585.70 | I184: 604.00 | J184: 607.90 | K184: 613.15 | L184: 602.65 | M184: 593.5 | N184: 2738000 | O184: -0.69%
A185: 175 | B185: Technology | C185: TATAELXSI | D185: 970.00 | E185: 971.43 | F185: 960.52 | G185: 951.03 | H185: 940.12 | I185: 980.92 | J185: 991.83 | K185: 1001.32 | L185: 982.35 | M185: 961.95 | N185: 1522800 | O185: 2.01%
A186: 176 | B186: FMCG | C186: TATAGLOBAL | D186: 212.55 | E186: 210.85 | F186: 208.45 | G186: 204.35 | H186: 201.95 | I186: 214.95 | J186: 217.35 | K186: 221.45 | L186: 213.25 | M186: 206.75 | N186: 13626000 | O186: -5.73%
A187: 177 | B187: Automobile | C187: TATAMOTORS | D187: 207.50 | E187: 206.00 | F187: 203.70 | G187: 199.90 | H187: 197.60 | I187: 209.80 | J187: 212.10 | K187: 215.90 | L187: 208.3 | M187: 202.2 | N187: 65080000 | O187: 0.23%
A188: 178 | B188: Automobile | C188: TATAMTRDVR | D188: 98.50 | E188: 98.27 | F188: 97.63 | G188: 96.77 | H188: 96.13 | I188: 99.13 | J188: 99.77 | K188: 100.63 | L188: 98.9 | M188: 97.4 | N188: 35727600 | O188: 3.69%
A189: 179 | B189: Power | C189: TATAPOWER | D189: 71.35 | E189: 71.72 | F189: 70.58 | G189: 69.82 | H189: 68.68 | I189: 72.48 | J189: 73.62 | K189: 74.38 | L189: 72.85 | M189: 70.95 | N189: 53811000 | O189: 0.54%
A190: 180 | B190: Metals | C190: TATASTEEL | D190: 533.45 | E190: 534.63 | F190: 528.82 | G190: 524.18 | H190: 518.37 | I190: 539.27 | J190: 545.08 | K190: 549.72 | L190: 540.45 | M190: 530 | N190: 29993409 | O190: -1.92%
A191: 181 | B191: Technology | C191: TCS | D191: 2031.75 | E191: 2049.50 | F191: 2007.25 | G191: 1982.75 | H191: 1940.50 | I191: 2074.00 | J191: 2116.25 | K191: 2140.75 | L191: 2091.75 | M191: 2025 | N191: 14714750 | O191: 2.93%
A192: 182 | B192: Technology | C192: TECHM | D192: 780.55 | E192: 779.85 | F192: 773.90 | G192: 767.25 | H192: 761.30 | I192: 786.50 | J192: 792.45 | K192: 799.10 | L192: 785.8 | M192: 773.2 | N192: 12478800 | O192: 1.96%
A193: 183 | B193: FMCG | C193: TITAN | D193: 1114.95 | E193: 1115.90 | F193: 1102.15 | G193: 1089.35 | H193: 1075.60 | I193: 1128.70 | J193: 1142.45 | K193: 1155.25 | L193: 1129.65 | M193: 1103.1 | N193: 9557250 | O193: 0.17%
A194: 184 | B194: Pharma | C194: TORNTPHARM | D194: 1917.80 | E194: 1921.60 | F194: 1909.20 | G194: 1900.60 | H194: 1888.20 | I194: 1930.20 | J194: 1942.60 | K194: 1951.20 | L194: 1934 | M194: 1913 | N194: 706500 | O194: 2.02%
A195: 185 | B195: Power | C195: TORNTPOWER | D195: 263.45 | E195: 261.83 | F195: 259.62 | G195: 255.78 | H195: 253.57 | I195: 265.67 | J195: 267.88 | K195: 271.72 | L195: 264.05 | M195: 258 | N195: 2256000 | O195: -5.65%
A196: 186 | B196: Media | C196: TV18BRDCST | D196: 35.25 | E196: 35.37 | F196: 34.73 | G196: 34.22 | H196: 33.58 | I196: 35.88 | J196: 36.52 | K196: 37.03 | L196: 36 | M196: 34.85 | N196: 67340000 | O196: 2.55%
A197: 187 | B197: Automobile | C197: TVSMOTOR | D197: 488.10 | E197: 486.55 | F197: 482.55 | G197: 477.00 | H197: 473.00 | I197: 492.10 | J197: 496.10 | K197: 501.65 | L197: 490.55 | M197: 481 | N197: 5916000 | O197: 0.32%
A198: 188 | B198: FMCG | C198: UBL | D198: 1432.75 | E198: 1425.58 | F198: 1412.17 | G198: 1391.58 | H198: 1378.17 | I198: 1446.17 | J198: 1459.58 | K198: 1480.17 | L198: 1439 | M198: 1405 | N198: 2435300 | O198: 3.67%
A199: 189 | B199: Finance | C199: UJJIVAN | D199: 321.00 | E199: 323.37 | F199: 314.73 | G199: 308.47 | H199: 299.83 | I199: 329.63 | J199: 338.27 | K199: 344.53 | L199: 332 | M199: 317.1 | N199: 3150400 | O199: 3.41%
A200: 190 | B200: Cement | C200: ULTRACEMCO | D200: 4099.00 | E200: 4094.33 | F200: 4044.67 | G200: 3990.33 | H200: 3940.67 | I200: 4148.67 | J200: 4198.33 | K200: 4252.67 | L200: 4144 | M200: 4040 | N200: 1767800 | O200: -1.83%
A201: 191 | B201: Banking | C201: UNIONBANK | D201: 92.90 | E201: 94.15 | F201: 91.05 | G201: 89.20 | H201: 86.10 | I201: 96.00 | J201: 99.10 | K201: 100.95 | L201: 97.25 | M201: 92.3 | N201: 34055000 | O201: 2.98%
A202: 192 | B202: Fertilisers | C202: UPL | D202: 938.30 | E202: 929.17 | F202: 917.13 | G202: 895.97 | H202: 883.93 | I202: 950.33 | J202: 962.37 | K202: 983.53 | L202: 941.2 | M202: 908 | N202: 13798800 | O202: 0.85%
A203: 193 | B203: Metals | C203: VEDL | D203: 188.45 | E203: 187.85 | F203: 185.10 | G203: 181.75 | H203: 179.00 | I203: 191.20 | J203: 193.95 | K203: 197.30 | L203: 190.6 | M203: 184.5 | N203: 30008100 | O203: -2.13%
A204: 194 | B204: Others | C204: VGUARD | D204: 219.20 | E204: 219.77 | F204: 217.73 | G204: 216.27 | H204: 214.23 | I204: 221.23 | J204: 223.27 | K204: 224.73 | L204: 221.8 | M204: 218.3 | N204: 3567000 | O204: 2.41%
A205: 195 | B205: Capital_Goods | C205: VOLTAS | D205: 608.85 | E205: 612.30 | F205: 599.60 | G205: 590.35 | H205: 577.65 | I205: 621.55 | J205: 634.25 | K205: 643.50 | L205: 625 | M205: 603.05 | N205: 5335000 | O205: -1.42%
A206: 196 | B206: Technology | C206: WIPRO | D206: 260.45 | E206: 260.32 | F206: 256.63 | G206: 252.82 | H206: 249.13 | I206: 264.13 | J206: 267.82 | K206: 271.63 | L206: 264 | M206: 256.5 | N206: 32064000 | O206: 2.18%
... 18 more rows

Sheet Cash Intra
M5: Back to Main Page
A6: FOR INTRA DAY TRADING | K6: =Main!B10 -> 2019-04-05
A8: Sr.no | B8: Scrip | C8: CLOSE RATE | D8: Pivot Point | E8: Supports | H8: Resistances
C9: Point | E9: S1 | F9: S2 | G9: S3 | H9: R1 | I9: R2 | J9: R3 | K9: HIGH | L9: LOW | M9: Total Trade Quanity in Lakhs
A10: 1 | B10: Nifty 50 | C10: 11598 | D10: 11606.58 | E10: 11550.62 | F10: 11503.23 | G10: 11447.27 | H10: 11653.97 | I10: 11709.93 | J10: 11757.32 | K10: 11662.55 | L10: 11559.2
A11: 2 | B11: Nifty Bank | C11: 29904.9 | D11: 29986.83 | E11: 29727.97 | F11: 29551.03 | G11: 29292.17 | H11: 30163.77 | I11: 30422.63 | J11: 30599.57 | K11: 30245.7 | L11: 29809.9
A12: 3 | B12: Nifty CPSE | C12: 2228.7 | D12: 2224.20 | E12: 2214.60 | F12: 2200.50 | G12: 2190.90 | H12: 2238.30 | I12: 2247.90 | J12: 2262.00 | K12: 2233.8 | L12: 2210.1
A13: 4 | B13: Nifty Infra | C13: 3202.15 | D13: 3206.48 | E13: 3186.12 | F13: 3170.08 | G13: 3149.72 | H13: 3222.52 | I13: 3242.88 | J13: 3258.92 | K13: 3226.85 | L13: 3190.45
A14: 5 | B14: Nifty IT | C14: 15744.8 | D14: 15796.65 | E14: 15639.15 | F14: 15533.50 | G14: 15376.00 | H14: 15902.30 | I14: 16059.80 | J14: 16165.45 | K14: 15954.15 | L14: 15691
A15: 6 | B15: Nifty PSE | C15: 3517.45 | D15: 3518.62 | E15: 3497.23 | F15: 3477.02 | G15: 3455.63 | H15: 3538.83 | I15: 3560.22 | J15: 3580.43 | K15: 3540 | L15: 3498.4
A16: 7 | B16: Nifty Midcap 50 | C16: 5026.5 | D16: 5031.75 | E16: 5002.20 | F16: 4977.90 | G16: 4948.35 | H16: 5056.05 | I16: 5085.60 | J16: 5109.90 | K16: 5061.3 | L16: 5007.45
A17: 8 | B17: ABB | C17: 1325.45 | D17: 1324.47 | E17: 1310.98 | F17: 1296.52 | G17: 1283.03 | H17: 1338.93 | I17: 1352.42 | J17: 1366.88 | K17: 1337.95 | L17: 1310 | M17: 0.40925
A18: 9 | B18: ACC | C18: 1628.85 | D18: 1632.58 | E18: 1613.02 | F18: 1597.18 | G18: 1577.62 | H18: 1648.42 | I18: 1667.98 | J18: 1683.82 | K18: 1652.15 | L18: 1616.75 | M18: 12.82592
A19: 10 | B19: AIAENG | C19: 1706.3 | D19: 1711.23 | E19: 1696.12 | F19: 1685.93 | G19: 1670.82 | H19: 1721.42 | I19: 1736.53 | J19: 1746.72 | K19: 1726.35 | L19: 1701.05 | M19: 0.11091
A20: 11 | B20: AUBANK | C20: 601.2 | D20: 597.93 | E20: 588.47 | F20: 575.73 | G20: 566.27 | H20: 610.67 | I20: 620.13 | J20: 632.87 | K20: 607.4 | L20: 585.2 | M20: 1.47728
A21: 12 | B21: ADANIENT | C21: 147.5 | D21: 147.75 | E21: 145.20 | F21: 142.90 | G21: 140.35 | H21: 150.05 | I21: 152.60 | J21: 154.90 | K21: 150.3 | L21: 145.45 | M21: 39.6398
A22: 13 | B22: ADANIPORTS | C22: 380.2 | D22: 378.98 | E22: 375.92 | F22: 371.63 | G22: 368.57 | H22: 383.27 | I22: 386.33 | J22: 390.62 | K22: 382.05 | L22: 374.7 | M22: 19.09852
A23: 14 | B23: ADANIPOWER | C23: 47.95 | D23: 48.43 | E23: 47.27 | F23: 46.58 | G23: 45.42 | H23: 49.12 | I23: 50.28 | J23: 50.97 | K23: 49.6 | L23: 47.75 | M23: 122.99012
A24: 15 | B24: ABFRL | C24: 220.05 | D24: 219.88 | E24: 218.27 | F24: 216.48 | G24: 214.87 | H24: 221.67 | I24: 223.28 | J24: 225.07 | K24: 221.5 | L24: 218.1 | M24: 4.80266
A25: 16 | B25: AJANTPHARM | C25: 1020.75 | D25: 1019.83 | E25: 1009.67 | F25: 998.58 | G25: 988.42 | H25: 1030.92 | I25: 1041.08 | J25: 1052.17 | K25: 1030 | L25: 1008.75 | M25: 1.43511
A26: 17 | B26: ALKEM | C26: 1756.9 | D26: 1751.13 | E26: 1740.27 | F26: 1723.63 | G26: 1712.77 | H26: 1767.77 | I26: 1778.63 | J26: 1795.27 | K26: 1762 | L26: 1734.5 | M26: 0.46718
A27: 18 | B27: AMARAJABAT | C27: 676.15 | D27: 677.38 | E27: 656.77 | F27: 637.38 | G27: 616.77 | H27: 696.77 | I27: 717.38 | J27: 736.77 | K27: 698 | L27: 658 | M27: 92.73076
A28: 19 | B28: AMBUJACEM | C28: 222.6 | D28: 224.67 | E28: 219.98 | F28: 217.37 | G28: 212.68 | H28: 227.28 | I28: 231.97 | J28: 234.58 | K28: 229.35 | L28: 222.05 | M28: 110.11371
A29: 20 | B29: APOLLOHOSP | C29: 1256.25 | D29: 1258.10 | E29: 1247.20 | F29: 1238.15 | G29: 1227.25 | H29: 1267.15 | I29: 1278.05 | J29: 1287.10 | K29: 1269 | L29: 1249.05 | M29: 2.36648
A30: 21 | B30: APOLLOTYRE | C30: 222.9 | D30: 221.15 | E30: 218.75 | F30: 214.60 | G30: 212.20 | H30: 225.30 | I30: 227.70 | J30: 231.85 | K30: 223.55 | L30: 217 | M30: 23.44897
A31: 22 | B31: ARVIND | C31: 91.75 | D31: 91.43 | E31: 89.77 | F31: 87.78 | G31: 86.12 | H31: 93.42 | I31: 95.08 | J31: 97.07 | K31: 93.1 | L31: 89.45 | M31: 33.98829
A32: 23 | B32: ASHOKLEY | C32: 87.45 | D32: 87.75 | E32: 86.70 | F32: 85.95 | G32: 84.90 | H32: 88.50 | I32: 89.55 | J32: 90.30 | K32: 88.8 | L32: 87 | M32: 193.28175
A33: 24 | B33: ASIANPAINT | C33: 1519 | D33: 1515.67 | E33: 1506.33 | F33: 1493.67 | G33: 1484.33 | H33: 1528.33 | I33: 1537.67 | J33: 1550.33 | K33: 1525 | L33: 1503 | M33: 14.09222
A34: 25 | B34: AUROPHARMA | C34: 784.35 | D34: 782.22 | E34: 774.93 | F34: 765.52 | G34: 758.23 | H34: 791.63 | I34: 798.92 | J34: 808.33 | K34: 789.5 | L34: 772.8 | M34: 12.7749
A35: 26 | B35: DMART | C35: 1443.6 | D35: 1450.78 | E35: 1420.07 | F35: 1396.53 | G35: 1365.82 | H35: 1474.32 | I35: 1505.03 | J35: 1528.57 | K35: 1481.5 | L35: 1427.25 | M35: 5.19069
A36: 27 | B36: AXISBANK | C36: 762.15 | D36: 764.68 | E36: 757.47 | F36: 752.78 | G36: 745.57 | H36: 769.37 | I36: 776.58 | J36: 781.27 | K36: 771.9 | L36: 760 | M36: 70.09879
A37: 28 | B37: BAJAJ-AUTO | C37: 2859.1 | D37: 2864.38 | E37: 2844.72 | F37: 2830.33 | G37: 2810.67 | H37: 2878.77 | I37: 2898.43 | J37: 2912.82 | K37: 2884.05 | L37: 2850 | M37: 6.62281
A38: 29 | B38: BAJFINANCE | C38: 3039.45 | D38: 3040.63 | E38: 3016.27 | F38: 2993.08 | G38: 2968.72 | H38: 3063.82 | I38: 3088.18 | J38: 3111.37 | K38: 3065 | L38: 3017.45 | M38: 7.72776
A39: 30 | B39: BAJAJFINSV | C39: 7318.55 | D39: 7340.85 | E39: 7259.70 | F39: 7200.85 | G39: 7119.70 | H39: 7399.70 | I39: 7480.85 | J39: 7539.70 | K39: 7422 | L39: 7282 | M39: 2.02173
A40: 31 | B40: BALKRISIND | C40: 985.55 | D40: 989.45 | E40: 977.90 | F40: 970.25 | G40: 958.70 | H40: 997.10 | I40: 1008.65 | J40: 1016.30 | K40: 1001 | L40: 981.8 | M40: 2.11392
A41: 32 | B41: BANKBARODA | C41: 131.2 | D41: 131.80 | E41: 129.60 | F41: 128.00 | G41: 125.80 | H41: 133.40 | I41: 135.60 | J41: 137.20 | K41: 134 | L41: 130.2 | M41: 250.22512
A42: 33 | B42: BANKINDIA | C42: 101.1 | D42: 102.07 | E42: 99.53 | F42: 97.97 | G42: 95.43 | H42: 103.63 | I42: 106.17 | J42: 107.73 | K42: 104.6 | L42: 100.5 | M42: 117.02884
A43: 34 | B43: BATAINDIA | C43: 1401.3 | D43: 1397.30 | E43: 1389.10 | F43: 1376.90 | G43: 1368.70 | H43: 1409.50 | I43: 1417.70 | J43: 1429.90 | K43: 1405.5 | L43: 1385.1 | M43: 4.54117
A44: 35 | B44: BERGEPAINT | C44: 331.75 | D44: 330.80 | E44: 328.70 | F44: 325.65 | G44: 323.55 | H44: 333.85 | I44: 335.95 | J44: 339.00 | K44: 332.9 | L44: 327.75 | M44: 2.80347
A45: 36 | B45: BEL | C45: 97.35 | D45: 97.48 | E45: 95.97 | F45: 94.58 | G45: 93.07 | H45: 98.87 | I45: 100.38 | J45: 101.77 | K45: 99 | L45: 96.1 | M45: 124.49954
A46: 37 | B46: BHARATFIN | C46: 1101.05 | D46: 1107.52 | E46: 1088.73 | F46: 1076.42 | G46: 1057.63 | H46: 1119.83 | I46: 1138.62 | J46: 1150.93 | K46: 1126.3 | L46: 1095.2 | M46: 4.2505
A47: 38 | B47: BHARATFORG | C47: 507.95 | D47: 505.63 | E47: 500.82 | F47: 493.68 | G47: 488.87 | H47: 512.77 | I47: 517.58 | J47: 524.72 | K47: 510.45 | L47: 498.5 | M47: 7.50092
A48: 39 | B48: BHEL | C48: 73.2 | D48: 73.38 | E48: 71.82 | F48: 70.43 | G48: 68.87 | H48: 74.77 | I48: 76.33 | J48: 77.72 | K48: 74.95 | L48: 72 | M48: 136.97381
A49: 40 | B49: BPCL | C49: 354.3 | D49: 356.93 | E49: 350.87 | F49: 347.43 | G49: 341.37 | H49: 360.37 | I49: 366.43 | J49: 369.87 | K49: 363 | L49: 353.5 | M49: 101.99796
A50: 41 | B50: BHARTIARTL | C50: 356.8 | D50: 356.10 | E50: 352.70 | F50: 348.60 | G50: 345.20 | H50: 360.20 | I50: 363.60 | J50: 367.70 | K50: 359.5 | L50: 352 | M50: 109.66638
A51: 42 | B51: INFRATEL | C51: 316.65 | D51: 317.03 | E51: 314.32 | F51: 311.98 | G51: 309.27 | H51: 319.37 | I51: 322.08 | J51: 324.42 | K51: 319.75 | L51: 314.7 | M51: 13.39901
A52: 43 | B52: BIOCON | C52: 612.75 | D52: 610.88 | E52: 607.32 | F52: 601.88 | G52: 598.32 | H52: 616.32 | I52: 619.88 | J52: 625.32 | K52: 614.45 | L52: 605.45 | M52: 6.16733
A53: 44 | B53: BOSCHLTD | C53: 17832.3 | D53: 17886.77 | E53: 17721.48 | F53: 17610.67 | G53: 17445.38 | H53: 17997.58 | I53: 18162.87 | J53: 18273.68 | K53: 18052.05 | L53: 17775.95 | M53: 0.24726
A54: 45 | B54: BRITANNIA | C54: 3041.8 | D54: 3026.98 | E54: 2998.97 | F54: 2956.13 | G54: 2928.12 | H54: 3069.82 | I54: 3097.83 | J54: 3140.67 | K54: 3055 | L54: 2984.15 | M54: 4.6443
A55: 46 | B55: CRISIL | C55: 1439.65 | D55: 1433.22 | E55: 1421.43 | F55: 1403.22 | G55: 1391.43 | H55: 1451.43 | I55: 1463.22 | J55: 1481.43 | K55: 1445 | L55: 1415 | M55: 0.11711
A56: 47 | B56: CADILAHC | C56: 344.4 | D56: 342.62 | E56: 339.23 | F56: 334.07 | G56: 330.68 | H56: 347.78 | I56: 351.17 | J56: 356.33 | K56: 346 | L56: 337.45 | M56: 5.54711
A57: 48 | B57: CANBK | C57: 281.8 | D57: 284.17 | E57: 278.38 | F57: 274.97 | G57: 269.18 | H57: 287.58 | I57: 293.37 | J57: 296.78 | K57: 289.95 | L57: 280.75 | M57: 74.89602
A58: 49 | B58: CASTROLIND | C58: 166.3 | D58: 167.08 | E58: 164.22 | F58: 162.13 | G58: 159.27 | H58: 169.17 | I58: 172.03 | J58: 174.12 | K58: 169.95 | L58: 165 | M58: 26.69889
A59: 50 | B59: CENTRALBK | C59: 35.15 | D59: 35.23 | E59: 34.77 | F59: 34.38 | G59: 33.92 | H59: 35.62 | I59: 36.08 | J59: 36.47 | K59: 35.7 | L59: 34.85 | M59: 6.58135
A60: 51 | B60: CENTURYTEX | C60: 912.6 | D60: 910.78 | E60: 904.57 | F60: 896.53 | G60: 890.32 | H60: 918.82 | I60: 925.03 | J60: 933.07 | K60: 917 | L60: 902.75 | M60: 5.97677
A61: 52 | B61: CHOLAFIN | C61: 1453.25 | D61: 1459.03 | E61: 1430.97 | F61: 1408.68 | G61: 1380.62 | H61: 1481.32 | I61: 1509.38 | J61: 1531.67 | K61: 1487.1 | L61: 1436.75 | M61: 3.77779
A62: 53 | B62: CIPLA | C62: 521 | D62: 520.17 | E62: 518.33 | F62: 515.67 | G62: 513.83 | H62: 522.83 | I62: 524.67 | J62: 527.33 | K62: 522 | L62: 517.5 | M62: 55.55991
A63: 54 | B63: COALINDIA | C63: 234.8 | D63: 234.30 | E63: 233.05 | F63: 231.30 | G63: 230.05 | H63: 236.05 | I63: 237.30 | J63: 239.05 | K63: 235.55 | L63: 232.55 | M63: 39.48463
A64: 55 | B64: COLPAL | C64: 1250.5 | D64: 1249.35 | E64: 1243.15 | F64: 1235.80 | G64: 1229.60 | H64: 1256.70 | I64: 1262.90 | J64: 1270.25 | K64: 1255.55 | L64: 1242 | M64: 2.99836
A65: 56 | B65: CONCOR | C65: 532.1 | D65: 531.98 | E65: 526.47 | F65: 520.83 | G65: 515.32 | H65: 537.62 | I65: 543.13 | J65: 548.77 | K65: 537.5 | L65: 526.35 | M65: 7.01627
A66: 57 | B66: COROMANDEL | C66: 455.1 | D66: 460.48 | E66: 447.77 | F66: 440.43 | G66: 427.72 | H66: 467.82 | I66: 480.53 | J66: 487.87 | K66: 473.2 | L66: 453.15 | M66: 2.72605
A67: 58 | B67: CROMPTON | C67: 232.5 | D67: 232.30 | E67: 228.20 | F67: 223.90 | G67: 219.80 | H67: 236.60 | I67: 240.70 | J67: 245.00 | K67: 236.4 | L67: 228 | M67: 8.20955
A68: 59 | B68: CUMMINSIND | C68: 715.85 | D68: 724.97 | E68: 705.68 | F68: 695.52 | G68: 676.23 | H68: 735.13 | I68: 754.42 | J68: 764.58 | K68: 744.25 | L68: 714.8 | M68: 5.66742
A69: 60 | B69: DLF | C69: 200.85 | D69: 201.25 | E69: 197.70 | F69: 194.55 | G69: 191.00 | H69: 204.40 | I69: 207.95 | J69: 211.10 | K69: 204.8 | L69: 198.1 | M69: 141.67501
A70: 61 | B70: DABUR | C70: 405.05 | D70: 405.03 | E70: 403.27 | F70: 401.48 | G70: 399.72 | H70: 406.82 | I70: 408.58 | J70: 410.37 | K70: 406.8 | L70: 403.25 | M70: 23.66959
A71: 62 | B71: DHFL | C71: 148.9 | D71: 148.72 | E71: 146.68 | F71: 144.47 | G71: 142.43 | H71: 150.93 | I71: 152.97 | J71: 155.18 | K71: 150.75 | L71: 146.5 | M71: 131.45366
A72: 63 | B72: DISHTV | C72: 39 | D72: 39.57 | E72: 37.68 | F72: 36.37 | G72: 34.48 | H72: 40.88 | I72: 42.77 | J72: 44.08 | K72: 41.45 | L72: 38.25 | M72: 594.3914
A73: 64 | B73: DIVISLAB | C73: 1701.05 | D73: 1696.95 | E73: 1679.90 | F73: 1658.75 | G73: 1641.70 | H73: 1718.10 | I73: 1735.15 | J73: 1756.30 | K73: 1714 | L73: 1675.8 | M73: 5.90246
A74: 65 | B74: LALPATHLAB | C74: 1022.75 | D74: 1029.25 | E74: 1013.50 | F74: 1004.25 | G74: 988.50 | H74: 1038.50 | I74: 1054.25 | J74: 1063.50 | K74: 1045 | L74: 1020 | M74: 0.27293
A75: 66 | B75: DRREDDY | C75: 2771.35 | D75: 2772.47 | E75: 2752.38 | F75: 2733.42 | G75: 2713.33 | H75: 2791.43 | I75: 2811.52 | J75: 2830.48 | K75: 2792.55 | L75: 2753.5 | M75: 4.38496
A76: 67 | B76: EDELWEISS | C76: 186.85 | D76: 186.88 | E76: 184.12 | F76: 181.38 | G76: 178.62 | H76: 189.62 | I76: 192.38 | J76: 195.12 | K76: 189.65 | L76: 184.15 | M76: 11.14958
A77: 68 | B77: EICHERMOT | C77: 20489.55 | D77: 20336.85 | E77: 20073.70 | F77: 19657.85 | G77: 19394.70 | H77: 20752.70 | I77: 21015.85 | J77: 21431.70 | K77: 20600 | L77: 19921 | M77: 1.67558
A78: 69 | B78: EMAMILTD | C78: 410.6 | D78: 410.90 | E78: 407.20 | F78: 403.80 | G78: 400.10 | H78: 414.30 | I78: 418.00 | J78: 421.40 | K78: 414.6 | L78: 407.5 | M78: 3.4444
A79: 70 | B79: ENDURANCE | C79: 1171.25 | D79: 1166.52 | E79: 1157.03 | F79: 1142.82 | G79: 1133.33 | H79: 1180.73 | I79: 1190.22 | J79: 1204.43 | K79: 1176 | L79: 1152.3 | M79: 0.60741
A80: 71 | B80: ENGINERSIN | C80: 118.8 | D80: 118.05 | E80: 116.90 | F80: 115.00 | G80: 113.85 | H80: 119.95 | I80: 121.10 | J80: 123.00 | K80: 119.2 | L80: 116.15 | M80: 19.90389
A81: 72 | B81: EXIDEIND | C81: 215.45 | D81: 213.92 | E81: 211.53 | F81: 207.62 | G81: 205.23 | H81: 217.83 | I81: 220.22 | J81: 224.13 | K81: 216.3 | L81: 210 | M81: 33.25391
A82: 73 | B82: FEDERALBNK | C82: 95.1 | D82: 95.52 | E82: 94.13 | F82: 93.17 | G82: 91.78 | H82: 96.48 | I82: 97.87 | J82: 98.83 | K82: 96.9 | L82: 94.55 | M82: 137.79822
A83: 74 | B83: GAIL | C83: 346.3 | D83: 348.30 | E83: 341.60 | F83: 336.90 | G83: 330.20 | H83: 353.00 | I83: 359.70 | J83: 364.40 | K83: 355 | L83: 343.6 | M83: 34.96
A84: 75 | B84: GMRINFRA | C84: 19.05 | D84: 18.97 | E84: 18.58 | F84: 18.12 | G84: 17.73 | H84: 19.43 | I84: 19.82 | J84: 20.28 | K84: 19.35 | L84: 18.5 | M84: 246.38561
A85: 76 | B85: GSKCONS | C85: 7005.35 | D85: 6976.43 | E85: 6922.97 | F85: 6840.58 | G85: 6787.12 | H85: 7058.82 | I85: 7112.28 | J85: 7194.67 | K85: 7029.9 | L85: 6894.05 | M85: 0.20758
A86: 77 | B86: GLAXO | C86: 1294.5 | D86: 1291.12 | E86: 1283.28 | F86: 1272.07 | G86: 1264.23 | H86: 1302.33 | I86: 1310.17 | J86: 1321.38 | K86: 1298.95 | L86: 1279.9 | M86: 0.11916
A87: 78 | B87: GLENMARK | C87: 654.4 | D87: 649.45 | E87: 642.50 | F87: 630.60 | G87: 623.65 | H87: 661.35 | I87: 668.30 | J87: 680.20 | K87: 656.4 | L87: 637.55 | M87: 6.32258
A88: 79 | B88: GODREJCP | C88: 675.4 | D88: 674.63 | E88: 667.87 | F88: 660.33 | G88: 653.57 | H88: 682.17 | I88: 688.93 | J88: 696.47 | K88: 681.4 | L88: 667.1 | M88: 16.66448
A89: 80 | B89: GODREJIND | C89: 529.35 | D89: 529.60 | E89: 525.30 | F89: 521.25 | G89: 516.95 | H89: 533.65 | I89: 537.95 | J89: 542.00 | K89: 533.9 | L89: 525.55 | M89: 2.69954
A90: 81 | B90: GRUH | C90: 283.8 | D90: 284.47 | E90: 280.43 | F90: 277.07 | G90: 273.03 | H90: 287.83 | I90: 291.87 | J90: 295.23 | K90: 288.5 | L90: 281.1 | M90: 17.25555
A91: 82 | B91: GPPL | C91: 95.8 | D91: 96.18 | E91: 94.17 | F91: 92.53 | G91: 90.52 | H91: 97.82 | I91: 99.83 | J91: 101.47 | K91: 98.2 | L91: 94.55 | M91: 1.28162
A92: 83 | B92: GSPL | C92: 176.5 | D92: 175.48 | E92: 173.47 | F92: 170.43 | G92: 168.42 | H92: 178.52 | I92: 180.53 | J92: 183.57 | K92: 177.5 | L92: 172.45 | M92: 5.61222
A93: 84 | B93: HCLTECH | C93: 1098.05 | D93: 1099.20 | E93: 1080.35 | F93: 1062.65 | G93: 1043.80 | H93: 1116.90 | I93: 1135.75 | J93: 1153.45 | K93: 1118.05 | L93: 1081.5 | M93: 42.22104
A94: 85 | B94: HDFCBANK | C94: 2283.95 | D94: 2292.32 | E94: 2271.63 | F94: 2259.32 | G94: 2238.63 | H94: 2304.63 | I94: 2325.32 | J94: 2337.63 | K94: 2313 | L94: 2280 | M94: 23.02888
A95: 86 | B95: HAVELLS | C95: 766.95 | D95: 764.28 | E95: 759.07 | F95: 751.18 | G95: 745.97 | H95: 772.17 | I95: 777.38 | J95: 785.27 | K95: 769.5 | L95: 756.4 | M95: 7.27448
A96: 87 | B96: HEROMOTOCO | C96: 2637.2 | D96: 2626.97 | E96: 2605.23 | F96: 2573.27 | G96: 2551.53 | H96: 2658.93 | I96: 2680.67 | J96: 2712.63 | K96: 2648.7 | L96: 2595 | M96: 20.0744
A97: 88 | B97: HEXAWARE | C97: 363.65 | D97: 361.03 | E97: 357.07 | F97: 350.48 | G97: 346.52 | H97: 367.62 | I97: 371.58 | J97: 378.17 | K97: 365 | L97: 354.45 | M97: 16.42107
A98: 89 | B98: HINDALCO | C98: 210.45 | D98: 211.97 | E98: 208.48 | F98: 206.52 | G98: 203.03 | H98: 213.93 | I98: 217.42 | J98: 219.38 | K98: 215.45 | L98: 210 | M98: 77.39096
A99: 90 | B99: HINDPETRO | C99: 258.75 | D99: 259.63 | E99: 255.62 | F99: 252.48 | G99: 248.47 | H99: 262.77 | I99: 266.78 | J99: 269.92 | K99: 263.65 | L99: 256.5 | M99: 54.82236
A100: 91 | B100: HINDUNILVR | C100: 1666.55 | D100: 1670.38 | E100: 1654.17 | F100: 1641.78 | G100: 1625.57 | H100: 1682.77 | I100: 1698.98 | J100: 1711.37 | K100: 1686.6 | L100: 1658 | M100: 12.12398
A101: 92 | B101: HINDZINC | C101: 283.55 | D101: 283.25 | E101: 281.30 | F101: 279.05 | G101: 277.10 | H101: 285.50 | I101: 287.45 | J101: 289.70 | K101: 285.2 | L101: 281 | M101: 4.48307
A102: 93 | B102: HUDCO | C102: 44.8 | D102: 44.90 | E102: 44.50 | F102: 44.20 | G102: 43.80 | H102: 45.20 | I102: 45.60 | J102: 45.90 | K102: 45.3 | L102: 44.6 | M102: 5.38443
A103: 94 | B103: HDFC | C103: 2042.05 | D103: 2035.72 | E103: 2012.63 | F103: 1983.22 | G103: 1960.13 | H103: 2065.13 | I103: 2088.22 | J103: 2117.63 | K103: 2058.8 | L103: 2006.3 | M103: 44.63212
A104: 95 | B104: ITC | C104: 294.8 | D104: 295.28 | E104: 293.27 | F104: 291.73 | G104: 289.72 | H104: 296.82 | I104: 298.83 | J104: 300.37 | K104: 297.3 | L104: 293.75 | M104: 69.65053
A105: 96 | B105: ICICIBANK | C105: 388.75 | D105: 390.58 | E105: 385.47 | F105: 382.18 | G105: 377.07 | H105: 393.87 | I105: 398.98 | J105: 402.27 | K105: 395.7 | L105: 387.3 | M105: 145.21564
A106: 97 | B106: ICICIPRULI | C106: 360.75 | D106: 361.87 | E106: 357.93 | F106: 355.12 | G106: 351.18 | H106: 364.68 | I106: 368.62 | J106: 371.43 | K106: 365.8 | L106: 359.05 | M106: 16.93763
A107: 98 | B107: IDBI | C107: 44.25 | D107: 44.28 | E107: 43.67 | F107: 43.08 | G107: 42.47 | H107: 44.87 | I107: 45.48 | J107: 46.07 | K107: 44.9 | L107: 43.7 | M107: 139.32478
A108: 99 | B108: IDFCFIRSTB | C108: 54 | D108: 54.12 | E108: 53.43 | F108: 52.87 | G108: 52.18 | H108: 54.68 | I108: 55.37 | J108: 55.93 | K108: 54.8 | L108: 53.55 | M108: 150.59462
A109: 100 | B109: IDFC | C109: 46.3 | D109: 46.27 | E109: 45.13 | F109: 43.97 | G109: 42.83 | H109: 47.43 | I109: 48.57 | J109: 49.73 | K109: 47.4 | L109: 45.1 | M109: 57.64009
A110: 101 | B110: IRB | C110: 144.35 | D110: 146.10 | E110: 141.55 | F110: 138.75 | G110: 134.20 | H110: 148.90 | I110: 153.45 | J110: 156.25 | K110: 150.65 | L110: 143.3 | M110: 16.80784
A111: 102 | B111: IDEA | C111: 15.15 | D111: 15.33 | E111: 14.72 | F111: 14.28 | G111: 13.67 | H111: 15.77 | I111: 16.38 | J111: 16.82 | K111: 15.95 | L111: 14.9 | M111: 1150.62504
A112: 103 | B112: IBULHSGFIN | C112: 898.15 | D112: 891.73 | E112: 878.57 | F112: 858.98 | G112: 845.82 | H112: 911.32 | I112: 924.48 | J112: 944.07 | K112: 904.9 | L112: 872.15 | M112: 210.62041
A113: 104 | B113: INDIANB | C113: 274.45 | D113: 276.20 | E113: 269.95 | F113: 265.45 | G113: 259.20 | H113: 280.70 | I113: 286.95 | J113: 291.45 | K113: 282.45 | L113: 271.7 | M113: 19.92897
A114: 105 | B114: INDHOTEL | C114: 153.85 | D114: 153.93 | E114: 152.07 | F114: 150.28 | G114: 148.42 | H114: 155.72 | I114: 157.58 | J114: 159.37 | K114: 155.8 | L114: 152.15 | M114: 12.56209
A115: 106 | B115: IOC | C115: 155.2 | D115: 154.88 | E115: 153.67 | F115: 152.13 | G115: 150.92 | H115: 156.42 | I115: 157.63 | J115: 159.17 | K115: 156.1 | L115: 153.35 | M115: 93.65107
A116: 107 | B116: IGL | C116: 303.6 | D116: 304.50 | E116: 299.70 | F116: 295.80 | G116: 291.00 | H116: 308.40 | I116: 313.20 | J116: 317.10 | K116: 309.3 | L116: 300.6 | M116: 19.37062
A117: 108 | B117: INDUSINDBK | C117: 1736.15 | D117: 1747.38 | E117: 1712.02 | F117: 1687.88 | G117: 1652.52 | H117: 1771.52 | I117: 1806.88 | J117: 1831.02 | K117: 1782.75 | L117: 1723.25 | M117: 21.64515
A118: 109 | B118: NAUKRI | C118: 1851.25 | D118: 1843.75 | E118: 1817.50 | F118: 1783.75 | G118: 1757.50 | H118: 1877.50 | I118: 1903.75 | J118: 1937.50 | K118: 1870 | L118: 1810 | M118: 1.99575
A119: 110 | B119: INFY | C119: 747.9 | D119: 748.93 | E119: 744.07 | F119: 740.23 | G119: 735.37 | H119: 752.77 | I119: 757.63 | J119: 761.47 | K119: 753.8 | L119: 745.1 | M119: 76.88525
A120: 111 | B120: INDIGO | C120: 1431.95 | D120: 1414.58 | E120: 1387.57 | F120: 1343.18 | G120: 1316.17 | H120: 1458.97 | I120: 1485.98 | J120: 1530.37 | K120: 1441.6 | L120: 1370.2 | M120: 33.16463
A121: 112 | B121: IPCALAB | C121: 962.45 | D121: 962.85 | E121: 950.70 | F121: 938.95 | G121: 926.80 | H121: 974.60 | I121: 986.75 | J121: 998.50 | K121: 975 | L121: 951.1 | M121: 0.89817
A122: 113 | B122: JSWENERGY | C122: 73.1 | D122: 72.92 | E122: 72.03 | F122: 70.97 | G122: 70.08 | H122: 73.98 | I122: 74.87 | J122: 75.93 | K122: 73.8 | L122: 71.85 | M122: 8.77835
A123: 114 | B123: JSWSTEEL | C123: 287.8 | D123: 287.77 | E123: 285.23 | F123: 282.67 | G123: 280.13 | H123: 290.33 | I123: 292.87 | J123: 295.43 | K123: 290.3 | L123: 285.2 | M123: 43.3825
A124: 115 | B124: JINDALSTEL | C124: 181.7 | D124: 181.78 | E124: 178.82 | F124: 175.93 | G124: 172.97 | H124: 184.67 | I124: 187.63 | J124: 190.52 | K124: 184.75 | L124: 178.9 | M124: 90.7761
A125: 116 | B125: JUBLFOOD | C125: 1432.85 | D125: 1431.95 | E125: 1421.00 | F125: 1409.15 | G125: 1398.20 | H125: 1443.80 | I125: 1454.75 | J125: 1466.60 | K125: 1442.9 | L125: 1420.1 | M125: 9.89402
A126: 117 | B126: JUBILANT | C126: 718.8 | D126: 713.60 | E126: 707.20 | F126: 695.60 | G126: 689.20 | H126: 725.20 | I126: 731.60 | J126: 743.20 | K126: 720 | L126: 702 | M126: 8.46837
A127: 118 | B127: KARURVYSYA | C127: 73.2 | D127: 73.32 | E127: 72.13 | F127: 71.07 | G127: 69.88 | H127: 74.38 | I127: 75.57 | J127: 76.63 | K127: 74.5 | L127: 72.25 | M127: 7.10567
A128: 119 | B128: KOTAKBANK | C128: 1322.9 | D128: 1328.23 | E128: 1311.72 | F128: 1300.53 | G128: 1284.02 | H128: 1339.42 | I128: 1355.93 | J128: 1367.12 | K128: 1344.75 | L128: 1317.05 | M128: 25.92949
A129: 120 | B129: L&TFH | C129: 149.45 | D129: 150.35 | E129: 147.90 | F129: 146.35 | G129: 143.90 | H129: 151.90 | I129: 154.35 | J129: 155.90 | K129: 152.8 | L129: 148.8 | M129: 54.02911
A130: 121 | B130: LICHSGFIN | C130: 533.5 | D130: 535.95 | E130: 527.60 | F130: 521.70 | G130: 513.35 | H130: 541.85 | I130: 550.20 | J130: 556.10 | K130: 544.3 | L130: 530.05 | M130: 14.50427
A131: 122 | B131: LT | C131: 1368.7 | D131: 1376.10 | E131: 1358.30 | F131: 1347.90 | G131: 1330.10 | H131: 1386.50 | I131: 1404.30 | J131: 1414.70 | K131: 1393.9 | L131: 1365.7 | M131: 19.80318
A132: 123 | B132: LUPIN | C132: 789.05 | D132: 784.18 | E132: 775.87 | F132: 762.68 | G132: 754.37 | H132: 797.37 | I132: 805.68 | J132: 818.87 | K132: 792.5 | L132: 771 | M132: 12.6775
A133: 124 | B133: MRF | C133: 60003.15 | D133: 60084.03 | E133: 59669.17 | F133: 59335.18 | G133: 58920.32 | H133: 60418.02 | I133: 60832.88 | J133: 61166.87 | K133: 60498.9 | L133: 59750.05 | M133: 0.06488
A134: 125 | B134: MGL | C134: 989.65 | D134: 996.22 | E134: 978.43 | F134: 967.22 | G134: 949.43 | H134: 1007.43 | I134: 1025.22 | J134: 1036.43 | K134: 1014 | L134: 985 | M134: 2.31959
A135: 126 | B135: M&MFIN | C135: 413.7 | D135: 416.12 | E135: 409.23 | F135: 404.77 | G135: 397.88 | H135: 420.58 | I135: 427.47 | J135: 431.93 | K135: 423 | L135: 411.65 | M135: 13.70093
A136: 127 | B136: M&M | C136: 653.35 | D136: 655.75 | E136: 648.80 | F136: 644.25 | G136: 637.30 | H136: 660.30 | I136: 667.25 | J136: 671.80 | K136: 662.7 | L136: 651.2 | M136: 36.84739
A137: 128 | B137: MANAPPURAM | C137: 118.95 | D137: 119.32 | E137: 117.78 | F137: 116.62 | G137: 115.08 | H137: 120.48 | I137: 122.02 | J137: 123.18 | K137: 120.85 | L137: 118.15 | M137: 30.01753
A138: 129 | B138: MRPL | C138: 70.55 | D138: 70.77 | E138: 69.03 | F138: 67.52 | G138: 65.78 | H138: 72.28 | I138: 74.02 | J138: 75.53 | K138: 72.5 | L138: 69.25 | M138: 11.75879
A139: 130 | B139: MARICO | C139: 354.85 | D139: 355.67 | E139: 352.93 | F139: 351.02 | G139: 348.28 | H139: 357.58 | I139: 360.32 | J139: 362.23 | K139: 358.4 | L139: 353.75 | M139: 15.1578
A140: 131 | B140: MARUTI | C140: 7113.1 | D140: 7114.92 | E140: 7059.83 | F140: 7006.57 | G140: 6951.48 | H140: 7168.18 | I140: 7223.27 | J140: 7276.53 | K140: 7170 | L140: 7061.65 | M140: 13.88375
A141: 132 | B141: MFSL | C141: 439.6 | D141: 439.38 | E141: 432.27 | F141: 424.93 | G141: 417.82 | H141: 446.72 | I141: 453.83 | J141: 461.17 | K141: 446.5 | L141: 432.05 | M141: 5.47091
A142: 133 | B142: MINDTREE | C142: 943.5 | D142: 943.72 | E142: 940.43 | F142: 937.37 | G142: 934.08 | H142: 946.78 | I142: 950.07 | J142: 953.13 | K142: 947 | L142: 940.65 | M142: 6.26426
A143: 134 | B143: MOTHERSUMI | C143: 150.25 | D143: 150.38 | E143: 148.97 | F143: 147.68 | G143: 146.27 | H143: 151.67 | I143: 153.08 | J143: 154.37 | K143: 151.8 | L143: 149.1 | M143: 36.73319
A144: 135 | B144: MPHASIS | C144: 978.3 | D144: 974.75 | E144: 964.60 | F144: 950.90 | G144: 940.75 | H144: 988.45 | I144: 998.60 | J144: 1012.30 | K144: 984.9 | L144: 961.05 | M144: 1.50903
A145: 136 | B145: MUTHOOTFIN | C145: 606.3 | D145: 609.22 | E145: 600.83 | F145: 595.37 | G145: 586.98 | H145: 614.68 | I145: 623.07 | J145: 628.53 | K145: 617.6 | L145: 603.75 | M145: 5.96132
A146: 137 | B146: NATCOPHARM | C146: 554.75 | D146: 556.85 | E146: 548.90 | F146: 543.05 | G146: 535.10 | H146: 562.70 | I146: 570.65 | J146: 576.50 | K146: 564.8 | L146: 551 | M146: 1.42843
A147: 138 | B147: NBCC | C147: 60.9 | D147: 61.35 | E147: 60.05 | F147: 59.20 | G147: 57.90 | H147: 62.20 | I147: 63.50 | J147: 64.35 | K147: 62.65 | L147: 60.5 | M147: 94.04326
A148: 139 | B148: NHPC | C148: 24.5 | D148: 24.50 | E148: 24.30 | F148: 24.10 | G148: 23.90 | H148: 24.70 | I148: 24.90 | J148: 25.10 | K148: 24.7 | L148: 24.3 | M148: 26.48447
A149: 140 | B149: NMDC | C149: 105 | D149: 105.15 | E149: 104.10 | F149: 103.20 | G149: 102.15 | H149: 106.05 | I149: 107.10 | J149: 108.00 | K149: 106.2 | L149: 104.25 | M149: 25.0828
A150: 141 | B150: NTPC | C150: 135.65 | D150: 135.63 | E150: 134.47 | F150: 133.28 | G150: 132.12 | H150: 136.82 | I150: 137.98 | J150: 139.17 | K150: 136.8 | L150: 134.45 | M150: 129.39086
A151: 142 | B151: NATIONALUM | C151: 55.45 | D151: 55.68 | E151: 54.92 | F151: 54.38 | G151: 53.62 | H151: 56.22 | I151: 56.98 | J151: 57.52 | K151: 56.45 | L151: 55.15 | M151: 91.03177
A152: 143 | B152: OBEROIRLTY | C152: 534.7 | D152: 534.63 | E152: 527.82 | F152: 520.93 | G152: 514.12 | H152: 541.52 | I152: 548.33 | J152: 555.22 | K152: 541.45 | L152: 527.75 | M152: 2.29343
A153: 144 | B153: ONGC | C153: 155.25 | D153: 154.97 | E153: 153.58 | F153: 151.92 | G153: 150.53 | H153: 156.63 | I153: 158.02 | J153: 159.68 | K153: 156.35 | L153: 153.3 | M153: 107.52094
A154: 145 | B154: OIL | C154: 178.7 | D154: 179.72 | E154: 176.58 | F154: 174.47 | G154: 171.33 | H154: 181.83 | I154: 184.97 | J154: 187.08 | K154: 182.85 | L154: 177.6 | M154: 9.83634
A155: 146 | B155: OFSS | C155: 3554.05 | D155: 3530.02 | E155: 3486.28 | F155: 3418.52 | G155: 3374.78 | H155: 3597.78 | I155: 3641.52 | J155: 3709.28 | K155: 3573.75 | L155: 3462.25 | M155: 0.65399
A156: 147 | B156: PCJEWELLER | C156: 81.05 | D156: 81.42 | E156: 80.13 | F156: 79.22 | G156: 77.93 | H156: 82.33 | I156: 83.62 | J156: 84.53 | K156: 82.7 | L156: 80.5 | M156: 45.87609
A157: 148 | B157: PIIND | C157: 1032.8 | D157: 1038.78 | E157: 1015.22 | F157: 997.63 | G157: 974.07 | H157: 1056.37 | I157: 1079.93 | J157: 1097.52 | K157: 1062.35 | L157: 1021.2 | M157: 2.41154
A158: 149 | B158: PNBHOUSING | C158: 961.4 | D158: 947.97 | E158: 928.43 | F158: 895.47 | G158: 875.93 | H158: 980.93 | I158: 1000.47 | J158: 1033.43 | K158: 967.5 | L158: 915 | M158: 10.13304
A159: 150 | B159: PAGEIND | C159: 24439.6 | D159: 24494.87 | E159: 24169.73 | F159: 23899.87 | G159: 23574.73 | H159: 24764.73 | I159: 25089.87 | J159: 25359.73 | K159: 24820 | L159: 24225 | M159: 0.24153
A160: 151 | B160: PETRONET | C160: 238.85 | D160: 239.92 | E160: 235.93 | F160: 233.02 | G160: 229.03 | H160: 242.83 | I160: 246.82 | J160: 249.73 | K160: 243.9 | L160: 237 | M160: 24.03379
A161: 152 | B161: PIDILITIND | C161: 1288.1 | D161: 1282.03 | E161: 1269.57 | F161: 1251.03 | G161: 1238.57 | H161: 1300.57 | I161: 1313.03 | J161: 1331.57 | K161: 1294.5 | L161: 1263.5 | M161: 10.11307
A162: 153 | B162: PEL | C162: 2615.1 | D162: 2608.23 | E162: 2588.97 | F162: 2562.83 | G162: 2543.57 | H162: 2634.37 | I162: 2653.63 | J162: 2679.77 | K162: 2627.5 | L162: 2582.1 | M162: 3.20267
A163: 154 | B163: PFC | C163: 119.6 | D163: 119.48 | E163: 117.97 | F163: 116.33 | G163: 114.82 | H163: 121.12 | I163: 122.63 | J163: 124.27 | K163: 121 | L163: 117.85 | M163: 60.69279
A164: 155 | B164: POWERGRID | C164: 199.35 | D164: 200.37 | E164: 197.48 | F164: 195.62 | G164: 192.73 | H164: 202.23 | I164: 205.12 | J164: 206.98 | K164: 203.25 | L164: 198.5 | M164: 56.98269
A165: 156 | B165: PRESTIGE | C165: 256.2 | D165: 255.35 | E165: 252.25 | F165: 248.30 | G165: 245.20 | H165: 259.30 | I165: 262.40 | J165: 266.35 | K165: 258.45 | L165: 251.4 | M165: 11.45056
A166: 157 | B166: PGHH | C166: 10675.8 | D166: 10693.27 | E166: 10552.53 | F166: 10429.27 | G166: 10288.53 | H166: 10816.53 | I166: 10957.27 | J166: 11080.53 | K166: 10834 | L166: 10570 | M166: 0.03889
A167: 158 | B167: PNB | C167: 93.65 | D167: 94.08 | E167: 92.42 | F167: 91.18 | G167: 89.52 | H167: 95.32 | I167: 96.98 | J167: 98.22 | K167: 95.75 | L167: 92.85 | M167: 457.41687
A168: 159 | B168: RBLBANK | C168: 649.25 | D168: 652.92 | E168: 642.88 | F168: 636.52 | G168: 626.48 | H168: 659.28 | I168: 669.32 | J168: 675.68 | K168: 662.95 | L168: 646.55 | M168: 15.99956
A169: 160 | B169: RAJESHEXPO | C169: 672.35 | D169: 674.78 | E169: 664.57 | F169: 656.78 | G169: 646.57 | H169: 682.57 | I169: 692.78 | J169: 700.57 | K169: 685 | L169: 667 | M169: 4.06225
A170: 161 | B170: RELCAPITAL | C170: 187.35 | D170: 190.17 | E170: 182.53 | F170: 177.72 | G170: 170.08 | H170: 194.98 | I170: 202.62 | J170: 207.43 | K170: 197.8 | L170: 185.35 | M170: 90.4957
A171: 162 | B171: RCOM | C171: 3.5 | D171: 3.57 | E171: 3.43 | F171: 3.37 | G171: 3.23 | H171: 3.63 | I171: 3.77 | J171: 3.83 | K171: 3.7 | L171: 3.5 | M171: 1048.87888
A172: 163 | B172: RELIANCE | C172: 1353.05 | D172: 1361.33 | E172: 1338.97 | F172: 1324.88 | G172: 1302.52 | H172: 1375.42 | I172: 1397.78 | J172: 1411.87 | K172: 1383.7 | L172: 1347.25 | M172: 83.75674
A173: 164 | B173: RELINFRA | C173: 132.85 | D173: 134.52 | E173: 130.33 | F173: 127.82 | G173: 123.63 | H173: 137.03 | I173: 141.22 | J173: 143.73 | K173: 138.7 | L173: 132 | M173: 63.09765
A174: 165 | B174: RPOWER | C174: 10.3 | D174: 10.33 | E174: 10.17 | F174: 10.03 | G174: 9.87 | H174: 10.47 | I174: 10.63 | J174: 10.77 | K174: 10.5 | L174: 10.2 | M174: 240.1431
A175: 166 | B175: RECLTD | C175: 151.4 | D175: 151.15 | E175: 149.60 | F175: 147.80 | G175: 146.25 | H175: 152.95 | I175: 154.50 | J175: 156.30 | K175: 152.7 | L175: 149.35 | M175: 80.45926
A176: 167 | B176: SRF | C176: 2484.9 | D176: 2463.07 | E176: 2429.93 | F176: 2374.97 | G176: 2341.83 | H176: 2518.03 | I176: 2551.17 | J176: 2606.13 | K176: 2496.2 | L176: 2408.1 | M176: 10.58898
A177: 168 | B177: SHREECEM | C177: 18872.6 | D177: 18855.18 | E177: 18617.42 | F177: 18362.23 | G177: 18124.47 | H177: 19110.37 | I177: 19348.13 | J177: 19603.32 | K177: 19092.95 | L177: 18600 | M177: 0.55872
A178: 169 | B178: SRTRANSFIN | C178: 1208 | D178: 1207.85 | E178: 1195.80 | F178: 1183.60 | G178: 1171.55 | H178: 1220.05 | I178: 1232.10 | J178: 1244.30 | K178: 1219.9 | L178: 1195.65 | M178: 7.21456
A179: 170 | B179: SIEMENS | C179: 1141.35 | D179: 1147.80 | E179: 1129.70 | F179: 1118.05 | G179: 1099.95 | H179: 1159.45 | I179: 1177.55 | J179: 1189.20 | K179: 1165.9 | L179: 1136.15 | M179: 4.46671
A180: 171 | B180: SBIN | C180: 321.8 | D180: 321.95 | E180: 318.15 | F180: 314.50 | G180: 310.70 | H180: 325.60 | I180: 329.40 | J180: 333.05 | K180: 325.75 | L180: 318.3 | M180: 278.32294
A181: 172 | B181: SAIL | C181: 58.15 | D181: 57.62 | E181: 56.58 | F181: 55.02 | G181: 53.98 | H181: 59.18 | I181: 60.22 | J181: 61.78 | K181: 58.65 | L181: 56.05 | M181: 424.00816
A182: 173 | B182: SPARC | C182: 184.75 | D182: 185.52 | E182: 181.23 | F182: 177.72 | G182: 173.43 | H182: 189.03 | I182: 193.32 | J182: 196.83 | K182: 189.8 | L182: 182 | M182: 3.06261
A183: 174 | B183: SUNPHARMA | C183: 465.6 | D183: 465.00 | E183: 460.10 | F183: 454.60 | G183: 449.70 | H183: 470.50 | I183: 475.40 | J183: 480.90 | K183: 469.9 | L183: 459.5 | M183: 41.51406
A184: 175 | B184: SUNTV | C184: 627.4 | D184: 630.10 | E184: 620.30 | F184: 613.20 | G184: 603.40 | H184: 637.20 | I184: 647.00 | J184: 654.10 | K184: 639.9 | L184: 623 | M184: 16.84174
A185: 176 | B185: SUZLON | C185: 6.7 | D185: 6.58 | E185: 6.32 | F185: 5.93 | G185: 5.67 | H185: 6.97 | I185: 7.23 | J185: 7.62 | K185: 6.85 | L185: 6.2 | M185: 949.31087
A186: 177 | B186: SYNDIBANK | C186: 43.25 | D186: 43.28 | E186: 42.37 | F186: 41.48 | G186: 40.57 | H186: 44.17 | I186: 45.08 | J186: 45.97 | K186: 44.2 | L186: 42.4 | M186: 85.83609
A187: 178 | B187: SYNGENE | C187: 580.55 | D187: 582.25 | E187: 574.00 | F187: 567.45 | G187: 559.20 | H187: 588.80 | I187: 597.05 | J187: 603.60 | K187: 590.5 | L187: 575.7 | M187: 0.23725
A188: 179 | B188: TV18BRDCST | C188: 34.9 | D188: 35.07 | E188: 34.43 | F188: 33.97 | G188: 33.33 | H188: 35.53 | I188: 36.17 | J188: 36.63 | K188: 35.7 | L188: 34.6 | M188: 48.12081
A189: 180 | B189: TVSMOTOR | C189: 488.05 | D189: 488.72 | E189: 482.73 | F189: 477.42 | G189: 471.43 | H189: 494.03 | I189: 500.02 | J189: 505.33 | K189: 494.7 | L189: 483.4 | M189: 11.13778
A190: 181 | B190: TATACHEM | C190: 604.8 | D190: 600.33 | E190: 592.67 | F190: 580.53 | G190: 572.87 | H190: 612.47 | I190: 620.13 | J190: 632.27 | K190: 608 | L190: 588.2 | M190: 11.57381
A191: 182 | B191: TATACOMM | C191: 595.75 | D191: 596.17 | E191: 589.68 | F191: 583.62 | G191: 577.13 | H191: 602.23 | I191: 608.72 | J191: 614.78 | K191: 602.65 | L191: 590.1 | M191: 1.65815
A192: 183 | B192: TCS | C192: 2014.5 | D192: 2033.87 | E192: 1988.03 | F192: 1961.57 | G192: 1915.73 | H192: 2060.33 | I192: 2106.17 | J192: 2132.63 | K192: 2079.7 | L192: 2007.4 | M192: 43.97518
A193: 184 | B193: TATAGLOBAL | C193: 211.35 | D193: 209.80 | E193: 207.20 | F193: 203.05 | G193: 200.45 | H193: 213.95 | I193: 216.55 | J193: 220.70 | K193: 212.4 | L193: 205.65 | M193: 20.89235
A194: 185 | B194: TATAMTRDVR | C194: 97.65 | D194: 97.47 | E194: 96.68 | F194: 95.72 | G194: 94.93 | H194: 98.43 | I194: 99.22 | J194: 100.18 | K194: 98.25 | L194: 96.5 | M194: 89.80035
A195: 186 | B195: TATAMOTORS | C195: 206.15 | D195: 204.70 | E195: 202.50 | F195: 198.85 | G195: 196.65 | H195: 208.35 | I195: 210.55 | J195: 214.20 | K195: 206.9 | L195: 201.05 | M195: 412.68908
A196: 187 | B196: TATAPOWER | C196: 70.75 | D196: 71.13 | E196: 69.87 | F196: 68.98 | G196: 67.72 | H196: 72.02 | I196: 73.28 | J196: 74.17 | K196: 72.4 | L196: 70.25 | M196: 64.16069
A197: 188 | B197: TATASTEEL | C197: 530.65 | D197: 531.52 | E197: 525.63 | F197: 520.62 | G197: 514.73 | H197: 536.53 | I197: 542.42 | J197: 547.43 | K197: 537.4 | L197: 526.5 | M197: 52.59917
A198: 189 | B198: TECHM | C198: 774.5 | D198: 774.50 | E198: 767.25 | F198: 760.00 | G198: 752.75 | H198: 781.75 | I198: 789.00 | J198: 796.25 | K198: 781.75 | L198: 767.25 | M198: 17.51584
A199: 190 | B199: RAMCOCEM | C199: 751.7 | D199: 749.62 | E199: 740.58 | F199: 729.47 | G199: 720.43 | H199: 760.73 | I199: 769.77 | J199: 780.88 | K199: 758.65 | L199: 738.5 | M199: 3.61351
A200: 191 | B200: TITAN | C200: 1106.1 | D200: 1107.67 | E200: 1092.73 | F200: 1079.37 | G200: 1064.43 | H200: 1121.03 | I200: 1135.97 | J200: 1149.33 | K200: 1122.6 | L200: 1094.3 | M200: 24.63998
A201: 192 | B201: TORNTPHARM | C201: 1900.1 | D201: 1906.20 | E201: 1889.00 | F201: 1877.90 | G201: 1860.70 | H201: 1917.30 | I201: 1934.50 | J201: 1945.60 | K201: 1923.4 | L201: 1895.1 | M201: 2.7561
A202: 193 | B202: TORNTPOWER | C202: 262.55 | D202: 260.85 | E202: 258.35 | F202: 254.15 | G202: 251.65 | H202: 265.05 | I202: 267.55 | J202: 271.75 | K202: 263.35 | L202: 256.65 | M202: 4.41285
A203: 194 | B203: UPL | C203: 931.5 | D203: 922.60 | E203: 909.90 | F203: 888.30 | G203: 875.60 | H203: 944.20 | I203: 956.90 | J203: 978.50 | K203: 935.3 | L203: 901 | M203: 23.77767
A204: 195 | B204: ULTRACEMCO | C204: 4079.95 | D204: 4064.52 | E204: 4017.03 | F204: 3954.12 | G204: 3906.63 | H204: 4127.43 | I204: 4174.92 | J204: 4237.83 | K204: 4112 | L204: 4001.6 | M204: 7.13853
A205: 196 | B205: UNIONBANK | C205: 92.35 | D205: 93.57 | E205: 90.63 | F205: 88.92 | G205: 85.98 | H205: 95.28 | I205: 98.22 | J205: 99.93 | K205: 96.5 | L205: 91.85 | M205: 177.14646
... 29 more rows

Sheet MidCap Intra
L5: Back To Main Page
A6: FOR INTRA DAY TRADING | K6: =Main!B10 -> 2019-04-05
A9: Sr.no | B9: Scrip | C9: CLOSE RATE | D9: Pivot Point | E9: Supports | H9: Resistances
C10: Point | E10: S1 | F10: S2 | G10: S3 | H10: R1 | I10: R2 | J10: R3 | K10: HIGH | L10: LOW | M10: Total Trade Quanity in Lakhs
A11: 1 | B11: 3MINDIA | C11: 23654.9 | D11: 23831.63 | E11: 23423.27 | F11: 23191.63 | G11: 22783.27 | H11: 24063.27 | I11: 24471.63 | J11: 24703.27 | K11: 24240 | L11: 23600 | M11: 0.01008
A12: 2 | B12: 8KMILES | C12: 105.3 | D12: 103.63 | E12: 101.97 | F12: 98.63 | G12: 96.97 | H12: 106.97 | I12: 108.63 | J12: 111.97 | K12: 105.3 | L12: 100.3 | M12: 7.79395
A13: 3 | B13: AARTIIND | C13: 1586.2 | D13: 1580.40 | E13: 1570.80 | F13: 1555.40 | G13: 1545.80 | H13: 1595.80 | I13: 1605.40 | J13: 1620.80 | K13: 1590 | L13: 1565 | M13: 0.55925
A14: 4 | B14: ABAN | C14: 58.9 | D14: 59.20 | E14: 57.90 | F14: 56.90 | G14: 55.60 | H14: 60.20 | I14: 61.50 | J14: 62.50 | K14: 60.5 | L14: 58.2 | M14: 0.54358
A15: 5 | B15: ABB | C15: 1325.45 | D15: 1324.47 | E15: 1310.98 | F15: 1296.52 | G15: 1283.03 | H15: 1338.93 | I15: 1352.42 | J15: 1366.88 | K15: 1337.95 | L15: 1310 | M15: 0.40925
A16: 6 | B16: ABCAPITAL | C16: 98.35 | D16: 99.12 | E16: 97.23 | F16: 96.12 | G16: 94.23 | H16: 100.23 | I16: 102.12 | J16: 103.23 | K16: 101 | L16: 98 | M16: 28.77367
A17: 7 | B17: ABFRL | C17: 220.05 | D17: 219.88 | E17: 218.27 | F17: 216.48 | G17: 214.87 | H17: 221.67 | I17: 223.28 | J17: 225.07 | K17: 221.5 | L17: 218.1 | M17: 4.80266
A18: 8 | B18: ACC | C18: 1628.85 | D18: 1632.58 | E18: 1613.02 | F18: 1597.18 | G18: 1577.62 | H18: 1648.42 | I18: 1667.98 | J18: 1683.82 | K18: 1652.15 | L18: 1616.75 | M18: 12.82592
A19: 9 | B19: ADANIPORTS | C19: 380.2 | D19: 378.98 | E19: 375.92 | F19: 371.63 | G19: 368.57 | H19: 383.27 | I19: 386.33 | J19: 390.62 | K19: 382.05 | L19: 374.7 | M19: 19.09852
A20: 10 | B20: ADANIPOWER | C20: 47.95 | D20: 48.43 | E20: 47.27 | F20: 46.58 | G20: 45.42 | H20: 49.12 | I20: 50.28 | J20: 50.97 | K20: 49.6 | L20: 47.75 | M20: 122.99012
A21: 11 | B21: ADANITRANS | C21: 221.8 | D21: 221.03 | E21: 219.77 | F21: 217.73 | G21: 216.47 | H21: 223.07 | I21: 224.33 | J21: 226.37 | K21: 222.3 | L21: 219 | M21: 0.79401
A22: 12 | B22: ADVENZYMES | C22: 185.1 | D22: 184.27 | E22: 180.53 | F22: 175.97 | G22: 172.23 | H22: 188.83 | I22: 192.57 | J22: 197.13 | K22: 188 | L22: 179.7 | M22: 2.98375
A23: 13 | B23: AEGISCHEM | C23: 203.9 | D23: 202.48 | E23: 199.87 | F23: 195.83 | G23: 193.22 | H23: 206.52 | I23: 209.13 | J23: 213.17 | K23: 205.1 | L23: 198.45 | M23: 1.50845
A24: 14 | B24: AIAENG | C24: 1706.3 | D24: 1711.23 | E24: 1696.12 | F24: 1685.93 | G24: 1670.82 | H24: 1721.42 | I24: 1736.53 | J24: 1746.72 | K24: 1726.35 | L24: 1701.05 | M24: 0.11091
A25: 15 | B25: AJANTPHARM | C25: 1020.75 | D25: 1019.83 | E25: 1009.67 | F25: 998.58 | G25: 988.42 | H25: 1030.92 | I25: 1041.08 | J25: 1052.17 | K25: 1030 | L25: 1008.75 | M25: 1.43511
A26: 16 | B26: AKZOINDIA | C26: 1834.95 | D26: 1822.67 | E26: 1785.33 | F26: 1735.72 | G26: 1698.38 | H26: 1872.28 | I26: 1909.62 | J26: 1959.23 | K26: 1860 | L26: 1773.05 | M26: 0.19116
A27: 17 | B27: ALBK | C27: 53.5 | D27: 53.73 | E27: 52.52 | F27: 51.53 | G27: 50.32 | H27: 54.72 | I27: 55.93 | J27: 56.92 | K27: 54.95 | L27: 52.75 | M27: 70.12985
A28: 18 | B28: ALKEM | C28: 1756.9 | D28: 1751.13 | E28: 1740.27 | F28: 1723.63 | G28: 1712.77 | H28: 1767.77 | I28: 1778.63 | J28: 1795.27 | K28: 1762 | L28: 1734.5 | M28: 0.46718
A29: 19 | B29: ALLCARGO | C29: 109.3 | D29: 110.00 | E29: 108.30 | F29: 107.30 | G29: 105.60 | H29: 111.00 | I29: 112.70 | J29: 113.70 | K29: 111.7 | L29: 109 | M29: 1.5773
A30: 20 | B30: AMARAJABAT | C30: 676.15 | D30: 677.38 | E30: 656.77 | F30: 637.38 | G30: 616.77 | H30: 696.77 | I30: 717.38 | J30: 736.77 | K30: 698 | L30: 658 | M30: 92.73076
A31: 21 | B31: AMBUJACEM | C31: 222.6 | D31: 224.67 | E31: 219.98 | F31: 217.37 | G31: 212.68 | H31: 227.28 | I31: 231.97 | J31: 234.58 | K31: 229.35 | L31: 222.05 | M31: 110.11371
A32: 22 | B32: ANDHRABANK | C32: 30.75 | D32: 30.77 | E32: 30.23 | F32: 29.72 | G32: 29.18 | H32: 31.28 | I32: 31.82 | J32: 32.33 | K32: 31.3 | L32: 30.25 | M32: 21.68299
A33: 23 | B33: APLAPOLLO | C33: 1442.4 | D33: 1446.78 | E33: 1399.22 | F33: 1356.03 | G33: 1308.47 | H33: 1489.97 | I33: 1537.53 | J33: 1580.72 | K33: 1494.35 | L33: 1403.6 | M33: 0.13174
A34: 24 | B34: APLLTD | C34: 537.1 | D34: 534.72 | E34: 527.43 | F34: 517.77 | G34: 510.48 | H34: 544.38 | I34: 551.67 | J34: 561.33 | K34: 542 | L34: 525.05 | M34: 0.06868
A35: 25 | B35: APOLLOHOSP | C35: 1256.25 | D35: 1258.10 | E35: 1247.20 | F35: 1238.15 | G35: 1227.25 | H35: 1267.15 | I35: 1278.05 | J35: 1287.10 | K35: 1269 | L35: 1249.05 | M35: 2.36648
A36: 26 | B36: APOLLOTYRE | C36: 222.9 | D36: 221.15 | E36: 218.75 | F36: 214.60 | G36: 212.20 | H36: 225.30 | I36: 227.70 | J36: 231.85 | K36: 223.55 | L36: 217 | M36: 23.44897
A37: 27 | B37: ARVIND | C37: 91.75 | D37: 91.43 | E37: 89.77 | F37: 87.78 | G37: 86.12 | H37: 93.42 | I37: 95.08 | J37: 97.07 | K37: 93.1 | L37: 89.45 | M37: 33.98829
A38: 28 | B38: ASAHIINDIA | C38: 249.4 | D38: 251.03 | E38: 245.62 | F38: 241.83 | G38: 236.42 | H38: 254.82 | I38: 260.23 | J38: 264.02 | K38: 256.45 | L38: 247.25 | M38: 0.21342
A39: 29 | B39: ASHOKA | C39: 127.8 | D39: 128.90 | E39: 124.90 | F39: 122.00 | G39: 118.00 | H39: 131.80 | I39: 135.80 | J39: 138.70 | K39: 132.9 | L39: 126 | M39: 2.3175
A40: 30 | B40: ASHOKLEY | C40: 87.45 | D40: 87.75 | E40: 86.70 | F40: 85.95 | G40: 84.90 | H40: 88.50 | I40: 89.55 | J40: 90.30 | K40: 88.8 | L40: 87 | M40: 193.28175
A41: 31 | B41: ASIANPAINT | C41: 1519 | D41: 1515.67 | E41: 1506.33 | F41: 1493.67 | G41: 1484.33 | H41: 1528.33 | I41: 1537.67 | J41: 1550.33 | K41: 1525 | L41: 1503 | M41: 14.09222
A42: 32 | B42: ASTRAL | C42: 1167.1 | D42: 1169.77 | E42: 1160.58 | F42: 1154.07 | G42: 1144.88 | H42: 1176.28 | I42: 1185.47 | J42: 1191.98 | K42: 1178.95 | L42: 1163.25 | M42: 0.12464
A43: 33 | B43: ATUL | C43: 3531.3 | D43: 3523.77 | E43: 3492.53 | F43: 3453.77 | G43: 3422.53 | H43: 3562.53 | I43: 3593.77 | J43: 3632.53 | K43: 3555 | L43: 3485 | M43: 0.08951
A44: 34 | B44: AUBANK | C44: 601.2 | D44: 597.93 | E44: 588.47 | F44: 575.73 | G44: 566.27 | H44: 610.67 | I44: 620.13 | J44: 632.87 | K44: 607.4 | L44: 585.2 | M44: 1.47728
A45: 35 | B45: AUROPHARMA | C45: 784.35 | D45: 782.22 | E45: 774.93 | F45: 765.52 | G45: 758.23 | H45: 791.63 | I45: 798.92 | J45: 808.33 | K45: 789.5 | L45: 772.8 | M45: 12.7749
A46: 36 | B46: AVANTIFEED | C46: 399.65 | D46: 402.02 | E46: 394.13 | F46: 388.62 | G46: 380.73 | H46: 407.53 | I46: 415.42 | J46: 420.93 | K46: 409.9 | L46: 396.5 | M46: 3.33043
A47: 37 | B47: AXISBANK | C47: 762.15 | D47: 764.68 | E47: 757.47 | F47: 752.78 | G47: 745.57 | H47: 769.37 | I47: 776.58 | J47: 781.27 | K47: 771.9 | L47: 760 | M47: 70.09879
A48: 38 | B48: BAJAJ-AUTO | C48: 2859.1 | D48: 2864.38 | E48: 2844.72 | F48: 2830.33 | G48: 2810.67 | H48: 2878.77 | I48: 2898.43 | J48: 2912.82 | K48: 2884.05 | L48: 2850 | M48: 6.62281
A49: 39 | B49: BAJAJCON | C49: 317.3 | D49: 316.40 | E49: 314.30 | F49: 311.30 | G49: 309.20 | H49: 319.40 | I49: 321.50 | J49: 324.50 | K49: 318.5 | L49: 313.4 | M49: 0.57769
A50: 40 | B50: BAJAJELEC | C50: 538.3 | D50: 542.32 | E50: 530.98 | F50: 523.67 | G50: 512.33 | H50: 549.63 | I50: 560.97 | J50: 568.28 | K50: 553.65 | L50: 535 | M50: 1.82579
A51: 41 | B51: BAJAJFINSV | C51: 7318.55 | D51: 7340.85 | E51: 7259.70 | F51: 7200.85 | G51: 7119.70 | H51: 7399.70 | I51: 7480.85 | J51: 7539.70 | K51: 7422 | L51: 7282 | M51: 2.02173
A52: 42 | B52: BAJAJHIND | C52: 8.15 | D52: 8.13 | E52: 8.07 | F52: 7.98 | G52: 7.92 | H52: 8.22 | I52: 8.28 | J52: 8.37 | K52: 8.2 | L52: 8.05 | M52: 7.56931
A53: 43 | B53: BAJAJHLDNG | C53: 3326.15 | D53: 3343.23 | E53: 3253.47 | F53: 3180.78 | G53: 3091.02 | H53: 3415.92 | I53: 3505.68 | J53: 3578.37 | K53: 3433 | L53: 3270.55 | M53: 0.47065
A54: 44 | B54: BAJFINANCE | C54: 3039.45 | D54: 3040.63 | E54: 3016.27 | F54: 2993.08 | G54: 2968.72 | H54: 3063.82 | I54: 3088.18 | J54: 3111.37 | K54: 3065 | L54: 3017.45 | M54: 7.72776
A55: 45 | B55: BALKRISIND | C55: 985.55 | D55: 989.45 | E55: 977.90 | F55: 970.25 | G55: 958.70 | H55: 997.10 | I55: 1008.65 | J55: 1016.30 | K55: 1001 | L55: 981.8 | M55: 2.11392
A56: 46 | B56: BALLARPUR | C56: 3.5 | D56: 3.43 | E56: 3.37 | F56: 3.23 | G56: 3.17 | H56: 3.57 | I56: 3.63 | J56: 3.77 | K56: 3.5 | L56: 3.3 | M56: 64.84507
A57: 47 | B57: BALMLAWRIE | C57: 185.65 | D57: 185.85 | E57: 184.70 | F57: 183.75 | G57: 182.60 | H57: 186.80 | I57: 187.95 | J57: 188.90 | K57: 187 | L57: 184.9 | M57: 0.16765
A58: 48 | B58: BALRAMCHIN | C58: 137.5 | D58: 137.52 | E58: 135.58 | F58: 133.67 | G58: 131.73 | H58: 139.43 | I58: 141.37 | J58: 143.28 | K58: 139.45 | L58: 135.6 | M58: 11.45831
A59: 49 | B59: BANKBARODA | C59: 131.2 | D59: 131.80 | E59: 129.60 | F59: 128.00 | G59: 125.80 | H59: 133.40 | I59: 135.60 | J59: 137.20 | K59: 134 | L59: 130.2 | M59: 250.22512
A60: 50 | B60: BANKINDIA | C60: 101.1 | D60: 102.07 | E60: 99.53 | F60: 97.97 | G60: 95.43 | H60: 103.63 | I60: 106.17 | J60: 107.73 | K60: 104.6 | L60: 100.5 | M60: 117.02884
A61: 51 | B61: BASF | C61: 1413.6 | D61: 1406.08 | E61: 1382.52 | F61: 1351.43 | G61: 1327.87 | H61: 1437.17 | I61: 1460.73 | J61: 1491.82 | K61: 1429.65 | L61: 1375 | M61: 0.11647
A62: 52 | B62: BATAINDIA | C62: 1401.3 | D62: 1397.30 | E62: 1389.10 | F62: 1376.90 | G62: 1368.70 | H62: 1409.50 | I62: 1417.70 | J62: 1429.90 | K62: 1405.5 | L62: 1385.1 | M62: 4.54117
A63: 53 | B63: BBTC | C63: 1293.05 | D63: 1289.30 | E63: 1276.75 | F63: 1260.45 | G63: 1247.90 | H63: 1305.60 | I63: 1318.15 | J63: 1334.45 | K63: 1301.85 | L63: 1273 | M63: 0.47214
A64: 54 | B64: BEL | C64: 97.35 | D64: 97.48 | E64: 95.97 | F64: 94.58 | G64: 93.07 | H64: 98.87 | I64: 100.38 | J64: 101.77 | K64: 99 | L64: 96.1 | M64: 124.49954
A65: 55 | B65: BEML | C65: 982.8 | D65: 991.52 | E65: 971.28 | F65: 959.77 | G65: 939.53 | H65: 1003.03 | I65: 1023.27 | J65: 1034.78 | K65: 1011.75 | L65: 980 | M65: 13.42349
A66: 56 | B66: BERGEPAINT | C66: 331.75 | D66: 330.80 | E66: 328.70 | F66: 325.65 | G66: 323.55 | H66: 333.85 | I66: 335.95 | J66: 339.00 | K66: 332.9 | L66: 327.75 | M66: 2.80347
A67: 57 | B67: BFUTILITIE | C67: 195.05 | D67: 197.00 | E67: 191.10 | F67: 187.15 | G67: 181.25 | H67: 200.95 | I67: 206.85 | J67: 210.80 | K67: 202.9 | L67: 193.05 | M67: 5.07027
A68: 58 | B68: BGRENERGY | C68: 60.95 | D68: 61.35 | E68: 59.70 | F68: 58.45 | G68: 56.80 | H68: 62.60 | I68: 64.25 | J68: 65.50 | K68: 63 | L68: 60.1 | M68: 1.18935
A69: 59 | B69: BHARATFIN | C69: 1101.05 | D69: 1107.52 | E69: 1088.73 | F69: 1076.42 | G69: 1057.63 | H69: 1119.83 | I69: 1138.62 | J69: 1150.93 | K69: 1126.3 | L69: 1095.2 | M69: 4.2505
A70: 60 | B70: BHARATFORG | C70: 507.95 | D70: 505.63 | E70: 500.82 | F70: 493.68 | G70: 488.87 | H70: 512.77 | I70: 517.58 | J70: 524.72 | K70: 510.45 | L70: 498.5 | M70: 7.50092
A71: 61 | B71: BHARTIARTL | C71: 356.8 | D71: 356.10 | E71: 352.70 | F71: 348.60 | G71: 345.20 | H71: 360.20 | I71: 363.60 | J71: 367.70 | K71: 359.5 | L71: 352 | M71: 109.66638
A72: 62 | B72: BHEL | C72: 73.2 | D72: 73.38 | E72: 71.82 | F72: 70.43 | G72: 68.87 | H72: 74.77 | I72: 76.33 | J72: 77.72 | K72: 74.95 | L72: 72 | M72: 136.97381
A73: 63 | B73: BIOCON | C73: 612.75 | D73: 610.88 | E73: 607.32 | F73: 601.88 | G73: 598.32 | H73: 616.32 | I73: 619.88 | J73: 625.32 | K73: 614.45 | L73: 605.45 | M73: 6.16733
A74: 64 | B74: BIRLACORPN | C74: 522.2 | D74: 520.07 | E74: 515.13 | F74: 508.07 | G74: 503.13 | H74: 527.13 | I74: 532.07 | J74: 539.13 | K74: 525 | L74: 513 | M74: 0.60183
A75: 65 | B75: BLISSGVS | C75: 177.85 | D75: 177.88 | E75: 175.72 | F75: 173.58 | G75: 171.42 | H75: 180.02 | I75: 182.18 | J75: 184.32 | K75: 180.05 | L75: 175.75 | M75: 8.36309
A76: 66 | B76: BLUEDART | C76: 3345.9 | D76: 3348.87 | E76: 3287.03 | F76: 3228.17 | G76: 3166.33 | H76: 3407.73 | I76: 3469.57 | J76: 3528.43 | K76: 3410.7 | L76: 3290 | M76: 0.03987
A77: 67 | B77: BLUESTARCO | C77: 698.6 | D77: 692.00 | E77: 680.50 | F77: 662.40 | G77: 650.90 | H77: 710.10 | I77: 721.60 | J77: 739.70 | K77: 703.5 | L77: 673.9 | M77: 0.52101
A78: 68 | B78: BOMDYEING | C78: 143.05 | D78: 142.57 | E78: 138.48 | F78: 133.92 | G78: 129.83 | H78: 147.13 | I78: 151.22 | J78: 155.78 | K78: 146.65 | L78: 138 | M78: 71.35539
A79: 69 | B79: BOSCHLTD | C79: 17832.3 | D79: 17886.77 | E79: 17721.48 | F79: 17610.67 | G79: 17445.38 | H79: 17997.58 | I79: 18162.87 | J79: 18273.68 | K79: 18052.05 | L79: 17775.95 | M79: 0.24726
A80: 70 | B80: BPCL | C80: 354.3 | D80: 356.93 | E80: 350.87 | F80: 347.43 | G80: 341.37 | H80: 360.37 | I80: 366.43 | J80: 369.87 | K80: 363 | L80: 353.5 | M80: 101.99796
A81: 71 | B81: BRFL | C81: 9.15 | D81: 9.17 | E81: 8.98 | F81: 8.82 | G81: 8.63 | H81: 9.33 | I81: 9.52 | J81: 9.68 | K81: 9.35 | L81: 9 | M81: 0.12529
A82: 72 | B82: BRIGADE | C82: 243.1 | D82: 245.43 | E82: 238.77 | F82: 234.43 | G82: 227.77 | H82: 249.77 | I82: 256.43 | J82: 260.77 | K82: 252.1 | L82: 241.1 | M82: 0.75357
A83: 73 | B83: BRITANNIA | C83: 3041.8 | D83: 3026.98 | E83: 2998.97 | F83: 2956.13 | G83: 2928.12 | H83: 3069.82 | I83: 3097.83 | J83: 3140.67 | K83: 3055 | L83: 2984.15 | M83: 4.6443
A84: 74 | B84: BSE | C84: 607.8 | D84: 608.60 | E84: 606.20 | F84: 604.60 | G84: 602.20 | H84: 610.20 | I84: 612.60 | J84: 614.20 | K84: 611 | L84: 607 | M84: 0.9652
A85: 75 | B85: BSOFT | C85: 100.15 | D85: 100.05 | E85: 99.20 | F85: 98.25 | G85: 97.40 | H85: 101.00 | I85: 101.85 | J85: 102.80 | K85: 100.9 | L85: 99.1 | M85: 5.01702
A86: 77 | B86: CADILAHC | C86: 344.4 | D86: 342.62 | E86: 339.23 | F86: 334.07 | G86: 330.68 | H86: 347.78 | I86: 351.17 | J86: 356.33 | K86: 346 | L86: 337.45 | M86: 5.54711
A87: 78 | B87: CANBK | C87: 281.8 | D87: 284.17 | E87: 278.38 | F87: 274.97 | G87: 269.18 | H87: 287.58 | I87: 293.37 | J87: 296.78 | K87: 289.95 | L87: 280.75 | M87: 74.89602
A88: 79 | B88: CANFINHOME | C88: 347.1 | D88: 348.92 | E88: 341.23 | F88: 335.37 | G88: 327.68 | H88: 354.78 | I88: 362.47 | J88: 368.33 | K88: 356.6 | L88: 343.05 | M88: 23.2829
A89: 80 | B89: CAPLIPOINT | C89: 396.55 | D89: 399.52 | E89: 393.03 | F89: 389.52 | G89: 383.03 | H89: 403.03 | I89: 409.52 | J89: 413.03 | K89: 406 | L89: 396 | M89: 0.19216
A90: 81 | B90: CARBORUNIV | C90: 389.2 | D90: 391.17 | E90: 384.53 | F90: 379.87 | G90: 373.23 | H90: 395.83 | I90: 402.47 | J90: 407.13 | K90: 397.8 | L90: 386.5 | M90: 0.32183
A91: 82 | B91: CARERATING | C91: 989.3 | D91: 989.63 | E91: 984.27 | F91: 979.23 | G91: 973.87 | H91: 994.67 | I91: 1000.03 | J91: 1005.07 | K91: 995 | L91: 984.6 | M91: 0.15208
A92: 83 | B92: CASTROLIND | C92: 166.3 | D92: 167.08 | E92: 164.22 | F92: 162.13 | G92: 159.27 | H92: 169.17 | I92: 172.03 | J92: 174.12 | K92: 169.95 | L92: 165 | M92: 26.69889
A93: 84 | B93: CCL | C93: 285.65 | D93: 284.62 | E93: 281.48 | F93: 277.32 | G93: 274.18 | H93: 288.78 | I93: 291.92 | J93: 296.08 | K93: 287.75 | L93: 280.45 | M93: 0.34692
A94: 85 | B94: CDSL | C94: 232.15 | D94: 233.78 | E94: 228.37 | F94: 224.58 | G94: 219.17 | H94: 237.57 | I94: 242.98 | J94: 246.77 | K94: 239.2 | L94: 230 | M94: 2.46338
A95: 86 | B95: CEATLTD | C95: 1111.85 | D95: 1110.10 | E95: 1101.75 | F95: 1091.65 | G95: 1083.30 | H95: 1120.20 | I95: 1128.55 | J95: 1138.65 | K95: 1118.45 | L95: 1100 | M95: 3.82596
A96: 87 | B96: CENTRALBK | C96: 35.15 | D96: 35.23 | E96: 34.77 | F96: 34.38 | G96: 33.92 | H96: 35.62 | I96: 36.08 | J96: 36.47 | K96: 35.7 | L96: 34.85 | M96: 6.58135
A97: 88 | B97: CENTURYPLY | C97: 205.65 | D97: 206.05 | E97: 201.70 | F97: 197.75 | G97: 193.40 | H97: 210.00 | I97: 214.35 | J97: 218.30 | K97: 210.4 | L97: 202.1 | M97: 1.01432
A98: 89 | B98: CENTURYTEX | C98: 912.6 | D98: 910.78 | E98: 904.57 | F98: 896.53 | G98: 890.32 | H98: 918.82 | I98: 925.03 | J98: 933.07 | K98: 917 | L98: 902.75 | M98: 5.97677
A99: 90 | B99: CERA | C99: 2784.65 | D99: 2808.03 | E99: 2746.62 | F99: 2708.58 | G99: 2647.17 | H99: 2846.07 | I99: 2907.48 | J99: 2945.52 | K99: 2869.45 | L99: 2770 | M99: 0.41274
A100: 91 | B100: CGPOWER | C100: 39.6 | D100: 39.95 | E100: 38.95 | F100: 38.30 | G100: 37.30 | H100: 40.60 | I100: 41.60 | J100: 42.25 | K100: 40.95 | L100: 39.3 | M100: 76.46415
A101: 92 | B101: CHAMBLFERT | C101: 165.9 | D101: 165.28 | E101: 163.57 | F101: 161.23 | G101: 159.52 | H101: 167.62 | I101: 169.33 | J101: 171.67 | K101: 167 | L101: 162.95 | M101: 2.16747
A102: 93 | B102: CHENNPETRO | C102: 263.75 | D102: 262.25 | E102: 259.50 | F102: 255.25 | G102: 252.50 | H102: 266.50 | I102: 269.25 | J102: 273.50 | K102: 265 | L102: 258 | M102: 3.2059
A103: 94 | B103: CHOLAFIN | C103: 1453.25 | D103: 1459.03 | E103: 1430.97 | F103: 1408.68 | G103: 1380.62 | H103: 1481.32 | I103: 1509.38 | J103: 1531.67 | K103: 1487.1 | L103: 1436.75 | M103: 3.77779
A104: 95 | B104: CIPLA | C104: 521 | D104: 520.17 | E104: 518.33 | F104: 515.67 | G104: 513.83 | H104: 522.83 | I104: 524.67 | J104: 527.33 | K104: 522 | L104: 517.5 | M104: 55.55991
A105: 96 | B105: COALINDIA | C105: 234.8 | D105: 234.30 | E105: 233.05 | F105: 231.30 | G105: 230.05 | H105: 236.05 | I105: 237.30 | J105: 239.05 | K105: 235.55 | L105: 232.55 | M105: 39.48463
A106: 97 | B106: COCHINSHIP | C106: 388.7 | D106: 389.82 | E106: 384.88 | F106: 381.07 | G106: 376.13 | H106: 393.63 | I106: 398.57 | J106: 402.38 | K106: 394.75 | L106: 386 | M106: 0.79947
A107: 98 | B107: COFFEEDAY | C107: 275.6 | D107: 276.20 | E107: 272.40 | F107: 269.20 | G107: 265.40 | H107: 279.40 | I107: 283.20 | J107: 286.40 | K107: 280 | L107: 273 | M107: 1.2071
A108: 99 | B108: COLPAL | C108: 1250.5 | D108: 1249.35 | E108: 1243.15 | F108: 1235.80 | G108: 1229.60 | H108: 1256.70 | I108: 1262.90 | J108: 1270.25 | K108: 1255.55 | L108: 1242 | M108: 2.99836
A109: 100 | B109: CONCOR | C109: 532.1 | D109: 531.98 | E109: 526.47 | F109: 520.83 | G109: 515.32 | H109: 537.62 | I109: 543.13 | J109: 548.77 | K109: 537.5 | L109: 526.35 | M109: 7.01627
A110: 101 | B110: COROMANDEL | C110: 455.1 | D110: 460.48 | E110: 447.77 | F110: 440.43 | G110: 427.72 | H110: 467.82 | I110: 480.53 | J110: 487.87 | K110: 473.2 | L110: 453.15 | M110: 2.72605
A111: 102 | B111: COX&KINGS | C111: 132.95 | D111: 132.98 | E111: 131.02 | F111: 129.08 | G111: 127.12 | H111: 134.92 | I111: 136.88 | J111: 138.82 | K111: 134.95 | L111: 131.05 | M111: 1.0743
A112: 103 | B112: CRISIL | C112: 1439.65 | D112: 1433.22 | E112: 1421.43 | F112: 1403.22 | G112: 1391.43 | H112: 1451.43 | I112: 1463.22 | J112: 1481.43 | K112: 1445 | L112: 1415 | M112: 0.11711
A113: 104 | B113: CROMPTON | C113: 232.5 | D113: 232.30 | E113: 228.20 | F113: 223.90 | G113: 219.80 | H113: 236.60 | I113: 240.70 | J113: 245.00 | K113: 236.4 | L113: 228 | M113: 8.20955
A114: 105 | B114: CUB | C114: 203.25 | D114: 201.15 | E114: 198.30 | F114: 193.35 | G114: 190.50 | H114: 206.10 | I114: 208.95 | J114: 213.90 | K114: 204 | L114: 196.2 | M114: 6.49044
A115: 106 | B115: CUMMINSIND | C115: 715.85 | D115: 724.97 | E115: 705.68 | F115: 695.52 | G115: 676.23 | H115: 735.13 | I115: 754.42 | J115: 764.58 | K115: 744.25 | L115: 714.8 | M115: 5.66742
A116: 107 | B116: CYIENT | C116: 582.15 | D116: 584.05 | E116: 577.10 | F116: 572.05 | G116: 565.10 | H116: 589.10 | I116: 596.05 | J116: 601.10 | K116: 591 | L116: 579 | M116: 3.60612
A117: 108 | B117: DABUR | C117: 405.05 | D117: 405.03 | E117: 403.27 | F117: 401.48 | G117: 399.72 | H117: 406.82 | I117: 408.58 | J117: 410.37 | K117: 406.8 | L117: 403.25 | M117: 23.66959
A118: 109 | B118: DBCORP | C118: 187.55 | D118: 187.13 | E118: 185.57 | F118: 183.58 | G118: 182.02 | H118: 189.12 | I118: 190.68 | J118: 192.67 | K118: 188.7 | L118: 185.15 | M118: 0.20998
A119: 110 | B119: DBL | C119: 625.2 | D119: 629.07 | E119: 618.13 | F119: 611.07 | G119: 600.13 | H119: 636.13 | I119: 647.07 | J119: 654.13 | K119: 640 | L119: 622 | M119: 1.49296
A120: 111 | B120: DBREALTY | C120: 18.5 | D120: 18.95 | E120: 18.05 | F120: 17.60 | G120: 16.70 | H120: 19.40 | I120: 20.30 | J120: 20.75 | K120: 19.85 | L120: 18.5 | M120: 6.42685
A121: 112 | B121: DCAL | C121: 225.6 | D121: 223.20 | E121: 217.40 | F121: 209.20 | G121: 203.40 | H121: 231.40 | I121: 237.20 | J121: 245.40 | K121: 229 | L121: 215 | M121: 1.48275
A122: 113 | B122: DCBBANK | C122: 198.55 | D122: 198.93 | E122: 197.12 | F122: 195.68 | G122: 193.87 | H122: 200.37 | I122: 202.18 | J122: 203.62 | K122: 200.75 | L122: 197.5 | M122: 7.75809
A123: 114 | B123: DCMSHRIRAM | C123: 407.45 | D123: 407.48 | E123: 404.27 | F123: 401.08 | G123: 397.87 | H123: 410.67 | I123: 413.88 | J123: 417.07 | K123: 410.7 | L123: 404.3 | M123: 0.80616
A124: 115 | B124: DEEPAKFERT | C124: 131.55 | D124: 132.35 | E124: 129.85 | F124: 128.15 | G124: 125.65 | H124: 134.05 | I124: 136.55 | J124: 138.25 | K124: 134.85 | L124: 130.65 | M124: 1.88092
A125: 116 | B125: DELTACORP | C125: 263.45 | D125: 262.58 | E125: 260.27 | F125: 257.08 | G125: 254.77 | H125: 265.77 | I125: 268.08 | J125: 271.27 | K125: 264.9 | L125: 259.4 | M125: 10.38706
A126: 117 | B126: DEN | C126: 68.95 | D126: 68.87 | E126: 68.03 | F126: 67.12 | G126: 66.28 | H126: 69.78 | I126: 70.62 | J126: 71.53 | K126: 69.7 | L126: 67.95 | M126: 0.3153
A127: 118 | B127: DHFL | C127: 148.9 | D127: 148.72 | E127: 146.68 | F127: 144.47 | G127: 142.43 | H127: 150.93 | I127: 152.97 | J127: 155.18 | K127: 150.75 | L127: 146.5 | M127: 131.45366
A128: 119 | B128: DISHTV | C128: 39 | D128: 39.57 | E128: 37.68 | F128: 36.37 | G128: 34.48 | H128: 40.88 | I128: 42.77 | J128: 44.08 | K128: 41.45 | L128: 38.25 | M128: 594.3914
A129: 120 | B129: DIVISLAB | C129: 1701.05 | D129: 1696.95 | E129: 1679.90 | F129: 1658.75 | G129: 1641.70 | H129: 1718.10 | I129: 1735.15 | J129: 1756.30 | K129: 1714 | L129: 1675.8 | M129: 5.90246
A130: 121 | B130: DIXON | C130: 2385.3 | D130: 2375.77 | E130: 2333.63 | F130: 2281.97 | G130: 2239.83 | H130: 2427.43 | I130: 2469.57 | J130: 2521.23 | K130: 2417.9 | L130: 2324.1 | M130: 0.05803
A131: 122 | B131: DLF | C131: 200.85 | D131: 201.25 | E131: 197.70 | F131: 194.55 | G131: 191.00 | H131: 204.40 | I131: 207.95 | J131: 211.10 | K131: 204.8 | L131: 198.1 | M131: 141.67501
A132: 123 | B132: DMART | C132: 1443.6 | D132: 1450.78 | E132: 1420.07 | F132: 1396.53 | G132: 1365.82 | H132: 1474.32 | I132: 1505.03 | J132: 1528.57 | K132: 1481.5 | L132: 1427.25 | M132: 5.19069
A133: 124 | B133: DREDGECORP | C133: 419.1 | D133: 420.50 | E133: 413.35 | F133: 407.60 | G133: 400.45 | H133: 426.25 | I133: 433.40 | J133: 439.15 | K133: 427.65 | L133: 414.75 | M133: 1.5008
A134: 125 | B134: DRREDDY | C134: 2771.35 | D134: 2772.47 | E134: 2752.38 | F134: 2733.42 | G134: 2713.33 | H134: 2791.43 | I134: 2811.52 | J134: 2830.48 | K134: 2792.55 | L134: 2753.5 | M134: 4.38496
A135: 126 | B135: ECLERX | C135: 1133.65 | D135: 1135.43 | E135: 1130.32 | F135: 1126.98 | G135: 1121.87 | H135: 1138.77 | I135: 1143.88 | J135: 1147.22 | K135: 1140.55 | L135: 1132.1 | M135: 0.13598
A136: 127 | B136: EDELWEISS | C136: 186.85 | D136: 186.88 | E136: 184.12 | F136: 181.38 | G136: 178.62 | H136: 189.62 | I136: 192.38 | J136: 195.12 | K136: 189.65 | L136: 184.15 | M136: 11.14958
A137: 128 | B137: EICHERMOT | C137: 20489.55 | D137: 20336.85 | E137: 20073.70 | F137: 19657.85 | G137: 19394.70 | H137: 20752.70 | I137: 21015.85 | J137: 21431.70 | K137: 20600 | L137: 19921 | M137: 1.67558
A138: 129 | B138: EIDPARRY | C138: 206.35 | D138: 208.43 | E138: 203.07 | F138: 199.78 | G138: 194.42 | H138: 211.72 | I138: 217.08 | J138: 220.37 | K138: 213.8 | L138: 205.15 | M138: 0.81474
A139: 130 | B139: EIHOTEL | C139: 198.45 | D139: 199.77 | E139: 195.73 | F139: 193.02 | G139: 188.98 | H139: 202.48 | I139: 206.52 | J139: 209.23 | K139: 203.8 | L139: 197.05 | M139: 2.13476
A140: 131 | B140: EMAMILTD | C140: 410.6 | D140: 410.90 | E140: 407.20 | F140: 403.80 | G140: 400.10 | H140: 414.30 | I140: 418.00 | J140: 421.40 | K140: 414.6 | L140: 407.5 | M140: 3.4444
A141: 132 | B141: ENDURANCE | C141: 1171.25 | D141: 1166.52 | E141: 1157.03 | F141: 1142.82 | G141: 1133.33 | H141: 1180.73 | I141: 1190.22 | J141: 1204.43 | K141: 1176 | L141: 1152.3 | M141: 0.60741
A142: 133 | B142: ENGINERSIN | C142: 118.8 | D142: 118.05 | E142: 116.90 | F142: 115.00 | G142: 113.85 | H142: 119.95 | I142: 121.10 | J142: 123.00 | K142: 119.2 | L142: 116.15 | M142: 19.90389
A143: 134 | B143: EQUITAS | C143: 135.7 | D143: 136.47 | E143: 134.13 | F143: 132.57 | G143: 130.23 | H143: 138.03 | I143: 140.37 | J143: 141.93 | K143: 138.8 | L143: 134.9 | M143: 14.24284
A144: 135 | B144: ERIS | C144: 618.9 | D144: 620.17 | E144: 608.28 | F144: 597.67 | G144: 585.78 | H144: 630.78 | I144: 642.67 | J144: 653.28 | K144: 632.05 | L144: 609.55 | M144: 0.05651
A145: 136 | B145: EROSMEDIA | C145: 77.15 | D145: 77.72 | E145: 75.93 | F145: 74.72 | G145: 72.93 | H145: 78.93 | I145: 80.72 | J145: 81.93 | K145: 79.5 | L145: 76.5 | M145: 4.12762
A146: 137 | B146: ESCORTS | C146: 771.05 | D146: 769.15 | E146: 764.05 | F146: 757.05 | G146: 751.95 | H146: 776.15 | I146: 781.25 | J146: 788.25 | K146: 774.25 | L146: 762.15 | M146: 10.59948
A147: 138 | B147: EVEREADY | C147: 189.8 | D147: 190.15 | E147: 187.90 | F147: 186.00 | G147: 183.75 | H147: 192.05 | I147: 194.30 | J147: 196.20 | K147: 192.4 | L147: 188.25 | M147: 2.17932
A148: 139 | B148: EXIDEIND | C148: 215.45 | D148: 213.92 | E148: 211.53 | F148: 207.62 | G148: 205.23 | H148: 217.83 | I148: 220.22 | J148: 224.13 | K148: 216.3 | L148: 210 | M148: 33.25391
A149: 140 | B149: FCONSUMER | C149: 44.1 | D149: 44.18 | E149: 43.47 | F149: 42.83 | G149: 42.12 | H149: 44.82 | I149: 45.53 | J149: 46.17 | K149: 44.9 | L149: 43.55 | M149: 10.58749
A150: 141 | B150: FEDERALBNK | C150: 95.1 | D150: 95.52 | E150: 94.13 | F150: 93.17 | G150: 91.78 | H150: 96.48 | I150: 97.87 | J150: 98.83 | K150: 96.9 | L150: 94.55 | M150: 137.79822
A151: 142 | B151: FINCABLES | C151: 459.95 | D151: 460.78 | E151: 448.77 | F151: 437.58 | G151: 425.57 | H151: 471.97 | I151: 483.98 | J151: 495.17 | K151: 472.8 | L151: 449.6 | M151: 2.14678
A152: 143 | B152: FINPIPE | C152: 476.1 | D152: 481.68 | E152: 468.42 | F152: 460.73 | G152: 447.47 | H152: 489.37 | I152: 502.63 | J152: 510.32 | K152: 494.95 | L152: 474 | M152: 0.90634
A153: 144 | B153: FLFL | C153: 478.85 | D153: 478.35 | E153: 472.05 | F153: 465.25 | G153: 458.95 | H153: 485.15 | I153: 491.45 | J153: 498.25 | K153: 484.65 | L153: 471.55 | M153: 0.66217
A154: 145 | B154: FSL | C154: 47.15 | D154: 47.43 | E154: 46.57 | F154: 45.98 | G154: 45.12 | H154: 48.02 | I154: 48.88 | J154: 49.47 | K154: 48.3 | L154: 46.85 | M154: 16.19861
A155: 146 | B155: GAIL | C155: 346.3 | D155: 348.30 | E155: 341.60 | F155: 336.90 | G155: 330.20 | H155: 353.00 | I155: 359.70 | J155: 364.40 | K155: 355 | L155: 343.6 | M155: 34.96
A156: 147 | B156: GATI | C156: 82.5 | D156: 82.53 | E156: 80.77 | F156: 79.03 | G156: 77.27 | H156: 84.27 | I156: 86.03 | J156: 87.77 | K156: 84.3 | L156: 80.8 | M156: 11.51222
A157: 148 | B157: GDL | C157: 130 | D157: 130.90 | E157: 127.75 | F157: 125.50 | G157: 122.35 | H157: 133.15 | I157: 136.30 | J157: 138.55 | K157: 134.05 | L157: 128.65 | M157: 0.38487
A158: 149 | B158: GEPIL | C158: 825.4 | D158: 821.58 | E158: 813.82 | F158: 802.23 | G158: 794.47 | H158: 833.17 | I158: 840.93 | J158: 852.52 | K158: 829.35 | L158: 810 | M158: 0.0729
A159: 150 | B159: GESHIP | C159: 286.35 | D159: 287.07 | E159: 284.18 | F159: 282.02 | G159: 279.13 | H159: 289.23 | I159: 292.12 | J159: 294.28 | K159: 289.95 | L159: 284.9 | M159: 0.1944
A160: 151 | B160: GET&D | C160: 282.6 | D160: 284.33 | E160: 278.87 | F160: 275.13 | G160: 269.67 | H160: 288.07 | I160: 293.53 | J160: 297.27 | K160: 289.8 | L160: 280.6 | M160: 0.32148
A161: 152 | B161: GHCL | C161: 241.1 | D161: 241.57 | E161: 238.53 | F161: 235.97 | G161: 232.93 | H161: 244.13 | I161: 247.17 | J161: 249.73 | K161: 244.6 | L161: 239 | M161: 0.71342
A162: 153 | B162: GICRE | C162: 262.8 | D162: 263.12 | E162: 258.23 | F162: 253.67 | G162: 248.78 | H162: 267.68 | I162: 272.57 | J162: 277.13 | K162: 268 | L162: 258.55 | M162: 2.02241
A163: 154 | B163: GILLETTE | C163: 6671.45 | D163: 6657.15 | E163: 6639.30 | F163: 6607.15 | G163: 6589.30 | H163: 6689.30 | I163: 6707.15 | J163: 6739.30 | K163: 6675 | L163: 6625 | M163: 0.0258
A164: 155 | B164: GLAXO | C164: 1294.5 | D164: 1291.12 | E164: 1283.28 | F164: 1272.07 | G164: 1264.23 | H164: 1302.33 | I164: 1310.17 | J164: 1321.38 | K164: 1298.95 | L164: 1279.9 | M164: 0.11916
A165: 156 | B165: GLENMARK | C165: 654.4 | D165: 649.45 | E165: 642.50 | F165: 630.60 | G165: 623.65 | H165: 661.35 | I165: 668.30 | J165: 680.20 | K165: 656.4 | L165: 637.55 | M165: 6.32258
A166: 157 | B166: GMDCLTD | C166: 79.55 | D166: 80.18 | E166: 78.57 | F166: 77.58 | G166: 75.97 | H166: 81.17 | I166: 82.78 | J166: 83.77 | K166: 81.8 | L166: 79.2 | M166: 1.35148
A167: 158 | B167: GMRINFRA | C167: 19.05 | D167: 18.97 | E167: 18.58 | F167: 18.12 | G167: 17.73 | H167: 19.43 | I167: 19.82 | J167: 20.28 | K167: 19.35 | L167: 18.5 | M167: 246.38561
A168: 159 | B168: GNFC | C168: 323.85 | D168: 321.28 | E168: 317.57 | F168: 311.28 | G168: 307.57 | H168: 327.57 | I168: 331.28 | J168: 337.57 | K168: 325 | L168: 315 | M168: 6.70226
A169: 160 | B169: GODFRYPHLP | C169: 1127.4 | D169: 1125.25 | E169: 1114.50 | F169: 1101.60 | G169: 1090.85 | H169: 1138.15 | I169: 1148.90 | J169: 1161.80 | K169: 1136 | L169: 1112.35 | M169: 1.68821
A170: 161 | B170: GODREJAGRO | C170: 517.45 | D170: 520.58 | E170: 511.37 | F170: 505.28 | G170: 496.07 | H170: 526.67 | I170: 535.88 | J170: 541.97 | K170: 529.8 | L170: 514.5 | M170: 1.3664
A171: 162 | B171: GODREJCP | C171: 675.4 | D171: 674.63 | E171: 667.87 | F171: 660.33 | G171: 653.57 | H171: 682.17 | I171: 688.93 | J171: 696.47 | K171: 681.4 | L171: 667.1 | M171: 16.66448
A172: 163 | B172: GODREJIND | C172: 529.35 | D172: 529.60 | E172: 525.30 | F172: 521.25 | G172: 516.95 | H172: 533.65 | I172: 537.95 | J172: 542.00 | K172: 533.9 | L172: 525.55 | M172: 2.69954
A173: 164 | B173: GODREJPROP | C173: 917.7 | D173: 912.05 | E173: 901.20 | F173: 884.70 | G173: 873.85 | H173: 928.55 | I173: 939.40 | J173: 955.90 | K173: 922.9 | L173: 895.55 | M173: 11.64805
A174: 165 | B174: GPPL | C174: 95.8 | D174: 96.18 | E174: 94.17 | F174: 92.53 | G174: 90.52 | H174: 97.82 | I174: 99.83 | J174: 101.47 | K174: 98.2 | L174: 94.55 | M174: 1.28162
A175: 166 | B175: GRANULES | C175: 108.9 | D175: 108.30 | E175: 107.10 | F175: 105.30 | G175: 104.10 | H175: 110.10 | I175: 111.30 | J175: 113.10 | K175: 109.5 | L175: 106.5 | M175: 10.40997
A176: 167 | B176: GRAPHITE | C176: 449.55 | D176: 450.78 | E176: 445.17 | F176: 440.78 | G176: 435.17 | H176: 455.17 | I176: 460.78 | J176: 465.17 | K176: 456.4 | L176: 446.4 | M176: 5.15015
A177: 168 | B177: GRASIM | C177: 834.9 | D177: 833.67 | E177: 826.63 | F177: 818.37 | G177: 811.33 | H177: 841.93 | I177: 848.97 | J177: 857.23 | K177: 840.7 | L177: 825.4 | M177: 12.20209
A178: 169 | B178: GREAVESCOT | C178: 146.5 | D178: 145.20 | E178: 142.55 | F178: 138.60 | G178: 135.95 | H178: 149.15 | I178: 151.80 | J178: 155.75 | K178: 147.85 | L178: 141.25 | M178: 3.45957
A179: 170 | B179: GREENPLY | C179: 162.6 | D179: 162.25 | E179: 161.15 | F179: 159.70 | G179: 158.60 | H179: 163.70 | I179: 164.80 | J179: 166.25 | K179: 163.35 | L179: 160.8 | M179: 0.29356
A180: 171 | B180: GRUH | C180: 283.8 | D180: 284.47 | E180: 280.43 | F180: 277.07 | G180: 273.03 | H180: 287.83 | I180: 291.87 | J180: 295.23 | K180: 288.5 | L180: 281.1 | M180: 17.25555
A181: 172 | B181: GSFC | C181: 102.75 | D181: 102.50 | E181: 101.25 | F181: 99.75 | G181: 98.50 | H181: 104.00 | I181: 105.25 | J181: 106.75 | K181: 103.75 | L181: 101 | M181: 10.82752
A182: 173 | B182: GSKCONS | C182: 7005.35 | D182: 6976.43 | E182: 6922.97 | F182: 6840.58 | G182: 6787.12 | H182: 7058.82 | I182: 7112.28 | J182: 7194.67 | K182: 7029.9 | L182: 6894.05 | M182: 0.20758
A183: 174 | B183: GSPL | C183: 176.5 | D183: 175.48 | E183: 173.47 | F183: 170.43 | G183: 168.42 | H183: 178.52 | I183: 180.53 | J183: 183.57 | K183: 177.5 | L183: 172.45 | M183: 5.61222
A184: 175 | B184: GUJALKALI | C184: 491.25 | D184: 492.58 | E184: 485.17 | F184: 479.08 | G184: 471.67 | H184: 498.67 | I184: 506.08 | J184: 512.17 | K184: 500 | L184: 486.5 | M184: 1.08698
A185: 176 | B185: GUJFLUORO | C185: 1064.45 | D185: 1048.83 | E185: 1021.62 | F185: 978.78 | G185: 951.57 | H185: 1091.67 | I185: 1118.88 | J185: 1161.72 | K185: 1076.05 | L185: 1006 | M185: 1.51696
A186: 177 | B186: GUJGASLTD | C186: 149.3 | D186: 150.68 | E186: 146.12 | F186: 142.93 | G186: 138.37 | H186: 153.87 | I186: 158.43 | J186: 161.62 | K186: 155.25 | L186: 147.5 | M186: 15.5983
A187: 178 | B187: GULFOILLUB | C187: 883.5 | D187: 879.00 | E187: 869.60 | F187: 855.70 | G187: 846.30 | H187: 892.90 | I187: 902.30 | J187: 916.20 | K187: 888.4 | L187: 865.1 | M187: 0.08063
A188: 179 | B188: GVKPIL | C188: 7.4 | D188: 7.37 | E188: 7.23 | F188: 7.07 | G188: 6.93 | H188: 7.53 | I188: 7.67 | J188: 7.83 | K188: 7.5 | L188: 7.2 | M188: 12.11422
A189: 180 | B189: HATHWAY | C189: 29.35 | D189: 29.35 | E189: 28.80 | F189: 28.25 | G189: 27.70 | H189: 29.90 | I189: 30.45 | J189: 31.00 | K189: 29.9 | L189: 28.8 | M189: 1.16288
A190: 181 | B190: HATSUN | C190: 745.95 | D190: 742.28 | E190: 735.57 | F190: 725.18 | G190: 718.47 | H190: 752.67 | I190: 759.38 | J190: 769.77 | K190: 749 | L190: 731.9 | M190: 0.13389
A191: 182 | B191: HAVELLS | C191: 766.95 | D191: 764.28 | E191: 759.07 | F191: 751.18 | G191: 745.97 | H191: 772.17 | I191: 777.38 | J191: 785.27 | K191: 769.5 | L191: 756.4 | M191: 7.27448
A192: 183 | B192: HCC | C192: 14.8 | D192: 14.58 | E192: 14.12 | F192: 13.43 | G192: 12.97 | H192: 15.27 | I192: 15.73 | J192: 16.42 | K192: 15.05 | L192: 13.9 | M192: 56.89269
A193: 184 | B193: HCL-INSYS | C193: 18.2 | D193: 18.33 | E193: 17.87 | F193: 17.53 | G193: 17.07 | H193: 18.67 | I193: 19.13 | J193: 19.47 | K193: 18.8 | L193: 18 | M193: 3.66818
A194: 185 | B194: HCLTECH | C194: 1098.05 | D194: 1099.20 | E194: 1080.35 | F194: 1062.65 | G194: 1043.80 | H194: 1116.90 | I194: 1135.75 | J194: 1153.45 | K194: 1118.05 | L194: 1081.5 | M194: 42.22104
A195: 186 | B195: HDFC | C195: 2042.05 | D195: 2035.72 | E195: 2012.63 | F195: 1983.22 | G195: 1960.13 | H195: 2065.13 | I195: 2088.22 | J195: 2117.63 | K195: 2058.8 | L195: 2006.3 | M195: 44.63212
A196: 187 | B196: HDFCBANK | C196: 2283.95 | D196: 2292.32 | E196: 2271.63 | F196: 2259.32 | G196: 2238.63 | H196: 2304.63 | I196: 2325.32 | J196: 2337.63 | K196: 2313 | L196: 2280 | M196: 23.02888
A197: 188 | B197: HDIL | C197: 25.65 | D197: 25.72 | E197: 25.18 | F197: 24.72 | G197: 24.18 | H197: 26.18 | I197: 26.72 | J197: 27.18 | K197: 26.25 | L197: 25.25 | M197: 21.64956
A198: 189 | B198: HEG | C198: 2059.5 | D198: 2071.77 | E198: 2038.83 | F198: 2018.17 | G198: 1985.23 | H198: 2092.43 | I198: 2125.37 | J198: 2146.03 | K198: 2104.7 | L198: 2051.1 | M198: 1.51902
A199: 190 | B199: HEIDELBERG | C199: 181.25 | D199: 180.38 | E199: 177.32 | F199: 173.38 | G199: 170.32 | H199: 184.32 | I199: 187.38 | J199: 191.32 | K199: 183.45 | L199: 176.45 | M199: 5.05696
A200: 191 | B200: HERITGFOOD | C200: 543.25 | D200: 544.52 | E200: 537.23 | F200: 531.22 | G200: 523.93 | H200: 550.53 | I200: 557.82 | J200: 563.83 | K200: 551.8 | L200: 538.5 | M200: 1.2698
A201: 192 | B201: HEROMOTOCO | C201: 2637.2 | D201: 2626.97 | E201: 2605.23 | F201: 2573.27 | G201: 2551.53 | H201: 2658.93 | I201: 2680.67 | J201: 2712.63 | K201: 2648.7 | L201: 2595 | M201: 20.0744
A202: 193 | B202: HEXAWARE | C202: 363.65 | D202: 361.03 | E202: 357.07 | F202: 350.48 | G202: 346.52 | H202: 367.62 | I202: 371.58 | J202: 378.17 | K202: 365 | L202: 354.45 | M202: 16.42107
A203: 194 | B203: HFCL | C203: 22.2 | D203: 22.22 | E203: 21.88 | F203: 21.57 | G203: 21.23 | H203: 22.53 | I203: 22.87 | J203: 23.18 | K203: 22.55 | L203: 21.9 | M203: 21.60409
A204: 195 | B204: HIMATSEIDE | C204: 213.3 | D204: 213.53 | E204: 210.77 | F204: 208.23 | G204: 205.47 | H204: 216.07 | I204: 218.83 | J204: 221.37 | K204: 216.3 | L204: 211 | M204: 0.66594
A205: 196 | B205: HINDALCO | C205: 210.45 | D205: 211.97 | E205: 208.48 | F205: 206.52 | G205: 203.03 | H205: 213.93 | I205: 217.42 | J205: 219.38 | K205: 215.45 | L205: 210 | M205: 77.39096
A206: 197 | B206: HINDCOPPER | C206: 48.7 | D206: 49.15 | E206: 48.05 | F206: 47.40 | G206: 46.30 | H206: 49.80 | I206: 50.90 | J206: 51.55 | K206: 50.25 | L206: 48.5 | M206: 6.1588
... 304 more rows

Sheet Bulk Deals
E6: Back To Main Page
A7: Subject : | B7: BULK DEAL | D7: =Main!B10 -> 2019-04-05
A9: Date | B9: Scrip code | C9: Scrip Name | D9: Client Name | E9: Buy / Sell | F9: Quantity Traded | G9: Trade Price / Wt.Avg.trade price | H9: Exchange
A10: 2019-04-04 | B10: 542012 | C10: AAL | D10: SUFAL INVESTMENT | E10: BUY | F10: 100,000 | G10: 59.13 | H10: BSE
A11: 2019-04-04 | B11: 537766 | C11: BCP | D11: ACHINTYA SECURITIES PVT. LTD. | E11: BUY | F11: 340,154 | G11: 38.7 | H11: BSE
A12: 2019-04-04 | B12: 537766 | C12: BCP | D12: ACHINTYA SECURITIES PVT. LTD. | E12: SELL | F12: 316905 | G12: 38.67 | H12: BSE
A13: 2019-04-04 | B13: 539770 | C13: DARJEELING | D13: HIMANSHU SHAH | E13: SELL | F13: 94620 | G13: 93.51 | H13: BSE
A14: 2019-04-04 | B14: 539770 | C14: DARJEELING | D14: BRAJA GOPAL PAL | E14: BUY | F14: 21000 | G14: 93.46 | H14: BSE
A15: 2019-04-04 | B15: 539770 | C15: DARJEELING | D15: GOENKA BUSINESS & FINANCE LIMITED | E15: BUY | F15: 20000 | G15: 93.4 | H15: BSE
A16: 2019-04-04 | B16: 539770 | C16: DARJEELING | D16: PURAN CHAND CHOUDHARY | E16: BUY | F16: 40000 | G16: 93.62 | H16: BSE
A17: 2019-04-04 | B17: 539224 | C17: HCKKVENTURE | D17: HARISH VEERAPPA KANCHAN | E17: BUY | F17: 94000 | G17: 43.2 | H17: BSE
A18: 2019-04-04 | B18: 539224 | C18: HCKKVENTURE | D18: GOLDIE ANAND | E18: SELL | F18: 94000 | G18: 43.2 | H18: BSE
A19: 2019-04-04 | B19: 540750 | C19: IEX | D19: SIGULER GUFF NJDM INVESTMENT HOLDINGS LTD | E19: SELL | F19: 3125000 | G19: 163 | H19: BSE
A20: 2019-04-04 | B20: 539225 | C20: JIYAECO | D20: RAHUL SHARMA | E20: BUY | F20: 254119 | G20: 61.15 | H20: BSE
A21: 2019-04-04 | B21: 539225 | C21: JIYAECO | D21: RAHUL SHARMA | E21: SELL | F21: 253720 | G21: 60.76 | H21: BSE
A22: 2019-04-04 | B22: 538019 | C22: OBIL | D22: AROCKIASAMY SATHYARAJ | E22: SELL | F22: 70000 | G22: 20.11 | H22: BSE
A23: 2019-04-04 | B23: 539273 | C23: PECOS | D23: WEALTH FIRST PORTFOLIO MANAGERS PVT LTD. | E23: BUY | F23: 20,000 | G23: 69.95 | H23: BSE
A24: 2019-04-04 | B24: 539273 | C24: PECOS | D24: MAYUR INDRAKANT KAMDAR | E24: SELL | F24: 20,000 | G24: 69.95 | H24: BSE
A25: 2019-04-04 | B25: 539814 | C25: RADHEY | D25: SARVAJANA PROPERTIES PVT LTD | E25: SELL | F25: 48,000 | G25: 15.06 | H25: BSE
A26: 2019-04-04 | B26: 539814 | C26: RADHEY | D26: NARESH FATEHCHAND MEHTA | E26: BUY | F26: 35,100 | G26: 15.06 | H26: BSE
A27: 2019-04-04 | B27: 532805 | C27: REDINGTON | D27: MARINA IV LP | E27: BUY | F27: 4,557,135 | G27: 97 | H27: BSE
A28: 2019-04-04 | B28: 532805 | C28: REDINGTON | D28: STANDARD CHARTERED PRIVATE EQUITY MAURITIUS LIMITED | E28: SELL | F28: 4,557,135 | G28: 97 | H28: BSE
A29: 2019-04-04 | B29: 542599 | C29: ROOPSHRI | D29: AKM LACE AND EMBROTEX PRIVATE LIMITED | E29: BUY | F29: 180,000 | G29: 20.25 | H29: BSE
A30: 2019-04-04 | B30: 539520 | C30: SHAILJA | D30: MUNISH SAGGAR & SON (HUF) | E30: BUY | F30: 32,000 | G30: 20.2 | H30: BSE
A31: 2019-04-04 | B31: 539520 | C31: SHAILJA | D31: RAHUL GANESH KEDIA | E31: SELL | F31: 20,000 | G31: 20.25 | H31: BSE
A32: 2019-04-04 | B32: 539520 | C32: SHAILJA | D32: YASH MANISH MEHTA | E32: SELL | F32: 26,255 | G32: 20.05 | H32: BSE
A33: 2019-04-04 | B33: 539520 | C33: SHAILJA | D33: SPLENDID HOTELS & RESORTS PRIVATE LIMITED | E33: BUY | F33: 17,500 | G33: 19.6 | H33: BSE
A34: 2019-04-04 | B34: 539520 | C34: SHAILJA | D34: SPLENDID HOTELS & RESORTS PRIVATE LIMITED | E34: SELL | F34: 17,500 | G34: 19.61 | H34: BSE
A35: 2019-04-04 | B35: 539520 | C35: SHAILJA | D35: RONAK SADHU | E35: BUY | F35: 17,500 | G35: 19.61 | H35: BSE
A36: 2019-04-04 | B36: 539520 | C36: SHAILJA | D36: RONAK SADHU | E36: SELL | F36: 17,500 | G36: 19.6 | H36: BSE
A37: 2019-04-04 | B37: 540736 | C37: SIDDH | D37: VINAY SHANTARAM BHAGWAT | E37: SELL | F37: 76000 | G37: 33.5 | H37: BSE
A38: 2019-04-04 | B38: 539402 | C38: VAL | D38: AKM LACE AND EMBROTEX PRIVATE LIMITED | E38: BUY | F38: 52000 | G38: 20 | H38: BSE
A39: 2019-04-04 | B39: 539402 | C39: VAL | D39: ARYAMAN BROKING LIMITED | E39: SELL | F39: 52000 | G39: 20 | H39: BSE
A40: 2019-04-04 | B40: 541578 | C40: VARROC | D40: SMALLCAP WORLD FUND INC | E40: SELL | F40: 887500 | G40: 575 | H40: BSE
A41: 2019-04-04 | B41: 507685 | C41: WIPRO | D41: LIFE INSURANCE CORPORATION OF INDIA | E41: BUY | F41: 38610038 | G41: 258.9 | H41: BSE
A42: 2019-04-04 | B42: 507685 | C42: WIPRO | D42: CUSTODIAN OF ENEMY PROPERTY FOR INDIA | E42: SELL | F42: 44397818 | G42: 258.9 | H42: BSE
A43: 2019-04-04 | B43: ADLABS | C43: Adlabs Entertainment Ltd. | D43: ANANT CHOPRA | E43: BUY | F43: 300000 | G43: 9.65 | H43: NSE
A44: 2019-04-04 | B44: GSS | C44: GSS Infotech Limited | D44: SEEMA AGGARWAL | E44: BUY | F44: 94000 | G44: 115.99 | H44: NSE
A45: 2019-04-04 | B45: HGS | C45: Hinduja Global Sols Ltd | D45: FIDELITY ASIAN VALUES PLC VA | E45: BUY | F45: 115128 | G45: 625 | H45: NSE
A46: 2019-04-04 | B46: HGS | C46: Hinduja Global Sols Ltd | D46: FIDELITY FUNDS- ASIAN SMALLER COMPANIES POOL | E46: BUY | F46: 277453 | G46: 625 | H46: NSE
A47: 2019-04-04 | B47: HISARMETAL | C47: Hisar Metal Ind. Limited | D47: MUKUL MAHESHWARI HUF | E47: BUY | F47: 29515 | G47: 50.11 | H47: NSE
A48: 2019-04-04 | B48: JETAIRWAYS | C48: Jet Airways (India) Ltd. | D48: A.P.T. PORTFOLIO PRIVATE LIMITED | E48: BUY | F48: 590492 | G48: 254.56 | H48: NSE
A49: 2019-04-04 | B49: JETAIRWAYS | C49: Jet Airways (India) Ltd. | D49: TOWER RESEARCH CAPITAL MARKETS INDIA PRIVATE LIMITED | E49: BUY | F49: 1592962 | G49: 251.62 | H49: NSE
A50: 2019-04-04 | B50: LAMBODHARA | C50: Lambodhara Textiles Ltd. | D50: JHAVERI TRADING AND INVESTMENT PVT. LTD. | E50: BUY | F50: 85000 | G50: 52.56 | H50: NSE
A51: 2019-04-04 | B51: MAZDA | C51: Mazda Limited | D51: MAZDA LIMITED | E51: BUY | F51: 24551 | G51: 439.49 | H51: NSE
A52: 2019-04-04 | B52: RCOM | C52: Reliance Comm. Ltd. | D52: J M GLOBAL EQUITIES PRIVATE LIMITED | E52: BUY | F52: 14924012 | G52: 3.53 | H52: NSE
A53: 2019-04-04 | B53: RCOM | C53: Reliance Comm. Ltd. | D53: SWAPNIL MEHTA | E53: BUY | F53: 14850013 | G53: 3.51 | H53: NSE
A54: 2019-04-04 | B54: RPPINFRA | C54: R.P.P. Infra Projects Ltd | D54: KAMALASINI TRADELINK PVT LTD | E54: BUY | F54: 150000 | G54: 129.5 | H54: NSE
A55: 2019-04-04 | B55: RPPINFRA | C55: R.P.P. Infra Projects Ltd | D55: SEEMA AGGARWAL | E55: BUY | F55: 5938 | G55: 124.5 | H55: NSE
A56: 2019-04-04 | B56: SUZLON | C56: Suzlon Energy Limited | D56: SHARE INDIA SECURITIES LIMITED | E56: BUY | F56: 30917347 | G56: 6.54 | H56: NSE
A57: 2019-04-04 | B57: ADLABS | C57: Adlabs Entertainment Ltd. | D57: ANANT CHOPRA | E57: SELL | F57: 450000 | G57: 9.65 | H57: NSE
A58: 2019-04-04 | B58: HISARMETAL | C58: Hisar Metal Ind. Limited | D58: MUKUL MAHESHWARI HUF | E58: SELL | F58: 27237 | G58: 50.34 | H58: NSE
A59: 2019-04-04 | B59: IEX | C59: Indian Energy Exc Ltd | D59: SG BRIC III TRADING LLC | E59: SELL | F59: 2285150 | G59: 163 | H59: NSE
A60: 2019-04-04 | B60: JETAIRWAYS | C60: Jet Airways (India) Ltd. | D60: A.P.T. PORTFOLIO PRIVATE LIMITED | E60: SELL | F60: 590492 | G60: 254.68 | H60: NSE
A61: 2019-04-04 | B61: JETAIRWAYS | C61: Jet Airways (India) Ltd. | D61: TOWER RESEARCH CAPITAL MARKETS INDIA PRIVATE LIMITED | E61: SELL | F61: 1592962 | G61: 251.62 | H61: NSE
A62: 2019-04-04 | B62: JUSTDIAL | C62: Justdial Ltd. | D62: MORGAN STANLEY FRANCE SAS | E62: SELL | F62: 378115 | G62: 579.55 | H62: NSE
A63: 2019-04-04 | B63: RCOM | C63: Reliance Comm. Ltd. | D63: J M GLOBAL EQUITIES PRIVATE LIMITED | E63: SELL | F63: 6060002 | G63: 3.54 | H63: NSE
A64: 2019-04-04 | B64: RCOM | C64: Reliance Comm. Ltd. | D64: RATTANINDIA FINANCE PRIVATE LIMITED | E64: SELL | F64: 22500000 | G64: 3.54 | H64: NSE
A65: 2019-04-04 | B65: RCOM | C65: Reliance Comm. Ltd. | D65: SWAPNIL MEHTA | E65: SELL | F65: 14650000 | G65: 3.5 | H65: NSE
A66: 2019-04-04 | B66: RPPINFRA | C66: R.P.P. Infra Projects Ltd | D66: SEEMA AGGARWAL | E66: SELL | F66: 150000 | G66: 129.5 | H66: NSE
A67: 2019-04-04 | B67: SUZLON | C67: Suzlon Energy Limited | D67: SHARE INDIA SECURITIES LIMITED | E67: SELL | F67: 31503891 | G67: 6.53 | H67: NSE
A68: 2019-04-04 | B68: VARROC | C68: Varroc Engineering Ltd | D68: SMALLER CAP WORLD FUND INC | E68: SELL | F68: 888398 | G68: 575.02 | H68: NSE

Sheet Call Tracker (Equity & F&O)
M5: Back To Main Page
A6: Retail Research Technical Calls & Fundamental Performance Report for the month of April -2019
M7: =Main!B10 -> 2019-04-05
B8: Positional Call
A9: Sr.no | B9: Date | D9: Company | E9: Rec | F9: Rec Price | G9: Stop Loss*** | H9: Call Closed At | I9: Target | J9: Remark | K9: Profit / Loss per Share | L9: Gain / Loss % | M9: Status | N9: Closed Date | O9: NSE Closed Price
A10: 1 | B10: 2019-03-07 | D10: RAYMOND | E10: Sell | F10: 825-830 | G10: 888.8 | I10: 720-730 | J10: Open | O10: =VLOOKUP(D10,Sheet2!A16:M1811,6,0) -> 801.2 | R10: R
A11: 2 | B11: 2019-03-13 | D11: DLF | E11: Sell | F11: 193 | G11: 206.6 | H11: 206.6 | I11: 164-168 | J11: Loss of Rs.13.6/- | K11: =F11-G11 -> -13.6 | L11: =K11/F11 -> -7.05% | M11: Unsuccessful | N11: 2019-04-03 | R11: R
A12: 3 | B12: 2019-03-15 | D12: OFSS | E12: Buy | F12: 3395 | G12: 3250 | H12: 3497 | I12: 3650-3700 | J12: Profit of Rs.102/- | K12: =H12-F12 -> 102 | L12: =K12/F12 -> 3.00% | M12: Successful | N12: 2019-04-03 | R12: H
A13: 4 | B13: 2019-03-20 | D13: HEROMOTOCO | E13: Buy | F13: 2610-2630 | G13: 2490 | I13: 2850-2900 | J13: Open | O13: =VLOOKUP(D13,Sheet2!A19:M1814,6,0) -> 2637.2 | R13: H
A14: 5 | B14: 2019-03-25 | D14: MARUTI | E14: Buy | F14: 6600 | G14: 6290 | H14: 6940 | I14: 7000-7100 | J14: Profit of Rs.340/- | K14: =H14-F14 -> 340 | L14: =K14/F14 -> 5.15% | M14: Successful | N14: 2019-04-03 | R14: R
A15: 6 | B15: 2019-04-01 | D15: WIPRO | E15: Buy | F15: 257-259 | G15: 248 | I15: 280 | J15: Open | O15: =VLOOKUP(D15,Sheet2!A21:M1816,6,0) -> 259.05 | R15: H
A16: 7 | B16: 2019-04-03 | D16: BOSCHLTD | E16: Buy | F16: 17950-18000 | G16: 16850 | I16: 19500-20000 | J16: Open | O16: =VLOOKUP(D16,Sheet2!A22:M1817,6,0) -> 17832.3 | R16: R
A21: CLBS = Closing Basis *** | F21: Reinitiated $
A22: Dividend adjusted <> | F22: Revised stoploss #
A23: Part book {}
A24: Master Trade High Risk
A25: Sr.no | B25: Date | D25: Company | E25: Rec | F25: Rec Price | G25: Stop Loss | H25: Call Closed At | I25: Target | J25: Remark | K25: Profit / Loss per share | L25: Gain / Loss per Lot | M25: Lot | N25: Status | O25: Closed Date
A26: 1 | B26: 2019-04-04 | D26: MARUTI APR | E26: Sell | F26: 7155-7165 | G26: 7310 | I26: 6900-6800 | J26: Open | R26: R
A27: 2 | B27: 2019-04-04 | D27: UNIONBANK APR FUT | E27: Sell | F27: 95.5 | G27: 101 | H27: 95 | I27: 88 -87 | J27: Profit of Rs. 0.5 /- | K27: =F27-H27 -> 0.5 | L27: =M27*K27 -> 3500 | M27: 7000 | N27: Neutral | O27: 2019-04-04 | R27: H
A40: Master Trade Medium Risk
A41: Sr.no | B41: Date | D41: Company | E41: Rec | F41: Rec Price | G41: Stop Loss | H41: Call Closed At | I41: Target | J41: Remark | K41: Profit/ Loss per lot | L41: Gain / Loss per Lot | M41: Lot | N41: Status | O41: Closed Date
A42: 1 | B42: 2019-04-02 | D42: NIFTY 04-APR 11650 PE | E42: Buy | F42: 44.5 | G42: 18 | H42: 18 | I42: 120 | J42: Loss of Rs.26.5/- | K42: =H42-F42 -> -26.5 | L42: =M42*K42 -> -1987.5 | M42: 75 | N42: Unsuccessful | O42: 2019-04-03 | R42: H
A43: 2 | B43: 2019-04-04 | D43: NIFTY 11650 PE 11-APR | E43: Buy | F43: 76 | H43: 102.5 | J43: Profit of Rs.19/- | K43: =H43-F43 -> 26.5 | L43: =M43*19 -> 1425 | M43: 75 | N43: Successful | O43: 2019-04-04 | R43: H
D44: NIFTY 11500 PE 11-APR | E44: Sell | F44: 31.5 | H44: 39 | K44: =F44-H44 -> -7.5 | R44: H
A45: 3 | B45: 2019-04-04 | D45: TCS 2100 CE APR | E45: Buy | F45: 49.5 | G45: 37 | H45: 37 | I45: 70-75 | J45: Loss of Rs.12.5/- | K45: =H45-F45 -> -12.5 | L45: =M45*K45 -> -3125 | M45: 250 | N45: Unsuccessful | O45: 2019-04-04 | R45: H
A46: 4 | B46: 2019-04-04 | D46: NIFTY 4-APR 11650 PE | E46: Buy | F46: 11.5 | H46: 25 | I46: 40 | J46: Profit of Rs.13.5/- | K46: =H46-F46 -> 13.5 | L46: =K46*M46 -> 1012.5 | M46: 75 | N46: Successful | O46: 2019-04-04 | R46: N
B52: Smart Delivery Trade
A53: Sr.no | B53: Date | D53: Company | E53: Rec | F53: Rec Price | G53: Stop Loss*** | H53: Call Closed At | I53: Target | J53: Remark | K53: Profit / Loss per Share | L53: Gain / Loss % | M53: Status | N53: Closed Date | O53: NSE Closed Price
A54: 1 | B54: 2019-03-08 | D54: NIITTECH | E54: Sell | F54: 1318-1322 | G54: 1361.6 | I54: 1250-1240 | J54: Open | O54: =VLOOKUP(D54,Sheet2!A84:M1579,6,0) -> 1325.65 | R54: R
A55: 2 | B55: 2019-03-22 | D55: TATAGLOBAL | E55: Buy | F55: 200 | G55: 193.7 | H55: 206.75 | I55: 210-214 | J55: Profit of Rs.6.75/- | K55: =H55-F55 -> 6.75 | L55: =K55/F55 -> 3.38% | M55: Successful | N55: 2019-04-01 | R55: R
A56: 3 | B56: 2019-04-01 | D56: HINDUNILVR | E56: Buy | F56: 1695-1700 | G56: 1645 | I56: 1780-1800 | J56: Open | O56: =VLOOKUP(D56,Sheet2!A86:M1581,6,0) -> 1666.55 | R56: H
A57: 4 | B57: 2019-04-02 | D57: DABUR | E57: Buy | F57: 399-401 | G57: 387.7 | I57: 418-422 | J57: Open | O57: =VLOOKUP(D57,Sheet2!A87:M1582,6,0) -> 405.05 | R57: R
A58: 5 | B58: 2019-04-03 | D58: HDFC | E58: Buy | F58: 2000-2020 | G58: 1945 | I58: 2100 | J58: Open | O58: =VLOOKUP(D58,Sheet2!A88:M1583,6,0) -> 2042.05 | R58: H
A59: 6 | B59: 2019-04-03 | D59: ICICIBANK | E59: Sell | F59: 400 | G59: 412 | H59: 392.5 | I59: 380-375 | J59: Profit of Rs.7.5/- | K59: =F59-H59 -> 7.5 | L59: =K59/F59 -> 1.88% | M59: Successful | N59: 2019-04-03 | R59: H
A60: 7 | B60: 2019-04-03 | D60: ESCORTS | E60: Sell | F60: 770-775 | G60: 795 | I60: 735-725 | J60: Open | O60: =VLOOKUP(D60,Sheet2!A90:M1585,6,0) -> 771.05 | R60: R
A61: 8 | B61: 2019-04-04 | D61: ENGINERSIN | E61: Sell | F61: 117-118 | G61: 122 | I61: 112-110 | J61: Open | O61: =VLOOKUP(D61,Sheet2!A91:M1586,6,0) -> 118.8 | R61: H
A62: 9 | B62: 2019-04-04 | D62: MUTHOOTFIN | E62: Sell | F62: 616.8 | G62: 635.6 | H62: 604 | I62: 585-575 | J62: Profit of Rs.12.8/- | K62: =F62-H62 -> 12.8 | L62: =K62/F62 -> 2.08% | M62: Successful | N62: 2019-04-04 | R62: R
A63: 10 | B63: 2019-04-04 | D63: BANKINDIA | E63: Sell | F63: 103.25 | G63: 107.5 | H63: 101 | I63: 95-93 | J63: Profit of Rs.2.25/- | K63: =F63-H63 -> 2.25 | L63: =K63/F63 -> 2.18% | M63: Successful | N63: 2019-04-04 | R63: H
A69: CLBS = Closing Basis *** | F69: Reinitiated $
A70: Dividend adjusted <> | F70: Revised stoploss #
B73: Momentum Call
A74: Sr.no | B74: Date | D74: Company | E74: Rec | F74: Rec Price | G74: Stop Loss | H74: Call Closed At | I74: Target | J74: Remark | K74: Profit / Loss per Share/Lot | L74: Gain / Loss % | M74: Gain / Loss per Lot | N74: Lot | O74: Status | P74: Closed Date
A75: 1 | B75: 2019-03-28 | D75: AMARAJABAT APR FUT | E75: Buy | F75: 726 | G75: 709 | H75: 737 | I75: 750 | J75: Profit of Rs.11/- | K75: =H75-F75 -> 11 | M75: =N75*K75 -> 7700 | N75: 700 | O75: Successful | P75: 2019-04-01 | R75: N
A76: 2 | B76: 2019-04-01 | D76: GRASIM APR FUT | E76: Buy | F76: 870 | G76: 854 | H76: 854 | I76: 895 | J76: Loss of Rs.16/- | K76: =H76-F76 -> -16 | M76: -12000 | N76: 750 | O76: UnSuccessful | P76: 2019-04-02 | R76: N
A77: 3 | B77: 2019-04-01 | D77: TATAELXSI APR FUT | E77: Buy | F77: 973 | G77: 943 | H77: 990 | I77: 1010 | J77: Profit of Rs.17/- | K77: =H77-F77 -> 17 | M77: =N77*K77 -> 6800 | N77: 400 | O77: Successful | P77: 2019-04-02 | R77: N
A78: 4 | B78: 2019-04-01 | D78: MCDOWELL-N APR FUT | E78: Sell | F78: 554.5 | G78: 565 | H78: 551 | I78: 538 | J78: Profit of Rs.3.5/- | K78: =F78-H78 -> 3.5 | M78: =N78*K78 -> 4375 | N78: 1250 | O78: Successful | P78: 2019-04-02 | R78: N
A79: 5 | B79: 2019-04-02 | D79: HINDALCO APR FUT | E79: Sell | F79: 218.5 | G79: 221.6 | H79: 216 | I79: 212 | J79: Profit of Rs.2.5/- | K79: =F79-H79 -> 2.5 | M79: =N79*K79 -> 8750 | N79: 3500 | O79: Successful | P79: 2019-04-02 | R79: R
A80: 6 | B80: 2019-04-02 | D80: BHARTIARTL APR FUT | E80: Sell | F80: 361 | G80: 367.7 | H80: 356.5 | I80: 346-344 | J80: Profit of Rs.4.5/- | K80: =F80-H80 -> 4.5 | M80: =N80*K80 -> 7650 | N80: 1700 | O80: Successful | P80: 2019-04-02 | R80: R
A81: 7 | B81: 2019-04-02 | D81: TECHM APR FUT | E81: Buy | F81: 789.5 | G81: 779.5 | H81: 779.5 | I81: 805 | J81: Loss of Rs.10/- | K81: =H81-F81 -> -10 | M81: -12000 | N81: 1200 | O81: UnSuccessful | P81: 2019-04-04 | R81: N
A82: 8 | B82: 2019-04-03 | D82: BHARTIARTL APR FUT | E82: Sell | F82: 363 | G82: 369.7 | H82: 357.5 | I82: 346-344 | J82: Profit of Rs.5.5/- | K82: =F82-H82 -> 5.5 | M82: =N82*K82 -> 9350 | N82: 1700 | O82: Successful | P82: 2019-04-03 | R82: R
A83: 9 | B83: 2019-04-03 | D83: HINDALCO APR FUT | E83: Sell | F83: 219.5 | G83: 222.6 | H83: 216.75 | I83: 213 | J83: Profit of Rs.2.75/- | K83: =F83-H83 -> 2.75 | M83: 9625 | N83: 3500 | O83: Successful | P83: 2019-04-03 | R83: R
A84: 10 | B84: 2019-04-03 | D84: TVSMOTOR APR FUT | E84: Sell | F84: 489 | G84: 501 | H84: 481.5 | I84: 470 | J84: Profit of Rs.7.5/- | K84: =F84-H84 -> 7.5 | M84: =N84*K84 -> 7500 | N84: 1000 | O84: Successful | P84: 2019-04-03 | R84: N
A85: 11 | B85: 2019-04-04 | D85: BHARTIARTL APR FUT | E85: Sell | F85: 360.5 | G85: 367.7 | H85: 355.5 | I85: 346-344 | J85: Profit of Rs.5/- | K85: =F85-H85 -> 5 | M85: =N85*K85 -> 8500 | N85: 1700 | O85: Successful | P85: 2019-04-04 | R85: R
A86: 12 | B86: 2019-04-04 | D86: SBIN | E86: Sell | F86: 323 | G86: 332 | H86: 318.75 | I86: 305 | J86: Profit of Rs.4.25/- | K86: =F86-H86 -> 4.25 | L86: =(F86-H86)/F86 -> 1.32% | O86: Successful | P86: 2019-04-04 | R86: H
A87: 13 | B87: 2019-04-04 | D87: UBL APR FUT | E87: Buy | F87: 1416 | G87: 1399 | H87: 1436.5 | I87: 1445 | J87: Profit of Rs.20.5/- | K87: =H87-F87 -> 20.5 | M87: 14350 | N87: 700 | O87: Successful | P87: 2019-04-04 | R87: N
A92: CLBS = Closing Basis ***
A93: Dividend adjusted <> | F93: Reinitiated $
F94: Revised stoploss #
B95: Quick Pick Intraday
A96: Sr.no | B96: Date | D96: Company | E96: Rec | F96: Rec Price | G96: Stop Loss*** | H96: Call Closed At | I96: Target | J96: Remark | K96: Profit / Loss per Share | L96: Status | M96: Closed Date
A110: Techno -Funda (positional)
A111: Sr.no | B111: Date | D111: Company | E111: Rec | F111: Rec Price | G111: Stop Loss*** | H111: Call Closed At | I111: Target | J111: Remark | K111: Profit / Loss per Share | L111: Gain / Loss % | M111: Status | N111: Closed Date | O111: NSE Closed Price
A112: 1 | B112: 2019-04-04 | D112: FINPIPE | E112: Buy | F112: 473-476 | G112: 435 | I112: 560 | J112: Open | O112: =VLOOKUP(D112,Sheet2!A142:M1637,6,0) -> 476.1 | R112: H/D
A116: CLBS = Closing Basis *** | F116: Reinitiated $
A117: Dividend adjusted <> | F117: Revised stoploss #
B122: Investment Idea
A123: Sr.no | B123: Date | D123: Company | E123: Rec | F123: Rec Price | G123: Point of Review | H123: Close Rate | I123: Target | J123: Remark | K123: Profit / Loss per Share | L123: Gain / Loss % | M123: Status | N123: Closed Date
A124: 1 | B124: 2013-11-01 | D124: L&T Finance Holding | E124: Accu | F124: 82.00 | G124: - | H124: 100 | I124: 100.00 | J124: Target Achieved | K124: =H124-F124 -> 18.00 | L124: =K124/F124 -> 21.95% | M124: Successful | N124: 2016-10-14
A125: 2 | B125: 2014-06-04 | D125: Finolex Inds | E125: Buy | F125: 257.00 | G125: - | H125: 300 | I125: 300.00 | J125: Target Achieved | K125: =H125-F125 -> 43.00 | L125: 16.73% | M125: Successful | N125: 2014-07-02
A126: =1+A125 -> 3 | B126: 2014-07-08 | D126: JK Cement | E126: Buy | F126: 393.00 | G126: - | H126: 468 | I126: 468.00 | J126: Target Achieved | K126: =H126-F126 -> 75.00 | L126: 19.08% | M126: Successful | N126: 2014-08-12
A127: 4 | B127: 2014-08-06 | D127: Finolex Cables | E127: Buy | F127: 205.00 | G127: - | H127: 275 | I127: 250.00 | J127: Target Achieved | K127: 70.00 | L127: 34.15% | M127: Successful | N127: 2014-11-19
A128: 5 | B128: 2014-09-04 | D128: Exide Inds | E128: Buy | F128: 162.00 | G128: - | H128: 190 | I128: 190.00 | J128: Target Achieved | K128: 28.00 | L128: 17.28% | M128: Successful | N128: 2015-01-02
A129: 6 | B129: 2014-09-04 | D129: Deepak Nitrite | E129: Buy | F129: 75.00 | G129: - | H129: 91.5 | I129: 95-100 | J129: Profit of Rs.16.50/- | K129: 16.50 | L129: 22.00% | M129: Successful | N129: 2014-11-11
A130: 7 | B130: 2014-10-01 | D130: Mercks | E130: Buy | F130: 850.00 | G130: - | H130: 982.5 | I130: 1050.00 | J130: Profit of Rs.132.50/- | K130: 132.50 | L130: 15.59% | M130: Successful | N130: 2015-02-04
A131: 8 | B131: 2014-10-01 | D131: Grindwell Norton | E131: Buy | F131: 475.00 | G131: - | H131: 515 | I131: 600.00 | J131: Profit of Rs.40/- | K131: 40.00 | L131: 8.42% | M131: Successful | N131: 2014-10-27
A132: 9 | B132: 2014-10-01 | D132: Snowman Logistics | E132: Buy | F132: 86.00 | G132: - | H132: 99 | I132: 140.00 | J132: Profit of Rs.13.00/- | K132: 13.00 | L132: 15.12% | M132: Successful | N132: 2014-10-27
A133: 10 | B133: 2014-10-14 | D133: Birla Corp | E133: Buy | F133: 496.60 | G133: - | H133: 621 | I133: 580.00 | J133: Target Achieved | K133: 124.40 | L133: 25.05% | M133: Successful | N133: 2016-08-23
A134: 11 | B134: 2014-10-14 | D134: Ultratech Cem | E134: Buy | F134: 2481.90 | G134: - | H134: 2840 | I134: 2870.00 | J134: Profit of Rs.358.10/- | K134: 358.10 | L134: 14.43% | M134: Successful | N134: 2015-01-13
A135: =1+A132 -> 10 | B135: 2014-10-16 | D135: Sintex Inds | E135: Buy | F135: 84.50 | G135: - | H135: 93 | I135: 110.00 | J135: Profit of Rs.8.50/- | K135: 8.50 | L135: 10.06% | M135: Successful | N135: 2014-10-27
A136: =1+A135 -> 11 | B136: 2014-10-16 | D136: HSIL | E136: Buy | F136: 401.00 | G136: - | H136: 428 | I136: 450.00 | J136: Profit of Rs.27.00/- | K136: 27.00 | L136: 6.73% | M136: Successful | N136: 2015-01-16
A137: 12 | B137: 2014-10-16 | D137: Eveready Inds | E137: Buy | F137: 101.00 | G137: - | H137: 112 | I137: 120.00 | J137: Profit of Rs.11.00/- | K137: 11.00 | L137: 10.89% | M137: Successful | N137: 2014-10-27
A138: 13 | B138: 2014-11-11 | D138: Pennar Inds | E138: Buy | F138: 59.00 | G138: - | H138: 76 | I138: 76.00 | J138: Target Achieved | K138: 17.00 | L138: 28.81% | M138: Successful | N138: 2017-10-24
A139: 14 | B139: 2014-11-11 | D139: Snowman Logistics | E139: Buy | F139: 99.00 | G139: - | H139: 120 | I139: 120.00 | J139: Profit of Rs.21/- | K139: 21.00 | L139: 21.21% | M139: Successful | N139: 2014-11-17
A140: 15 | B140: 2014-11-13 | D140: Dharamsi Morarji Chem | E140: Buy | F140: 22.00 | G140: - | H140: 33.55 | I140: 32.00 | J140: Profit of Rs 11.55/- | K140: 11.55 | L140: 52.50% | M140: Successful | N140: 2015-07-03
A141: 16 | B141: 2014-12-03 | D141: Tatachem | E141: Buy | F141: 440.00 | G141: - | H141: 520 | I141: 520.00 | J141: Profit of Rs 80.00/- | K141: 80.00 | L141: 18.18% | M141: Successful | N141: 2015-07-23
A142: 17 | B142: 2014-12-03 | D142: Advanta | E142: Buy | F142: 360.00 | G142: - | H142: 427 | I142: 425.00 | J142: Profit of Rs.67.00/- | K142: 67.00 | L142: 18.61% | M142: Successful | N142: 2015-02-23
A143: 18 | B143: 2015-01-08 | D143: GDL | E143: Buy | F143: 360.00 | G143: - | H143: 455 | I143: 420.00 | J143: Profit of Rs.95.00/- | K143: 95.00 | L143: 26.39% | M143: Successful | N143: 2015-01-20
A144: 19 | B144: 2015-01-08 | D144: NRB Bearing | E144: Buy | F144: 130.00 | H144: 175.5 | I144: 165.00 | J144: Profit of Rs 45.50/- | K144: 45.50 | L144: 35.00% | M144: Successful | N144: 2017-12-19
A145: 20 | B145: 2015-02-05 | D145: GSFC | E145: Accu | F145: 98.00 | H145: 120 | I145: 120.00 | J145: Target Achieved | K145: 22.00 | L145: 22.45% | M145: Successful | N145: 2017-01-18
A146: 21 | B146: 2015-02-05 | D146: Sundrmfast | E146: Accu | F146: 196.00 | H146: 262 | I146: 255.00 | J146: Target Achieved | K146: 66.00 | L146: 33.67% | M146: Successful | N146: 2016-08-17
A147: 22 | B147: 2015-03-04 | D147: GPPL | E147: Accu | F147: 235 | H147: 77.00 | I147: 280-285 | J147: Loss of Rs.158/- | K147: =H147-F147 -> -158.00 | L147: -67.23% | M147: Unsuccessful | N147: 2019-02-26
A148: 23 | B148: 2015-03-04 | D148: ORIENTCEM | E148: Accu | F148: 185.00 | H148: 224 | I148: 220-225 | J148: Target Achieved | K148: 39.00 | L148: =K148/F148 -> 21.08% | M148: Successful | N148: 2016-10-04
A149: 24 | B149: 2015-03-27 | D149: PFS | E149: Accu | F149: 49-50 | I149: 67.00 | J149: Open
A150: 25 | B150: 2015-03-30 | D150: Walchandnagar Ind Ltd | E150: Accu | F150: 183.50 | H150: 219 | I150: 218.00 | J150: Profit of Rs.35.50/- | K150: 35.50 | L150: =K150/F150 -> 19.35% | M150: Successful | N150: 2015-04-09
A151: 26 | B151: 2015-04-20 | D151: Kalpataru Power Transmission Ltd | E151: Accu | F151: =(227+237)/2 -> 232.00 | H151: 298 | I151: 298.00 | J151: Target Achieved | K151: 66.00 | L151: 28.45% | M151: Successful | N151: 2017-03-29
A152: 27 | B152: 2015-05-04 | D152: Mastek Ltd | E152: Buy | F152: 385.00 | H152: =212.5+331 -> 543.5 | I152: 510.00 | J152: Profit of Rs 158.50/- | K152: 158.50 | L152: 41.17% | M152: Successful | N152: 2015-08-19
A153: 28 | B153: 2015-05-04 | D153: Suprajit Eng | E153: Buy | F153: 115.50 | H153: 146 | I153: 142.00 | J153: Profit of Rs 30.50/- | K153: 30.50 | L153: 26.41% | M153: Successful | N153: 2015-07-17
A154: 29 | B154: 2015-05-27 | D154: TCI | E154: Buy | F154: 237.50 | H154: 279.5 | I154: 278.00 | J154: Target Achieved | K154: 42.00 | L154: 17.68% | M154: Successful | N154: 2015-08-06
A155: 30 | B155: 2015-06-19 | D155: HSIL | E155: Accu | F155: 340.00 | H155: 448 | I155: 448.00 | J155: Target Achieved | K155: 108.00 | L155: 31.76% | M155: Successful | N155: 2017-10-10
A156: 31 | B156: 2015-07-06 | D156: Capital First | E156: Accu | F156: 390.00 | H156: 460 | I156: 460.00 | J156: Target Achieved | K156: 70.00 | L156: 17.95% | M156: Successful | N156: 2016-04-18
A157: 32 | B157: 2015-07-10 | D157: Dolphin OffShore | E157: Accu | F157: 122.5 | H157: 61.00 | I157: 172.00 | J157: Loss of Rs.61.50/- | K157: -61.50 | L157: -50.20% | M157: Unsuccessful | N157: 2018-08-21
A158: 33 | B158: 2015-08-03 | D158: Allcargo logistics | E158: Accu | F158: 297.50 | H158: 350 | I158: 360.00 | J158: Profit of Rs 52.50/- | K158: 52.50 | L158: =K158/F158 -> 17.65% | M158: Successful | N158: 2015-08-16
A159: 34 | B159: 2015-08-03 | D159: Camline Fine | E159: Accu | F159: 115.50 | H159: 149 | I159: 140.00 | J159: Profit of Rs 33.50/- | K159: 33.50 | L159: 29.00% | M159: Successful | N159: 2017-01-05
A160: 35 | B160: 2015-09-04 | D160: TCI | E160: Accu | F160: 226.00 | H160: 292 | I160: 292.00 | J160: Target Achieved | K160: 66.00 | L160: 29.20% | M160: Successful | N160: 2015-10-09
A161: 36 | B161: 2015-09-07 | D161: Kalpataru Power Transmission Ltd | E161: Accu | F161: 232.50 | H161: 312.5 | I161: 310.00 | J161: Target Achieved | K161: 80.00 | L161: 34.41% | M161: Successful | N161: 2017-03-29
A162: 37 | B162: 2015-09-21 | D162: LLOYD ELECTRIC & ENG LTD | E162: Accu | F162: 196.50 | H162: 238 | I162: 238.00 | J162: Target Achieved | K162: 41.50 | L162: 21.12% | M162: Successful | N162: 2015-10-14
A163: 38 | B163: 2015-09-24 | D163: L&T Finance Holding | E163: Accu | F163: 65.00 | H163: 82 | I163: 82.00 | J163: Target Achieved | K163: 17.00 | L163: 26.15% | M163: Successful | N163: 2016-07-27
A164: 39 | B164: 2015-10-14 | D164: KEC International ltd | E164: Accu | F164: 144.00 | H164: 182.5 | I164: 181.00 | J164: Target Achieved | K164: 38.50 | L164: 26.74% | M164: Successful | N164: 2017-03-23
A165: 40 | B165: 2015-10-14 | D165: Gruh Finance | E165: Accu | F165: 264.00 | H165: 311 | I165: 311.00 | J165: Target Achieved | K165: 47.00 | L165: 17.80% | M165: Successful | N165: 2016-08-22
A166: 41 | B166: 2015-11-10 | D166: Pidilitind | E166: Buy | F166: 549.50 | H166: 630 | I166: 630.00 | J166: Target Achieved | K166: 80.50 | L166: 14.65% | M166: Successful | N166: 2016-02-19
A167: 42 | B167: 2015-12-04 | D167: Zensar Technology | E167: Accu | F167: 1027.50 | H167: 1315 | I167: 1250.00 | J167: Target Achieved | K167: =H167-F167 -> 287.50 | L167: 27.98% | M167: Successful | N167: 2018-05-24
A168: 43 | B168: 2015-12-29 | D168: Vinati Organics Ltd | E168: Accu | F168: 465.00 | H168: 540 | I168: 540.00 | J168: Target Achieved | K168: 75.00 | L168: =K168/F168 -> 16.13% | M168: Successful | N168: 2016-06-09
A169: 44 | B169: 2016-01-11 | D169: GSFC | E169: Buy | F169: 81.00 | H169: 110 | I169: 110.00 | J169: Target Achieved | K169: 29.00 | L169: 35.80% | M169: Successful | N169: 2017-01-10
A170: 45 | B170: 2016-01-13 | D170: SSWL | E170: Buy | F170: 417.50 | H170: 547 | I170: 535.00 | J170: Target Achieved | K170: 129.50 | L170: 31.02% | M170: Successful | N170: 2016-07-27
A171: 46 | B171: 2016-02-08 | D171: Persistent System Ltd | E171: Accu | F171: 650.00 | H171: 800 | I171: 800.00 | J171: Target Achieved | K171: 150.00 | L171: 23.08% | M171: Successful | N171: 2018-02-23
A172: 47 | B172: 2016-03-04 | D172: UPL | E172: Accu | F172: 437.50 | H172: 504.5 | I172: 522.00 | J172: Profit of Rs.67/- | K172: 67.00 | L172: 15.31% | M172: Successful | N172: 2016-04-20
A173: 48 | B173: 2016-03-09 | D173: Ashoka Buildcon Ltd | E173: Accu | F173: 189.50 | H173: 218 | I173: 218.00 | J173: Target Achieved | K173: 28.50 | L173: 15.04% | M173: Successful | N173: 2017-10-26
A174: 49 | B174: 2016-04-11 | D174: PTC INDIA FIN SERV LTD | E174: Accu | F174: 36-37 | I174: 60.00 | J174: Open
A175: 50 | B175: 2016-04-12 | D175: CAMLINFINE $ | E175: Accu | F175: 93.00 | H175: 149 | I175: 140.00 | J175: Profit of Rs 56/- | K175: 56.00 | L175: =K175/F175 -> 60.22% | M175: Successful | N175: 2017-01-05
A176: 51 | B176: 2016-04-12 | D176: Greaves Cotton Ltd. | E176: Accu | F176: 130.00 | H176: 150 | I176: 150-155 | J176: Target Achieved | K176: 20.00 | L176: 15.38% | M176: Successful | N176: 2016-07-13
A177: 52 | B177: 2016-04-13 | D177: DHFL | E177: Accu | F177: 196.00 | H177: 299 | I177: 299.00 | J177: Target Achieved | K177: 103.00 | L177: 52.55% | M177: Successful | N177: 2016-09-07
A178: 53 | B178: 2016-04-13 | D178: Magma | E178: Accu | F178: 88.00 | H178: 103 | I178: 103.00 | J178: Target Achieved | K178: 15.00 | L178: 17.05% | M178: Successful | N178: 2016-06-09
A179: 54 | B179: 2016-05-02 | D179: KEC International ltd $ | E179: Accu | F179: 127.50 | H179: 148 | I179: 148-150 | J179: Target Achieved | K179: 20.50 | L179: 16.08% | M179: Successful | N179: 2016-07-13
A180: 55 | B180: 2016-05-03 | D180: Mindtree | E180: Accu | F180: 675.00 | H180: 815 | I180: 790-800 | J180: Target Achieved | K180: 140.00 | L180: 20.74% | M180: Successful | N180: 2018-02-23
A181: 56 | B181: 2016-06-01 | D181: Atulauto | E181: Accu | F181: 495-505 | I181: 565-570 | J181: Open
A182: 57 | B182: 2016-06-06 | D182: TRITURBINE | E182: Accu | F182: 110.00 | H182: 126.5 | I182: 125.00 | J182: Profit of Rs.16.50/- | K182: 16.50 | L182: =K182/F182 -> 15.00% | M182: Successful | N182: 2016-07-01
A183: 58 | B183: 2016-06-17 | D183: Pennar Industries Ltd | E183: Accu | F183: 44.00 | H183: 69.5 | I183: 69.50 | J183: Profit of Rs.25.50/- | K183: 25.50 | L183: =K183/F183 -> 57.95% | M183: Successful | N183: 2017-08-30
A184: 59 | B184: 2016-06-28 | D184: EVEREADY INDS. IND. LTD. | E184: Accu | F184: 262.50 | H184: 340 | I184: 333.00 | J184: Profit of Rs.77.50/- | K184: 77.50 | L184: =K184/F184 -> 29.52% | M184: Successful | N184: 2017-10-09
A185: 60 | B185: 2016-06-28 | D185: FIEM INDUSTRIES LIMITED | E185: Accu | F185: 840.00 | H185: 1230 | I185: 1230.00 | J185: Target Achieved | K185: 390.00 | L185: =K185/F185 -> 46.43% | M185: Successful | N185: 2016-10-06
A186: 61 | B186: 2016-07-05 | D186: Bajaj Corp Ltd | E186: Accu | F186: 395 | H186: 468.50 | I186: 510.00 | J186: Part profit of Rs.73.50/- | K186: 73.50 | L186: =K186/F186 -> 19% | M186: Successful | N186: 2017-08-30
A187: 62 | B187: 2016-08-02 | D187: GPPL $ | E187: Buy | F187: 169.5 | H187: 77.00 | I187: 198-200 | J187: Loss of Rs.92.5/- | K187: -92.50 | L187: =K187/F187 -> -54.57% | M187: Unsuccessful | N187: 2019-02-26
A188: 63 | B188: 2016-08-04 | D188: WONDERLA HOLIDAYS LTD | E188: Accu | F188: 395-405 | I188: 475.00 | J188: Open
A189: 64 | B189: 2016-08-11 | D189: CAMLINFINE | E189: Accu | F189: 86.50 | H189: 130 | I189: 130.00 | J189: Profit of Rs.43.50/- | K189: =H189-F189 -> 43.50 | L189: =K189/F189 -> 50.29% | M189: Successful | N189: 2017-12-22
A190: 65 | B190: 2016-08-18 | D190: GRANULES | E190: Accu | F190: 133.5 | H190: 126.50 | I190: 178.00 | J190: Exit | K190: -7.00 | L190: -5.24% | M190: Unsuccessful | N190: 2016-09-02
A191: 66 | B191: 2016-08-31 | D191: VA TECH WABAG | E191: Accu | F191: 560.00 | H191: 725 | I191: 725.00 | J191: Target Achieved | K191: 165.00 | L191: 29.46% | M191: Successful | N191: 2016-03-27
A192: 67 | B192: 2016-09-01 | D192: SKIPPER LIMITED | E192: Accu | F192: 160.50 | H192: 210 | I192: 210.00 | J192: Target Achieved | K192: 49.50 | L192: 30.84% | M192: Successful | N192: 2017-05-16
A193: 68 | B193: 2016-10-03 | D193: IFB Industries | E193: Accu | F193: 430.00 | H193: 596 | I193: 575.00 | J193: Profit of Rs.166/- | K193: 166.00 | L193: 38.60% | M193: Successful | N193: 2017-02-03
A194: 69 | B194: 2016-10-14 | D194: ASIANTILES | E194: Accu | F194: 280.00 | H194: 345 | I194: 345.00 | J194: Target Achieved | K194: 65.00 | L194: 23.21% | M194: Successful | N194: 2017-03-20
A195: 70 | B195: 2016-10-14 | D195: DEEPIND | E195: Accu | F195: 245.00 | H195: 325.5 | I195: 330.00 | J195: Profit of Rs.80.5/- | K195: 80.50 | L195: 32.86% | M195: Successful | N195: 2017-02-03
A196: 71 | B196: 2016-10-17 | D196: DCBBANK | E196: Accu | F196: 125.00 | H196: 160 | I196: 160.00 | J196: Target Achieved | K196: 35.00 | L196: 28.00% | M196: Successful | N196: 2017-03-09
A197: 72 | B197: 2016-10-17 | D197: ORIENTREF | E197: Accu | F197: 114.00 | H197: 145 | I197: 145.00 | J197: Target Achieved | K197: 31.00 | L197: =K197/F197 -> 27.19% | M197: Successful | N197: 2017-05-04
A198: 73 | B198: 2016-10-17 | D198: GANECOS | E198: Accu | F198: 212.00 | H198: 280 | I198: 276.00 | J198: Profit of Rs.68/- | K198: 68.00 | L198: =K198/F198 -> 32.08% | M198: Successful | N198: 2017-05-03
A199: 74 | B199: 2016-11-04 | D199: NBCC | E199: Accu | F199: 155.00 | H199: 210 | I199: 210.00 | J199: Profit of Rs.55/- | K199: 55.00 | L199: =K199/F199 -> 35.48% | M199: Successful | N199: 2017-07-28
A200: 75 | B200: 2016-12-06 | D200: PRECAM | E200: Accu | F200: 150.5 | H200: 72.50 | I200: 174.00 | J200: Loss of Rs.78/- | K200: -78.00 | L200: =K200/F200 -> -51.83% | M200: Unsuccessful | N200: 2018-08-21
A201: 76 | B201: 2016-12-08 | D201: INFRATEL | E201: Accu | F201: 380.00 | H201: 478 | I201: 468.00 | J201: Target Achieved | K201: 98.00 | L201: =K201/F201 -> 25.79% | M201: Successful | N201: 2017-10-17
A202: 77 | B202: 2016-12-30 | D202: GODREJPROP | E202: Accu | F202: 305.00 | H202: 375 | I202: 375.00 | J202: Target Achieved | K202: 70.00 | L202: 22.95% | M202: Successful | N202: 2017-02-02
A203: 78 | B203: 2017-01-04 | D203: DEEPAKNTR | E203: Accu | F203: 99.50 | H203: 158 | I203: 158.00 | J203: Target Achieved | K203: 58.50 | L203: 58.79% | M203: Successful | N203: 2017-06-12
A204: 79 | B204: 2017-02-20 | D204: SUBROS | E204: Accu | F204: 202.50 | H204: 234 | I204: 234.00 | J204: Target Achieved | K204: 31.50 | L204: 15.56% | M204: Successful | N204: 2017-04-11
A205: 80 | B205: 2017-02-20 | D205: RECLTD | E205: Accu | F205: 140.50 | H205: 220 | I205: 220.00 | J205: Target Achieved | K205: 79.50 | L205: 56.58% | M205: Successful | N205: 2017-05-09
A206: 81 | B206: 2017-03-24 | D206: VRLLOG | E206: Accu | F206: 300.50 | H206: 417.5 | I206: 420.00 | J206: Profit of Rs.117/- | K206: 117.00 | L206: 38.94% | M206: Successful | N206: 2017-12-01
A207: 82 | B207: 2017-03-24 | D207: FIEMIND | E207: Accu | F207: 850.00 | H207: 1042.5 | I207: 1023.00 | J207: Profit of Rs 192.50/- | K207: 192.50 | L207: 22.65% | M207: Successful | N207: 2017-04-05
A208: 83 | B208: 2017-04-05 | D208: RATNAMANI | E208: Accu | F208: 785.00 | H208: 930 | I208: 920.00 | J208: Profit of Rs.145/- | K208: 145.00 | L208: 18.47% | M208: Successful | N208: 2017-08-29
A209: 84 | B209: 2017-04-06 | D209: ZEEMEDIA | E209: Accu | F209: 40 | H209: 13.10 | I209: 60.00 | J209: Loss of Rs.26.9/- | K209: =H209-F209 -> -26.90 | L209: -67.25% | M209: Unsuccessful | N209: 2018-02-07
A210: 85 | B210: 2017-04-12 | D210: DABUR | E210: Accu | F210: 289.50 | H210: 354 | I210: 360.00 | J210: Profit of Rs.64.5/- | K210: 64.50 | L210: =K210/F210 -> 22.28% | M210: Successful | N210: 2017-11-01
A211: 86 | B211: 2017-04-20 | D211: KPRMILL | E211: Accu | F211: 700.00 | H211: 840 | I211: 840.00 | J211: Profit of Rs.140/- | K211: 140.00 | L211: =K211/F211 -> 20.00% | M211: Successful | N211: 2017-06-07
A212: 87 | B212: 2017-05-22 | D212: GREAVESCOT | E212: Accu | F212: 153-158 | I212: 190.00 | J212: Open
A213: 88 | B213: 2017-06-01 | D213: ESSELPACK | E213: Accu | F213: 130 | H213: 155.50 | I213: 170.00 | J213: Part profit of Rs.51/- | K213: =H213-F213 -> 25.50 | L213: =K213/F213 -> 20% | M213: Successful | N213: 2017-11-17
A214: 89 | B214: 2017-06-15 | D214: KEI | E214: Accu | F214: 214.50 | H214: 262 | I214: 262.00 | J214: Profit of Rs.47.5/- | K214: =H214-F214 -> 47.50 | L214: 22.14% | M214: Successful | N214: 2017-08-30
A215: 90 | B215: 2017-07-17 | D215: MAYURUNIQ | E215: Accu | F215: 370.00 | H215: 447.5 | I215: 450.00 | J215: Target Achieved | K215: 77.50 | L215: 20.95% | M215: Successful | N215: 2017-10-27
A216: 91 | B216: 2017-07-27 | D216: RAMCOCEM | E216: Accu | F216: 657.50 | H216: 825 | I216: 820.00 | J216: Target Achieved | K216: 167.50 | L216: 25.48% | M216: Successful | N216: 2017-12-21
A217: 92 | B217: 2017-08-17 | D217: FINPIPE | E217: Accu | F217: 605.00 | H217: 750 | I217: 750.00 | J217: Profit of Rs.145/- | K217: 145.00 | L217: 23.97% | M217: Successful | N217: 2017-10-19
A218: 93 | B218: 2017-09-01 | D218: SHK | E218: Accu | F218: 255 | H218: 307.50 | I218: 320.00 | J218: Part profit of Rs.52.5/- | K218: 52.50 | L218: 21% | M218: Successful | N218: 2017-12-29
A219: 94 | B219: 2017-09-19 | D219: SKIPPER | E219: Accu | F219: 215.00 | H219: 258 | I219: 258.00 | J219: Target Achieved | K219: 43.00 | L219: 20.00% | M219: Successful | N219: 2017-11-01
A220: 95 | B220: 2017-09-20 | D220: CAMLINFINE | E220: Accu | F220: 75.00 | H220: 90 | I220: 90.00 | J220: Profit of Rs.15.00/- | K220: 15.00 | L220: 20.00% | M220: Successful | N220: 2017-10-11
A221: 96 | B221: 2017-10-03 | D221: GNA | E221: Accu | F221: 315.00 | H221: 392 | I221: 384.00 | J221: Profit of Rs.77/- | K221: 77.00 | L221: 24.44% | M221: Successful | N221: 2017-10-09
A222: 97 | B222: 2017-10-05 | D222: NOCIL | E222: Accu | F222: 145.00 | H222: 179 | I222: 180.00 | J222: Profit of Rs.34/- | K222: 34.00 | L222: 23.45% | M222: Successful | N222: 2017-10-17
A223: 98 | B223: 2017-10-06 | D223: CENTURYPLY | E223: Accu | F223: 256.00 | H223: 323 | I223: 320.00 | J223: Target Achieved | K223: 67.00 | L223: 26.17% | M223: Successful | N223: 2017-11-28
A224: 99 | B224: 2017-10-09 | D224: RECLTD | E224: Accu | F224: 152.5 | H224: 183.50 | I224: 210.00 | J224: Part Profit of Rs.31/- | K224: 31.00 | L224: 20% | M224: Successful | N224: 2017-11-03
A225: 100 | B225: 2017-10-09 | D225: EIHOTEL | E225: Accu | F225: 137.50 | H225: 184 | I225: 183.00 | J225: Profit of Rs.46.5/- | K225: 46.50 | L225: 33.82% | M225: Successful | N225: 2018-01-08
A226: 101 | B226: 2017-10-10 | D226: BOROSIL | E226: Accu | F226: 895.00 | H226: 1122.5 | I226: 1078.00 | J226: Profit of Rs.227.5/- | K226: 227.50 | L226: 25.42% | M226: Successful | N226: 2018-01-17
A227: 102 | B227: 2017-10-10 | D227: NRBBEARING | E227: Accu | F227: 125.50 | H227: 158 | I227: 155.00 | J227: Profit of Rs.32.5/- | K227: 32.50 | L227: 25.90% | M227: Successful | N227: 2017-11-28
A228: 103 | B228: 2017-10-12 | D228: CYIENT | E228: Accu | F228: 525.00 | H228: 629 | I228: 629.00 | J228: Target Achieved | K228: 104.00 | L228: 19.81% | M228: Successful | N228: 2018-01-19
A229: 104 | B229: 2017-11-07 | D229: HATSUN | E229: Accu | F229: 740.00 | H229: 892.5 | I229: 900.00 | J229: Profit of Rs.152.5/- | K229: 152.50 | L229: 20.61% | M229: Successful | N229: 2017-11-13
A230: 105 | B230: 2017-12-04 | D230: SANGHIIND | E230: Accu | F230: 118.50 | H230: 143.5 | I230: 145.00 | J230: Profit of Rs.25/- | K230: 25.00 | L230: 21.10% | M230: Successful | N230: 2017-12-28
A231: 106 | B231: 2017-12-05 | D231: ALLCARGO | E231: Accu | F231: 177.5 | H231: 215.00 | I231: 230.00 | J231: Part Profit of Rs.37.5/- | K231: 37.50 | L231: 21% | M231: Successful | N231: 2017-12-27
A232: 107 | B232: 2017-12-21 | D232: KAJARIACER | E232: Accu | F232: 710-720 | I232: 872.00 | J232: Open
A233: 108 | B233: 2017-12-29 | D233: GNA | E233: Accu | F233: 435.00 | H233: 542.5 | I233: 539.00 | J233: Target Achieved | K233: =H233-F233 -> 107.50 | L233: =K233/F233 -> 24.71% | M233: Successful | N233: 2018-04-16
A234: 109 | B234: 2017-12-29 | D234: ZENSARTECH | E234: Accu | F234: 885.00 | H234: 1090 | I234: 1084.00 | J234: Target Achieved | K234: 205.00 | L234: =K234/F234 -> 23.16% | M234: Successful | N234: 2018-04-23
A235: 110 | B235: 2018-02-07 | D235: GREAVESCOT | E235: Accu | F235: 130-132 | I235: 190.00 | J235: Open
A236: 111 | B236: 2018-02-27 | D236: MOLDTKPAC | E236: Accu | F236: 320-330 | I236: 398.00 | J236: Open
A237: 112 | B237: 2018-03-05 | D237: LICHSGFIN | E237: Accu | F237: 505-515 | I237: 672.00 | J237: Open
A238: 113 | B238: 2018-04-02 | D238: EVERESTIND | E238: Accu | F238: 492.5 | H238: 589.00 | I238: 613.00 | J238: Part Profit of Rs.37.5/- | K238: =H238-F238 -> 96.50 | L238: =K238/F238 -> 20% | M238: Successful | N238: 2018-08-21
A239: 114 | B239: 2018-04-04 | D239: GPPL | E239: Accu | F239: 141.5 | H239: 77.00 | I239: 180.00 | J239: Loss of Rs.64.5/- | K239: -64.50 | L239: -45.58% | M239: Unsuccessful | N239: 2019-02-26
A240: 115 | B240: 2018-04-19 | D240: MANPASAND | E240: Accu | F240: 430 | H240: 220.00 | I240: 537.00 | J240: Loss of Rs.210/- | K240: =H240-F240 -> -210.00 | L240: =K240/F240 -> -48.84% | M240: Unsuccessful | N240: 2018-06-01
A241: 116 | B241: 2018-04-30 | D241: HEIDELBERG | E241: Accu | F241: 156 | H241: 182.50 | I241: 196.00 | J241: Part Profit of Rs.26.5/- | K241: 26.50 | L241: 17% | M241: Successful | N241: 2019-03-11
A242: 117 | B242: 2018-05-17 | D242: PHILIPCARB | E242: Accu | F242: 230-240 | I242: 348.00 | J242: Open
A243: 118 | B243: 2018-06-07 | D243: KEC | E243: Accu | F243: 340-345 | I243: 439.00 | J243: Open
A244: 119 | B244: 2018-07-04 | D244: ASHOKLEY | E244: Accu | F244: 125-130 | I244: 170.00 | J244: Open
A245: 120 | B245: 2018-07-13 | D245: FCONSUMER | E245: Accu | F245: 46-47 | I245: 59.00 | J245: Open
A246: 121 | B246: 2018-07-25 | D246: ZEEMEDIA | E246: Accu | F246: 27.5 | H246: 13.10 | I246: 60.00 | J246: Loss of Rs.14.40/- | K246: =H246-F246 -> -14.40 | L246: =K246/F246 -> -52.36% | M246: Unsuccessful | N246: 2018-02-07
A247: 122 | B247: 2018-08-06 | D247: GABRIEL | E247: Accu | F247: 148-152 | I247: 182.00 | J247: Open
A248: 123 | B248: 2018-08-23 | D248: INDIANHUME | E248: Accu | F248: 285.00 | H248: 355 | I248: 364.00 | J248: Profit of Rs.70/- | K248: =H248-F248 -> 70.00 | L248: =K248/F248 -> 24.56% | M248: Successful | N248: 2018-12-21
A249: 124 | B249: 2018-08-29 | D249: GRINDWELL | E249: Accu | F249: 520-530 | I249: 635.00 | J249: Open
A250: 125 | B250: 2018-10-22 | D250: FINPIPE | E250: Accu | F250: 475.00 | H250: 574 | I250: 570.00 | J250: Target Achieved | K250: =H250-F250 -> 99.00 | L250: =K250/F250 -> 20.84% | M250: Successful | N250: 2018-10-30
A251: 126 | B251: 2018-10-23 | D251: JKPAPER | E251: Accu | F251: 158-162 | I251: 191.00 | J251: Open
A252: 127 | B252: 2018-10-24 | D252: GULFOILLUB | E252: Accu | F252: 707.50 | H252: 872 | I252: 872.00 | J252: Target Achieved | K252: =H252-F252 -> 164.50 | L252: =K252/F252 -> 23.25% | M252: Successful | N252: 2019-01-17
A253: 128 | B253: 2018-10-25 | D253: GODREJCP | E253: Accu | F253: 707.5 | H253: 850.00 | I253: 890.00 | J253: Part Profit of Rs.142.5/- | K253: =H253-F253 -> 142.50 | L253: =K253/F253 -> 20% | M253: Successful | N253: 2018-12-19
A254: 129 | B254: 2018-10-25 | D254: DBCORP | E254: Accu | F254: 164.00 | H254: 204 | I254: 209.00 | J254: Profit of Rs.40/- | K254: =H254-F254 -> 40.00 | L254: =K254/F254 -> 24.39% | M254: Successful | N254: 2019-03-15
A255: 130 | B255: 2018-10-26 | D255: RITES | E255: Accu | F255: 240.00 | H255: 297 | I255: 297.00 | J255: Target Achieved | K255: =H255-F255 -> 57.00 | L255: =K255/F255 -> 23.75% | M255: Successful | N255: 2018-11-13
A256: 131 | B256: 2018-12-05 | D256: CCL | E256: Accu | F256: 260-270 | I256: 321.00 | J256: Open
... 18 more rows

Sheet Sheet2 (hidden)
A1: SYMBOL | B1: SERIES | C1: OPEN | D1: HIGH | E1: LOW | F1: CLOSE | G1: LAST | H1: PREVCLOSE | I1: TOTTRDQTY | J1: TOTTRDVAL | K1: TIMESTAMP | L1: TOTALTRADES | M1: ISIN | N1: ISIN
A2: 20MICRONS | B2: EQ | C2: 39.95 | D2: 39.95 | E2: 38.25 | F2: 38.5 | G2: 38.5 | H2: 39.2 | I2: 9764 | J2: 377631.2 | K2: 2019-04-04 | L2: 172 | M2: INE144J01027
A3: 21STCENMGM | B3: EQ | C3: 20.7 | D3: 20.7 | E3: 20.7 | F3: 20.7 | G3: 20.7 | H3: 20.3 | I3: 1090 | J3: 22563 | K3: 2019-04-04 | L3: 8 | M3: INE253B01015
A4: 3IINFOTECH | B4: EQ | C4: 3.7 | D4: 3.75 | E4: 3.65 | F4: 3.7 | G4: 3.7 | H4: 3.7 | I4: 774268 | J4: 2866577.75 | K4: 2019-04-04 | L4: 1007 | M4: INE748C01020
A5: 3MINDIA | B5: EQ | C5: 23760.5 | D5: 24240 | E5: 23600 | F5: 23654.9 | G5: 23800 | H5: 23983.5 | I5: 1008 | J5: 23946898.55 | K5: 2019-04-04 | L5: 555 | M5: INE470A01017
A6: 3PLAND | B6: EQ | C6: 10.7 | D6: 11.6 | E6: 10.7 | F6: 11.55 | G6: 11.55 | H6: 11.1 | I6: 229 | J6: 2650.9 | K6: 2019-04-04 | L6: 8 | M6: INE105C01023
A7: 5PAISA | B7: EQ | C7: 230.1 | D7: 233.85 | E7: 229.85 | F7: 230.25 | G7: 229.85 | H7: 233.1 | I7: 1678 | J7: 387638.65 | K7: 2019-04-04 | L7: 100 | M7: INE618L01018
A8: 63MOONS | B8: EQ | C8: 81.15 | D8: 81.3 | E8: 79.9 | F8: 80.35 | G8: 80.4 | H8: 80.8 | I8: 74702 | J8: 6025484.9 | K8: 2019-04-04 | L8: 1121 | M8: INE111B01023
A9: 8KMILES | B9: EQ | C9: 102.3 | D9: 105.3 | E9: 100.3 | F9: 105.3 | G9: 105.3 | H9: 100.3 | I9: 779395 | J9: 81661052.7 | K9: 2019-04-04 | L9: 4845 | M9: INE650K01021
A10: A2ZINFRA | B10: EQ | C10: 17.5 | D10: 17.55 | E10: 17 | F10: 17.3 | G10: 17.5 | H10: 17.25 | I10: 708142 | J10: 12221077.85 | K10: 2019-04-04 | L10: 354 | M10: INE619I01012
A11: AARTIDRUGS | B11: EQ | C11: 626 | D11: 628.95 | E11: 616 | F11: 621.5 | G11: 625.5 | H11: 621.5 | I11: 9766 | J11: 6051124.6 | K11: 2019-04-04 | L11: 470 | M11: INE767A01016
A12: AARTIIND | B12: EQ | C12: 1579.6 | D12: 1590 | E12: 1565 | F12: 1586.2 | G12: 1581 | H12: 1579.6 | I12: 55925 | J12: 88122047.2 | K12: 2019-04-04 | L12: 5978 | M12: INE769A01020
A13: AARVEEDEN | B13: EQ | C13: 23.45 | D13: 23.8 | E13: 23.05 | F13: 23.15 | G13: 23.15 | H13: 23.45 | I13: 679 | J13: 15728.15 | K13: 2019-04-04 | L13: 39 | M13: INE273D01019
A14: AAVAS | B14: EQ | C14: 1159.6 | D14: 1170 | E14: 1144 | F14: 1146.3 | G14: 1145 | H14: 1159.6 | I14: 7949 | J14: 9197366.4 | K14: 2019-04-04 | L14: 1305 | M14: INE216P01012
A15: ABAN | B15: BE | C15: 59.5 | D15: 60.5 | E15: 58.2 | F15: 58.9 | G15: 58.95 | H15: 58.45 | I15: 54358 | J15: 3228928.25 | K15: 2019-04-04 | L15: 554 | M15: INE421A01028
A16: ABB | B16: EQ | C16: 1335 | D16: 1337.95 | E16: 1310 | F16: 1325.45 | G16: 1326 | H16: 1332.15 | I16: 40925 | J16: 54136417.05 | K16: 2019-04-04 | L16: 3048 | M16: INE117A01022
A17: ABBOTINDIA | B17: EQ | C17: 7321.25 | D17: 7330 | E17: 7236.05 | F17: 7260.4 | G17: 7245 | H17: 7329 | I17: 3341 | J17: 24318020.25 | K17: 2019-04-04 | L17: 612 | M17: INE358A01014
A18: ABCAPITAL | B18: EQ | C18: 100.65 | D18: 101 | E18: 98 | F18: 98.35 | G18: 98.45 | H18: 100.3 | I18: 2877367 | J18: 284759241.2 | K18: 2019-04-04 | L18: 20418 | M18: INE674K01013
A19: ABFRL | B19: EQ | C19: 219.7 | D19: 221.5 | E19: 218.1 | F19: 220.05 | G19: 220 | H19: 219.7 | I19: 480266 | J19: 105563244.8 | K19: 2019-04-04 | L19: 10063 | M19: INE647O01011
A20: ABSLNN50ET | B20: EQ | C20: 335 | D20: 335 | E20: 303 | F20: 310 | G20: 310 | H20: 314.1 | I20: 33 | J20: 10704.2 | K20: 2019-04-04 | L20: 10 | M20: INF209KB1B87
A21: ACC | B21: EQ | C21: 1629.9 | D21: 1652.15 | E21: 1616.75 | F21: 1628.85 | G21: 1631 | H21: 1624.6 | I21: 1282592 | J21: 2102094745 | K21: 2019-04-04 | L21: 44167 | M21: INE012A01025
A22: ACCELYA | B22: EQ | C22: 931.1 | D22: 945.05 | E22: 915 | F22: 921.9 | G22: 921 | H22: 933.75 | I22: 4337 | J22: 4033317.05 | K22: 2019-04-04 | L22: 555 | M22: INE793A01012
A23: ACE | B23: EQ | C23: 113.25 | D23: 116.9 | E23: 110.65 | F23: 113.25 | G23: 113 | H23: 113.15 | I23: 340875 | J23: 38587473.35 | K23: 2019-04-04 | L23: 7433 | M23: INE731H01025
A24: ADANIENT | B24: EQ | C24: 147.95 | D24: 150.3 | E24: 145.45 | F24: 147.5 | G24: 147.4 | H24: 147.55 | I24: 3963980 | J24: 586466222.2 | K24: 2019-04-04 | L24: 26648 | M24: INE423A01024
A25: ADANIGAS | B25: EQ | C25: 128.9 | D25: 134 | E25: 128.45 | F25: 130.85 | G25: 130.95 | H25: 128.5 | I25: 501350 | J25: 65657215.55 | K25: 2019-04-04 | L25: 6107 | M25: INE399L01023
A26: ADANIGREEN | B26: EQ | C26: 37.3 | D26: 37.7 | E26: 36.45 | F26: 36.95 | G26: 36.9 | H26: 37.25 | I26: 425277 | J26: 15733298.95 | K26: 2019-04-04 | L26: 1481 | M26: INE364U01010
A27: ADANIPORTS | B27: EQ | C27: 382 | D27: 382.05 | E27: 374.7 | F27: 380.2 | G27: 378.9 | H27: 382 | I27: 1909852 | J27: 723738022 | K27: 2019-04-04 | L27: 22785 | M27: INE742F01042
A28: ADANIPOWER | B28: EQ | C28: 49.5 | D28: 49.6 | E28: 47.75 | F28: 47.95 | G28: 48.05 | H28: 49.4 | I28: 12299012 | J28: 595489718.6 | K28: 2019-04-04 | L28: 15879 | M28: INE814H01011
A29: ADANITRANS | B29: EQ | C29: 219.45 | D29: 222.3 | E29: 219 | F29: 221.8 | G29: 221.9 | H29: 218.4 | I29: 79401 | J29: 17561330.95 | K29: 2019-04-04 | L29: 2876 | M29: INE931S01010
A30: ADFFOODS | B30: EQ | C30: 244.25 | D30: 246.35 | E30: 243.2 | F30: 244.35 | G30: 244 | H30: 246.65 | I30: 7684 | J30: 1880039.55 | K30: 2019-04-04 | L30: 292 | M30: INE982B01019
A31: ADHUNIK | B31: BE | C31: 3.2 | D31: 3.2 | E31: 3.2 | F31: 3.2 | G31: 3.2 | H31: 3.05 | I31: 34486 | J31: 110355.2 | K31: 2019-04-04 | L31: 33 | M31: INE400H01019
A32: ADHUNIKIND | B32: EQ | C32: 56.1 | D32: 57 | E32: 55.35 | F32: 56.85 | G32: 57 | H32: 55.95 | I32: 7752 | J32: 437154.8 | K32: 2019-04-04 | L32: 72 | M32: INE452L01012
A33: ADLABS | B33: EQ | C33: 9.65 | D33: 9.65 | E33: 8.85 | F33: 9.65 | G33: 9.65 | H33: 9.2 | I33: 3375598 | J33: 32060123.5 | K33: 2019-04-04 | L33: 2032 | M33: INE172N01012
A34: ADORWELD | B34: EQ | C34: 347.7 | D34: 349.95 | E34: 345.05 | F34: 347.15 | G34: 347.25 | H34: 349.4 | I34: 2012 | J34: 699322.75 | K34: 2019-04-04 | L34: 130 | M34: INE045A01017
A35: ADROITINFO | B35: BE | C35: 16 | D35: 16.25 | E35: 16 | F35: 16.15 | G35: 16.25 | H35: 16.25 | I35: 856 | J35: 13826 | K35: 2019-04-04 | L35: 7 | M35: INE737B01033
A36: ADSL | B36: EQ | C36: 13.9 | D36: 13.9 | E36: 13.25 | F36: 13.65 | G36: 13.7 | H36: 13.6 | I36: 6573 | J36: 89313.1 | K36: 2019-04-04 | L36: 52 | M36: INE102I01027
A37: ADVANIHOTR | B37: EQ | C37: 67.55 | D37: 74 | E37: 66.5 | F37: 67 | G37: 67.4 | H37: 67.7 | I37: 89265 | J37: 6318628.15 | K37: 2019-04-04 | L37: 1101 | M37: INE199C01026
A38: ADVENZYMES | B38: EQ | C38: 180.85 | D38: 188 | E38: 179.7 | F38: 185.1 | G38: 185 | H38: 180.9 | I38: 298375 | J38: 55336378.95 | K38: 2019-04-04 | L38: 4856 | M38: INE837H01020
A39: AEGISCHEM | B39: EQ | C39: 204.5 | D39: 205.1 | E39: 198.45 | F39: 203.9 | G39: 204 | H39: 205.2 | I39: 150845 | J39: 30546423.9 | K39: 2019-04-04 | L39: 4499 | M39: INE208C01025
A40: AGARIND | B40: EQ | C40: 162.85 | D40: 162.85 | E40: 156.55 | F40: 159.95 | G40: 159.95 | H40: 160.25 | I40: 331 | J40: 52302.55 | K40: 2019-04-04 | L40: 38 | M40: INE204E01012
A41: AGCNET | B41: EQ | C41: 117.5 | D41: 123 | E41: 115.5 | F41: 115.95 | G41: 116 | H41: 117.55 | I41: 10363 | J41: 1235495.65 | K41: 2019-04-04 | L41: 121 | M41: INE676A01019
A42: AGLSL | B42: EQ | C42: 58.7 | D42: 58.7 | E42: 57.25 | F42: 57.65 | G42: 57.65 | H42: 57.95 | I42: 1562 | J42: 90465.4 | K42: 2019-04-04 | L42: 31 | M42: INE517U01013
A43: AGRITECH | B43: EQ | C43: 53.05 | D43: 54.45 | E43: 52.15 | F43: 53.1 | G43: 52.15 | H43: 53.4 | I43: 2460 | J43: 130943.55 | K43: 2019-04-04 | L43: 63 | M43: INE449G01018
A44: AGROPHOS | B44: BE | C44: 72 | D44: 72 | E44: 65.55 | F44: 71.75 | G44: 71.75 | H44: 69 | I44: 28557 | J44: 2053881.5 | K44: 2019-04-04 | L44: 9 | M44: INE740V01019
A45: AHLEAST | B45: EQ | C45: 238.3 | D45: 239.8 | E45: 235.1 | F45: 237.15 | G45: 235.1 | H45: 239.3 | I45: 1634 | J45: 388923.3 | K45: 2019-04-04 | L45: 41 | M45: INE926K01017
A46: AHLUCONT | B46: EQ | C46: 334.55 | D46: 334.55 | E46: 332.3 | F46: 333.8 | G46: 333 | H46: 333.05 | I46: 1465 | J46: 488251.85 | K46: 2019-04-04 | L46: 67 | M46: INE758C01029
A47: AHLWEST | B47: EQ | C47: 354.75 | D47: 354.75 | E47: 345.5 | F47: 354 | G47: 354 | H47: 354.45 | I47: 114 | J47: 39731.75 | K47: 2019-04-04 | L47: 9 | M47: INE915K01010
A48: AIAENG | B48: EQ | C48: 1726.35 | D48: 1726.35 | E48: 1701.05 | F48: 1706.3 | G48: 1701.1 | H48: 1726.35 | I48: 11091 | J48: 18935283.7 | K48: 2019-04-04 | L48: 1871 | M48: INE212H01026
A49: AIFL | B49: BE | C49: 12.75 | D49: 12.75 | E49: 11.65 | F49: 11.95 | G49: 12.05 | H49: 12.2 | I49: 18463 | J49: 218839.05 | K49: 2019-04-04 | L49: 107 | M49: INE428O01016
A50: AIONJSW | B50: EQ | C50: 29.9 | D50: 29.9 | E50: 28 | F50: 28.4 | G50: 28.5 | H50: 29.45 | I50: 87499 | J50: 2500773.25 | K50: 2019-04-04 | L50: 329 | M50: INE743C01021
A51: AJANTPHARM | B51: EQ | C51: 1023.7 | D51: 1030 | E51: 1008.75 | F51: 1020.75 | G51: 1020.8 | H51: 1023.4 | I51: 143511 | J51: 146055327.2 | K51: 2019-04-04 | L51: 5980 | M51: INE031B01049
A52: AJMERA | B52: EQ | C52: 187.9 | D52: 188.15 | E52: 182.7 | F52: 186.8 | G52: 188 | H52: 187.6 | I52: 87746 | J52: 16273980.85 | K52: 2019-04-04 | L52: 2078 | M52: INE298G01027
A53: AKSHARCHEM | B53: EQ | C53: 344.9 | D53: 344.9 | E53: 335.05 | F53: 337.65 | G53: 336 | H53: 348.85 | I53: 1372 | J53: 467898.2 | K53: 2019-04-04 | L53: 125 | M53: INE542B01011
A54: AKSHOPTFBR | B54: EQ | C54: 18.55 | D54: 18.65 | E54: 18.3 | F54: 18.6 | G54: 18.65 | H54: 18.5 | I54: 388629 | J54: 7194659.8 | K54: 2019-04-04 | L54: 766 | M54: INE523B01011
A55: AKZOINDIA | B55: EQ | C55: 1792 | D55: 1860 | E55: 1773.05 | F55: 1834.95 | G55: 1851 | H55: 1792 | I55: 19116 | J55: 34733319.3 | K55: 2019-04-04 | L55: 2532 | M55: INE133A01011
A56: ALANKIT | B56: EQ | C56: 31.95 | D56: 31.95 | E56: 30.5 | F56: 31.05 | G56: 31.05 | H56: 32.05 | I56: 623301 | J56: 19449646.2 | K56: 2019-04-04 | L56: 5804 | M56: INE914E01040
A57: ALBERTDAVD | B57: EQ | C57: 422.7 | D57: 423 | E57: 412 | F57: 414.75 | G57: 414.95 | H57: 423.9 | I57: 4644 | J57: 1931617.4 | K57: 2019-04-04 | L57: 203 | M57: INE155C01010
A58: ALBK | B58: EQ | C58: 53 | D58: 54.95 | E58: 52.75 | F58: 53.5 | G58: 53.5 | H58: 53.4 | I58: 7012985 | J58: 377401736.9 | K58: 2019-04-04 | L58: 18111 | M58: INE428A01015
A59: ALCHEM | B59: BE | C59: 2 | D59: 2 | E59: 1.9 | F59: 2 | G59: 1.95 | H59: 1.95 | I59: 3618 | J59: 6932.05 | K59: 2019-04-04 | L59: 14 | M59: INE964B01033
A60: ALEMBICLTD | B60: EQ | C60: 41.9 | D60: 42.3 | E60: 41.4 | F60: 41.7 | G60: 41.7 | H60: 42.05 | I60: 127601 | J60: 5331226.3 | K60: 2019-04-04 | L60: 517 | M60: INE426A01027
A61: ALICON | B61: EQ | C61: 603.05 | D61: 603.05 | E61: 570 | F61: 574.1 | G61: 575 | H61: 598.9 | I61: 3781 | J61: 2178975.7 | K61: 2019-04-04 | L61: 321 | M61: INE062D01024
A62: ALKALI | B62: EQ | C62: 42 | D62: 43.25 | E62: 42 | F62: 42.15 | G62: 42.25 | H62: 42.35 | I62: 9360 | J62: 395399.2 | K62: 2019-04-04 | L62: 98 | M62: INE773I01017
A63: ALKEM | B63: EQ | C63: 1748 | D63: 1762 | E63: 1734.5 | F63: 1756.9 | G63: 1755.25 | H63: 1739.3 | I63: 46718 | J63: 81432558.1 | K63: 2019-04-04 | L63: 2471 | M63: INE540L01014
A64: ALKYLAMINE | B64: EQ | C64: 826.45 | D64: 834 | E64: 818 | F64: 823.75 | G64: 834 | H64: 824 | I64: 2722 | J64: 2239433.9 | K64: 2019-04-04 | L64: 134 | M64: INE150B01021
A65: ALLCARGO | B65: EQ | C65: 111 | D65: 111.7 | E65: 109 | F65: 109.3 | G65: 109.1 | H65: 111.7 | I65: 157730 | J65: 17320878.45 | K65: 2019-04-04 | L65: 1734 | M65: INE418H01029
A66: ALLSEC | B66: BE | C66: 276 | D66: 290 | E66: 276 | F66: 285.9 | G66: 285.1 | H66: 286.85 | I66: 9534 | J66: 2711361 | K66: 2019-04-04 | L66: 68 | M66: INE835G01018
A67: ALMONDZ | B67: EQ | C67: 22.45 | D67: 22.7 | E67: 21.65 | F67: 22.2 | G67: 22.2 | H67: 22.3 | I67: 2300 | J67: 51023.8 | K67: 2019-04-04 | L67: 34 | M67: INE326B01027
A68: ALOKTEXT | B68: BE | C68: 5.15 | D68: 5.25 | E68: 4.9 | F68: 4.95 | G68: 5 | H68: 5.15 | I68: 3883429 | J68: 19341486.1 | K68: 2019-04-04 | L68: 1987 | M68: INE270A01011
A69: ALPA | B69: EQ | C69: 26.8 | D69: 27.55 | E69: 26.35 | F69: 27 | G69: 27.3 | H69: 26.75 | I69: 21097 | J69: 573379.45 | K69: 2019-04-04 | L69: 111 | M69: INE385I01010
A70: ALPHAGEO | B70: EQ | C70: 507.5 | D70: 511.5 | E70: 485.25 | F70: 489.9 | G70: 490 | H70: 490.9 | I70: 23109 | J70: 11399927.3 | K70: 2019-04-04 | L70: 1244 | M70: INE137C01018
A71: AMARAJABAT | B71: EQ | C71: 692 | D71: 698 | E71: 658 | F71: 676.15 | G71: 673.7 | H71: 672.35 | I71: 9273076 | J71: 6256987163 | K71: 2019-04-04 | L71: 179967 | M71: INE885A01032
A72: AMBER | B72: EQ | C72: 847.9 | D72: 849.9 | E72: 820.1 | F72: 826.55 | G72: 825.1 | H72: 841.7 | I72: 20835 | J72: 17394327.5 | K72: 2019-04-04 | L72: 1298 | M72: INE371P01015
A73: AMBIKCO | B73: EQ | C73: 1135.1 | D73: 1137.5 | E73: 1130 | F73: 1134.45 | G73: 1137 | H73: 1135.85 | I73: 1901 | J73: 2154383.9 | K73: 2019-04-04 | L73: 133 | M73: INE540G01014
A74: AMBUJACEM | B74: EQ | C74: 226.75 | D74: 229.35 | E74: 222.05 | F74: 222.6 | G74: 222.5 | H74: 226.75 | I74: 11011371 | J74: 2479600232 | K74: 2019-04-04 | L74: 54178 | M74: INE079A01024
A75: AMDIND | B75: EQ | C75: 20.7 | D75: 20.7 | E75: 19.8 | F75: 20.15 | G75: 20.3 | H75: 20.25 | I75: 3891 | J75: 78277.4 | K75: 2019-04-04 | L75: 60 | M75: INE005I01014
A76: AMJLAND | B76: EQ | C76: 19.5 | D76: 19.8 | E76: 19 | F76: 19.25 | G76: 19.3 | H76: 19.6 | I76: 4821 | J76: 93192.6 | K76: 2019-04-04 | L76: 64 | M76: INE606A01024
A77: AMRUTANJAN | B77: EQ | C77: 315.05 | D77: 317.15 | E77: 301.6 | F77: 304 | G77: 305.35 | H77: 313.6 | I77: 23137 | J77: 7108443.35 | K77: 2019-04-04 | L77: 1136 | M77: INE098F01031
A78: ANANTRAJ | B78: EQ | C78: 34 | D78: 34 | E78: 33.3 | F78: 33.45 | G78: 33.4 | H78: 33.85 | I78: 293071 | J78: 9822659.6 | K78: 2019-04-04 | L78: 1046 | M78: INE242C01024
A79: ANDHRABANK | B79: EQ | C79: 31 | D79: 31.3 | E79: 30.25 | F79: 30.75 | G79: 30.8 | H79: 31.05 | I79: 2168299 | J79: 66949004.35 | K79: 2019-04-04 | L79: 10637 | M79: INE434A01013
A80: ANDHRACEMT | B80: BE | C80: 5.05 | D80: 5.05 | E80: 4.7 | F80: 4.85 | G80: 4.85 | H80: 4.85 | I80: 68431 | J80: 330858.55 | K80: 2019-04-04 | L80: 110 | M80: INE666E01012
A81: ANDHRSUGAR | B81: EQ | C81: 348.1 | D81: 356.55 | E81: 345.1 | F81: 351.7 | G81: 352 | H81: 349.25 | I81: 39105 | J81: 13754710.15 | K81: 2019-04-04 | L81: 940 | M81: INE715B01013
A82: ANIKINDS | B82: EQ | C82: 15.25 | D82: 15.25 | E82: 14.5 | F82: 14.65 | G82: 14.5 | H82: 15.25 | I82: 10421 | J82: 153003.6 | K82: 2019-04-04 | L82: 63 | M82: INE087B01017
A83: ANKITMETAL | B83: BE | C83: 0.45 | D83: 0.55 | E83: 0.45 | F83: 0.5 | G83: 0.5 | H83: 0.5 | I83: 55338 | J83: 26257.4 | K83: 2019-04-04 | L83: 34 | M83: INE106I01010
A84: ANSALAPI | B84: EQ | C84: 11.75 | D84: 12.1 | E84: 11.6 | F84: 11.7 | G84: 11.65 | H84: 11.4 | I84: 358640 | J84: 4240721.05 | K84: 2019-04-04 | L84: 1075 | M84: INE436A01026
A85: ANSALHSG | B85: EQ | C85: 12.75 | D85: 12.85 | E85: 12.75 | F85: 12.85 | G85: 12.85 | H85: 12.25 | I85: 39346 | J85: 505335.5 | K85: 2019-04-04 | L85: 129 | M85: INE880B01015
A86: ANTGRAPHIC | B86: BE | C86: 0.45 | D86: 0.5 | E86: 0.45 | F86: 0.5 | G86: 0.5 | H86: 0.5 | I86: 56171 | J86: 25462 | K86: 2019-04-04 | L86: 11 | M86: INE414B01021
A87: ANUP | B87: EQ | C87: 529 | D87: 542 | E87: 523.95 | F87: 530.85 | G87: 530.25 | H87: 527.05 | I87: 19423 | J87: 10301824.55 | K87: 2019-04-04 | L87: 1001 | M87: INE294Z01018
A88: APARINDS | B88: EQ | C88: 679.3 | D88: 684 | E88: 677.15 | F88: 680.15 | G88: 680 | H88: 681.15 | I88: 2552 | J88: 1735847.05 | K88: 2019-04-04 | L88: 327 | M88: INE372A01015
A89: APCL | B89: EQ | C89: 124.6 | D89: 127.4 | E89: 124.05 | F89: 126.2 | G89: 126 | H89: 124.85 | I89: 1846 | J89: 232094.4 | K89: 2019-04-04 | L89: 45 | M89: INE071F01012
A90: APCOTEXIND | B90: EQ | C90: 522 | D90: 524 | E90: 515.6 | F90: 518.3 | G90: 516 | H90: 523.85 | I90: 1067 | J90: 554030.15 | K90: 2019-04-04 | L90: 110 | M90: INE116A01024
A91: APEX | B91: EQ | C91: 332 | D91: 333.85 | E91: 324 | F91: 326.85 | G91: 326 | H91: 331.4 | I91: 76850 | J91: 25174004.85 | K91: 2019-04-04 | L91: 3522 | M91: INE346W01013
A92: APLAPOLLO | B92: EQ | C92: 1478.95 | D92: 1494.35 | E92: 1403.6 | F92: 1442.4 | G92: 1436 | H92: 1469.65 | I92: 13174 | J92: 19157089.1 | K92: 2019-04-04 | L92: 1880 | M92: INE702C01019
A93: APLLTD | B93: EQ | C93: 525.05 | D93: 542 | E93: 525.05 | F93: 537.1 | G93: 534 | H93: 532.15 | I93: 6868 | J93: 3669252.2 | K93: 2019-04-04 | L93: 857 | M93: INE901L01018
A94: APOLLO | B94: EQ | C94: 140.8 | D94: 143.8 | E94: 136 | F94: 139.25 | G94: 139.9 | H94: 139.35 | I94: 86697 | J94: 12149866.3 | K94: 2019-04-04 | L94: 1968 | M94: INE713T01010
A95: APOLLOHOSP | B95: EQ | C95: 1262.95 | D95: 1269 | E95: 1249.05 | F95: 1256.25 | G95: 1257.5 | H95: 1259.75 | I95: 236648 | J95: 297628800.1 | K95: 2019-04-04 | L95: 12814 | M95: INE437A01024
A96: APOLLOTYRE | B96: EQ | C96: 220.1 | D96: 223.55 | E96: 217 | F96: 222.9 | G96: 222.45 | H96: 219.85 | I96: 2344897 | J96: 517514027.4 | K96: 2019-04-04 | L96: 68854 | M96: INE438A01022
A97: APOLSINHOT | B97: EQ | C97: 909.85 | D97: 909.85 | E97: 860 | F97: 867.5 | G97: 862 | H97: 879.4 | I97: 1250 | J97: 1091170.45 | K97: 2019-04-04 | L97: 106 | M97: INE451F01024
A98: APTECHT | B98: EQ | C98: 177.7 | D98: 178 | E98: 171.5 | F98: 172.55 | G98: 173 | H98: 176.35 | I98: 163590 | J98: 28494162.75 | K98: 2019-04-04 | L98: 3146 | M98: INE266F01018
A99: ARCHIDPLY | B99: EQ | C99: 39.5 | D99: 39.55 | E99: 38.75 | F99: 38.75 | G99: 38.75 | H99: 39.55 | I99: 11051 | J99: 431703.25 | K99: 2019-04-04 | L99: 144 | M99: INE877I01016
A100: ARCHIES | B100: EQ | C100: 24.35 | D100: 24.7 | E100: 23.95 | F100: 24.05 | G100: 24.2 | H100: 24.55 | I100: 29738 | J100: 717943.65 | K100: 2019-04-04 | L100: 256 | M100: INE731A01020
A101: ARCOTECH | B101: BE | C101: 5.75 | D101: 5.8 | E101: 5.45 | F101: 5.6 | G101: 5.65 | H101: 5.65 | I101: 27294 | J101: 154821.15 | K101: 2019-04-04 | L101: 56 | M101: INE574I01035
A102: ARIES | B102: EQ | C102: 88 | D102: 90 | E102: 86.65 | F102: 87.2 | G102: 87.5 | H102: 88.45 | I102: 47226 | J102: 4167543.35 | K102: 2019-04-04 | L102: 1165 | M102: INE298I01015
A103: ARIHANT | B103: EQ | C103: 28.1 | D103: 28.85 | E103: 28.05 | F103: 28.5 | G103: 28.5 | H103: 28.65 | I103: 4621 | J103: 131292.5 | K103: 2019-04-04 | L103: 12 | M103: INE413D01011
A104: ARIHANTSUP | B104: BE | C104: 57.2 | D104: 57.2 | E104: 55.25 | F104: 57 | G104: 57 | H104: 56.6 | I104: 10232 | J104: 582071.7 | K104: 2019-04-04 | L104: 75 | M104: INE643K01018
A105: ARMANFIN | B105: EQ | C105: 371 | D105: 373.95 | E105: 365.2 | F105: 366.75 | G105: 365.55 | H105: 366.65 | I105: 6851 | J105: 2533393.55 | K105: 2019-04-04 | L105: 143 | M105: INE109C01017
A106: AROGRANITE | B106: EQ | C106: 50.6 | D106: 50.65 | E106: 47.8 | F106: 48.15 | G106: 47.9 | H106: 49.2 | I106: 9482 | J106: 459970.8 | K106: 2019-04-04 | L106: 256 | M106: INE210C01013
A107: ARROWGREEN | B107: EQ | C107: 86 | D107: 86 | E107: 79.95 | F107: 80.5 | G107: 80.75 | H107: 84.15 | I107: 10863 | J107: 886936.65 | K107: 2019-04-04 | L107: 209 | M107: INE570D01018
A108: ARROWTEX | B108: EQ | C108: 17.8 | D108: 18.8 | E108: 17.5 | F108: 17.9 | G108: 17.65 | H108: 17.9 | I108: 4948 | J108: 89418.8 | K108: 2019-04-04 | L108: 71 | M108: INE933J01015
A109: ARSHIYA | B109: EQ | C109: 36.75 | D109: 38.3 | E109: 35.1 | F109: 36.6 | G109: 36.7 | H109: 36.75 | I109: 188514 | J109: 6893794.3 | K109: 2019-04-04 | L109: 1542 | M109: INE968D01022
A110: ARSSINFRA | B110: EQ | C110: 43.25 | D110: 43.7 | E110: 42.5 | F110: 42.75 | G110: 42.9 | H110: 43.95 | I110: 8783 | J110: 377617.35 | K110: 2019-04-04 | L110: 102 | M110: INE267I01010
A111: ARVIND | B111: EQ | C111: 90.3 | D111: 93.1 | E111: 89.45 | F111: 91.75 | G111: 91.75 | H111: 90.1 | I111: 3398829 | J111: 311305327.4 | K111: 2019-04-04 | L111: 23866 | M111: INE034A01011
A112: ARVINDFASN | B112: EQ | C112: 1010 | D112: 1010 | E112: 972.45 | F112: 987.9 | G112: 985.2 | H112: 1002.05 | I112: 94286 | J112: 93373057 | K112: 2019-04-04 | L112: 4211 | M112: INE955V01021
A113: ARVSMART | B113: EQ | C113: 132.05 | D113: 136 | E113: 131.25 | F113: 132.1 | G113: 131.95 | H113: 131.6 | I113: 14218 | J113: 1893140.95 | K113: 2019-04-04 | L113: 315 | M113: INE034S01021
A114: ASAHIINDIA | B114: EQ | C114: 256.4 | D114: 256.45 | E114: 247.25 | F114: 249.4 | G114: 248.8 | H114: 253.8 | I114: 21342 | J114: 5345053.15 | K114: 2019-04-04 | L114: 316 | M114: INE439A01020
A115: ASAHISONG | B115: EQ | C115: 162.45 | D115: 162.75 | E115: 158 | F115: 158.5 | G115: 158.5 | H115: 161.55 | I115: 1979 | J115: 315943.55 | K115: 2019-04-04 | L115: 75 | M115: INE228I01012
A116: ASAL | B116: EQ | C116: 54.05 | D116: 54.95 | E116: 53.8 | F116: 54.7 | G116: 54.9 | H116: 54.7 | I116: 2715 | J116: 148146.1 | K116: 2019-04-04 | L116: 24 | M116: INE900C01027
A117: ASHAPURMIN | B117: BE | C117: 26.7 | D117: 27.95 | E117: 26.7 | F117: 27.65 | G117: 27.55 | H117: 27.8 | I117: 36791 | J117: 1014346.65 | K117: 2019-04-04 | L117: 128 | M117: INE348A01023
A118: ASHIANA | B118: EQ | C118: 119.6 | D118: 121 | E118: 118.1 | F118: 119.5 | G118: 120 | H118: 119.95 | I118: 39045 | J118: 4656453.3 | K118: 2019-04-04 | L118: 375 | M118: INE365D01021
A119: ASHIMASYN | B119: EQ | C119: 11.5 | D119: 12.2 | E119: 11.5 | F119: 12.2 | G119: 12.2 | H119: 11.75 | I119: 8360 | J119: 99391.6 | K119: 2019-04-04 | L119: 43 | M119: INE440A01010
A120: ASHOKA | B120: EQ | C120: 132 | D120: 132.9 | E120: 126 | F120: 127.8 | G120: 127.5 | H120: 133.1 | I120: 231750 | J120: 29715513.9 | K120: 2019-04-04 | L120: 3949 | M120: INE442H01029
A121: ASHOKLEY | B121: EQ | C121: 87.5 | D121: 88.8 | E121: 87 | F121: 87.45 | G121: 87.35 | H121: 87.8 | I121: 19328175 | J121: 1697545670 | K121: 2019-04-04 | L121: 61061 | M121: INE208A01029
A122: ASIANHOTNR | B122: EQ | C122: 133 | D122: 133.75 | E122: 131.15 | F122: 132.3 | G122: 132 | H122: 134.3 | I122: 353 | J122: 46966.15 | K122: 2019-04-04 | L122: 32 | M122: INE363A01022
A123: ASIANPAINT | B123: EQ | C123: 1504.8 | D123: 1525 | E123: 1503 | F123: 1519 | G123: 1517.5 | H123: 1497.6 | I123: 1409222 | J123: 2138970559 | K123: 2019-04-04 | L123: 54230 | M123: INE021A01026
A124: ASIANTILES | B124: EQ | C124: 234.3 | D124: 239 | E124: 229 | F124: 234.35 | G124: 234 | H124: 234.95 | I124: 43336 | J124: 10093111.5 | K124: 2019-04-04 | L124: 2221 | M124: INE022I01019
A125: ASPINWALL | B125: EQ | C125: 168.05 | D125: 175 | E125: 168.05 | F125: 171.7 | G125: 171.9 | H125: 167.6 | I125: 397 | J125: 68600.25 | K125: 2019-04-04 | L125: 19 | M125: INE991I01015
A126: ASSAMCO | B126: BE | C126: 2 | D126: 2.2 | E126: 2 | F126: 2.05 | G126: 2 | H126: 2.1 | I126: 87012 | J126: 178971.25 | K126: 2019-04-04 | L126: 100 | M126: INE442A01024
A127: ASTEC | B127: EQ | C127: 545.5 | D127: 545.5 | E127: 522.2 | F127: 527.25 | G127: 527.5 | H127: 545.4 | I127: 14624 | J127: 7752215.4 | K127: 2019-04-04 | L127: 1126 | M127: INE563J01010
A128: ASTERDM | B128: EQ | C128: 154.05 | D128: 155.35 | E128: 152 | F128: 152.35 | G128: 152.65 | H128: 154.9 | I128: 31302 | J128: 4796411.8 | K128: 2019-04-04 | L128: 2234 | M128: INE914M01019
A129: ASTRAL | B129: EQ | C129: 1174.95 | D129: 1178.95 | E129: 1163.25 | F129: 1167.1 | G129: 1165 | H129: 1167.2 | I129: 12464 | J129: 14558201.5 | K129: 2019-04-04 | L129: 1593 | M129: INE006I01046
A130: ASTRAMICRO | B130: EQ | C130: 96.15 | D130: 97.9 | E130: 95.1 | F130: 95.95 | G130: 95.45 | H130: 95.85 | I130: 345716 | J130: 33263375.8 | K130: 2019-04-04 | L130: 1661 | M130: INE386C01029
A131: ASTRAZEN | B131: EQ | C131: 1993.5 | D131: 2022 | E131: 1974.6 | F131: 1993.9 | G131: 2010 | H131: 1997.9 | I131: 6273 | J131: 12540857.35 | K131: 2019-04-04 | L131: 931 | M131: INE203A01020
A132: ASTRON | B132: EQ | C132: 104.5 | D132: 104.5 | E132: 100.2 | F132: 100.75 | G132: 101.3 | H132: 103.35 | I132: 123151 | J132: 12464657.55 | K132: 2019-04-04 | L132: 1519 | M132: INE646X01014
A133: ATFL | B133: EQ | C133: 584.9 | D133: 584.9 | E133: 579.5 | F133: 580.45 | G133: 580 | H133: 582.05 | I133: 30598 | J133: 17747018.5 | K133: 2019-04-04 | L133: 114 | M133: INE209A01019
A134: ATLANTA | B134: EQ | C134: 19.35 | D134: 19.75 | E134: 19 | F134: 19.45 | G134: 19.7 | H134: 19.75 | I134: 28520 | J134: 550866.7 | K134: 2019-04-04 | L134: 333 | M134: INE285H01022
A135: ATLASCYCLE | B135: BE | C135: 76.05 | D135: 79 | E135: 75.25 | F135: 76.8 | G135: 77 | H135: 79.2 | I135: 3004 | J135: 228933.5 | K135: 2019-04-04 | L135: 63 | M135: INE446A01025
A136: ATUL | B136: EQ | C136: 3540.2 | D136: 3555 | E136: 3485 | F136: 3531.3 | G136: 3520 | H136: 3520.5 | I136: 8951 | J136: 31517689.85 | K136: 2019-04-04 | L136: 1313 | M136: INE100A01010
A137: ATULAUTO | B137: EQ | C137: 340 | D137: 346.15 | E137: 335 | F137: 339.5 | G137: 340 | H137: 338.75 | I137: 11338 | J137: 3873495.6 | K137: 2019-04-04 | L137: 655 | M137: INE951D01028
A138: AUBANK | B138: EQ | C138: 601 | D138: 607.4 | E138: 585.2 | F138: 601.2 | G138: 600 | H138: 598.85 | I138: 147728 | J138: 88321290.15 | K138: 2019-04-04 | L138: 11690 | M138: INE949L01017
A139: AURIONPRO | B139: EQ | C139: 139 | D139: 142.9 | E139: 138 | F139: 142.05 | G139: 142.6 | H139: 138.05 | I139: 37338 | J139: 5252256.85 | K139: 2019-04-04 | L139: 676 | M139: INE132H01018
A140: AUROPHARMA | B140: EQ | C140: 775 | D140: 789.5 | E140: 772.8 | F140: 784.35 | G140: 788.5 | H140: 772.65 | I140: 1277490 | J140: 994768166 | K140: 2019-04-04 | L140: 46449 | M140: INE406A01037
A141: AUSOMENT | B141: EQ | C141: 38.5 | D141: 38.5 | E141: 36.45 | F141: 37.05 | G141: 37.05 | H141: 37.45 | I141: 355 | J141: 13131.5 | K141: 2019-04-04 | L141: 8 | M141: INE218C01016
A142: AUTOAXLES | B142: EQ | C142: 1205.05 | D142: 1223 | E142: 1195 | F142: 1218.8 | G142: 1217 | H142: 1211.75 | I142: 6699 | J142: 8120702.2 | K142: 2019-04-04 | L142: 755 | M142: INE449A01011
A143: AUTOIND | B143: EQ | C143: 52.25 | D143: 52.65 | E143: 51.25 | F143: 51.65 | G143: 51.5 | H143: 52.25 | I143: 42155 | J143: 2175450.95 | K143: 2019-04-04 | L143: 166 | M143: INE718H01014
A144: AUTOLITIND | B144: EQ | C144: 38.2 | D144: 38.2 | E144: 36.5 | F144: 37.2 | G144: 37.3 | H144: 37.65 | I144: 1530 | J144: 56924.75 | K144: 2019-04-04 | L144: 40 | M144: INE448A01013
A145: AVADHSUGAR | B145: EQ | C145: 459 | D145: 459.85 | E145: 445 | F145: 451.55 | G145: 452 | H145: 458 | I145: 57531 | J145: 25896535.35 | K145: 2019-04-04 | L145: 1754 | M145: INE349W01017
A146: AVANTIFEED | B146: EQ | C146: 405.3 | D146: 409.9 | E146: 396.5 | F146: 399.65 | G146: 400 | H146: 403.95 | I146: 333043 | J146: 133683602.3 | K146: 2019-04-04 | L146: 11893 | M146: INE871C01038
A147: AVTNPL | B147: EQ | C147: 26.95 | D147: 27.3 | E147: 26.35 | F147: 26.5 | G147: 26.4 | H147: 26.65 | I147: 22259 | J147: 592819.95 | K147: 2019-04-04 | L147: 135 | M147: INE488D01021
A148: AXISBANK | B148: EQ | C148: 763 | D148: 771.9 | E148: 760 | F148: 762.15 | G148: 762.1 | H148: 761.5 | I148: 7009879 | J148: 5363913731 | K148: 2019-04-04 | L148: 176090 | M148: INE238A01034
A149: AXISCADES | B149: EQ | C149: 61.1 | D149: 63.4 | E149: 60.6 | F149: 61.9 | G149: 62.6 | H149: 61.5 | I149: 289920 | J149: 17771151.1 | K149: 2019-04-04 | L149: 662 | M149: INE555B01013
A150: AXISGOLD | B150: EQ | C150: 2786 | D150: 2799.95 | E150: 2760 | F150: 2782 | G150: 2782 | H150: 2773.35 | I150: 179 | J150: 497912.15 | K150: 2019-04-04 | L150: 44 | M150: INF846K01347
A151: AXISNIFTY | B151: EQ | C151: 1193 | D151: 1193 | E151: 1175.73 | F151: 1178.83 | G151: 1179.34 | H151: 1183.97 | I151: 44 | J151: 52149.94 | K151: 2019-04-04 | L151: 11 | M151: INF846K01ZL0
A152: AYMSYNTEX | B152: EQ | C152: 36.8 | D152: 36.9 | E152: 36.25 | F152: 36.9 | G152: 36.9 | H152: 36.05 | I152: 1430 | J152: 52516.4 | K152: 2019-04-04 | L152: 21 | M152: INE193B01039
A153: BAFNAPHARM | B153: EQ | C153: 10 | D153: 10.1 | E153: 9.6 | F153: 9.8 | G153: 9.8 | H153: 9.9 | I153: 10356 | J153: 102303.6 | K153: 2019-04-04 | L153: 97 | M153: INE878I01014
A154: BAGFILMS | B154: EQ | C154: 4.9 | D154: 5.05 | E154: 4.7 | F154: 4.95 | G154: 4.8 | H154: 4.9 | I154: 134855 | J154: 660766.75 | K154: 2019-04-04 | L154: 143 | M154: INE116D01028
A155: BAJAJ-AUTO | B155: EQ | C155: 2862 | D155: 2884.05 | E155: 2850 | F155: 2859.1 | G155: 2855 | H155: 2847.3 | I155: 662281 | J155: 1898357521 | K155: 2019-04-04 | L155: 36256 | M155: INE917I01010
A156: BAJAJCON | B156: EQ | C156: 317.95 | D156: 318.5 | E156: 313.4 | F156: 317.3 | G156: 317.95 | H156: 315.15 | I156: 57769 | J156: 18245836.85 | K156: 2019-04-04 | L156: 5752 | M156: INE933K01021
A157: BAJAJELEC | B157: EQ | C157: 551 | D157: 553.65 | E157: 535 | F157: 538.3 | G157: 541.25 | H157: 549.25 | I157: 182579 | J157: 98998212.8 | K157: 2019-04-04 | L157: 7162 | M157: INE193E01025
A158: BAJAJFINSV | B158: EQ | C158: 7411.55 | D158: 7422 | E158: 7282 | F158: 7318.55 | G158: 7313.4 | H158: 7401.55 | I158: 202173 | J158: 1486408371 | K158: 2019-04-04 | L158: 24715 | M158: INE918I01018
A159: BAJAJHIND | B159: EQ | C159: 8.2 | D159: 8.2 | E159: 8.05 | F159: 8.15 | G159: 8.15 | H159: 8.15 | I159: 756931 | J159: 6155589 | K159: 2019-04-04 | L159: 1134 | M159: INE306A01021
A160: BAJAJHLDNG | B160: EQ | C160: 3433 | D160: 3433 | E160: 3270.55 | F160: 3326.15 | G160: 3330 | H160: 3406.15 | I160: 47065 | J160: 157078031.6 | K160: 2019-04-04 | L160: 5170 | M160: INE118A01012
A161: BAJFINANCE | B161: EQ | C161: 3060 | D161: 3065 | E161: 3017.45 | F161: 3039.45 | G161: 3044 | H161: 3046 | I161: 772776 | J161: 2351883876 | K161: 2019-04-04 | L161: 44516 | M161: INE296A01024
A162: BALAJITELE | B162: EQ | C162: 84.5 | D162: 84.5 | E162: 81 | F162: 81.5 | G162: 81.75 | H162: 83.7 | I162: 84587 | J162: 6933419.45 | K162: 2019-04-04 | L162: 898 | M162: INE794B01026
A163: BALAMINES | B163: EQ | C163: 504 | D163: 504.5 | E163: 480.3 | F163: 488.9 | G163: 490 | H163: 500.7 | I163: 56846 | J163: 27834451.65 | K163: 2019-04-04 | L163: 2336 | M163: INE050E01027
A164: BALAXI | B164: BE | C164: 46.05 | D164: 46.05 | E164: 46.05 | F164: 46.05 | G164: 46.05 | H164: 43.9 | I164: 99 | J164: 4558.95 | K164: 2019-04-04 | L164: 1 | M164: INE618N01014
A165: BALKRISHNA | B165: EQ | C165: 38 | D165: 38.9 | E165: 38 | F165: 38.4 | G165: 38.4 | H165: 38.3 | I165: 1890 | J165: 72334.15 | K165: 2019-04-04 | L165: 43 | M165: INE875R01011
A166: BALKRISIND | B166: EQ | C166: 995.8 | D166: 1001 | E166: 981.8 | F166: 985.55 | G166: 986 | H166: 996.15 | I166: 211392 | J166: 209832773.1 | K166: 2019-04-04 | L166: 7669 | M166: INE787D01026
A167: BALLARPUR | B167: EQ | C167: 3.5 | D167: 3.5 | E167: 3.3 | F167: 3.5 | G167: 3.5 | H167: 3.35 | I167: 6484507 | J167: 22521656.6 | K167: 2019-04-04 | L167: 1576 | M167: INE294A01037
A168: BALMLAWRIE | B168: EQ | C168: 187 | D168: 187 | E168: 184.9 | F168: 185.65 | G168: 185.3 | H168: 186.75 | I168: 16765 | J168: 3117741.55 | K168: 2019-04-04 | L168: 750 | M168: INE164A01016
A169: BALPHARMA | B169: EQ | C169: 70.2 | D169: 70.25 | E169: 69.1 | F169: 69.25 | G169: 69.2 | H169: 69.2 | I169: 3807 | J169: 264597.7 | K169: 2019-04-04 | L169: 74 | M169: INE083D01012
A170: BALRAMCHIN | B170: EQ | C170: 139 | D170: 139.45 | E170: 135.6 | F170: 137.5 | G170: 137.85 | H170: 138.7 | I170: 1145831 | J170: 157291037.8 | K170: 2019-04-04 | L170: 8640 | M170: INE119A01028
A171: BANARBEADS | B171: EQ | C171: 46.05 | D171: 48 | E171: 44 | F171: 45.6 | G171: 45.75 | H171: 46.25 | I171: 2454 | J171: 112727.7 | K171: 2019-04-04 | L171: 75 | M171: INE655B01011
A172: BANARISUG | B172: EQ | C172: 1519.05 | D172: 1519.05 | E172: 1472 | F172: 1491.4 | G172: 1504 | H172: 1512.95 | I172: 426 | J172: 632873.5 | K172: 2019-04-04 | L172: 123 | M172: INE459A01010
A173: BANCOINDIA | B173: EQ | C173: 156 | D173: 156 | E173: 152.8 | F173: 153.5 | G173: 153.8 | H173: 155.85 | I173: 22219 | J173: 3417334.1 | K173: 2019-04-04 | L173: 594 | M173: INE213C01025
A174: BANDHANBNK | B174: EQ | C174: 551 | D174: 557.7 | E174: 541.1 | F174: 545.8 | G174: 544.9 | H174: 550.2 | I174: 757129 | J174: 416324493.9 | K174: 2019-04-04 | L174: 24113 | M174: INE545U01014
A175: BANG | B175: EQ | C175: 39.05 | D175: 39.85 | E175: 38.05 | F175: 39.35 | G175: 38.65 | H175: 39.6 | I175: 10681 | J175: 420255.55 | K175: 2019-04-04 | L175: 282 | M175: INE863I01016
A176: BANKBARODA | B176: EQ | C176: 133.2 | D176: 134 | E176: 130.2 | F176: 131.2 | G176: 131.15 | H176: 132.05 | I176: 25022512 | J176: 3300019383 | K176: 2019-04-04 | L176: 88911 | M176: INE028A01039
A177: BANKBEES | B177: EQ | C177: 3080 | D177: 3080 | E177: 3038.05 | F177: 3045.01 | G177: 3040 | H177: 3068.86 | I177: 49120 | J177: 150379570.8 | K177: 2019-04-04 | L177: 473 | M177: INF732E01078
A178: BANKINDIA | B178: EQ | C178: 101.65 | D178: 104.6 | E178: 100.5 | F178: 101.1 | G178: 101.25 | H178: 101.7 | I178: 11702884 | J178: 1194861768 | K178: 2019-04-04 | L178: 32017 | M178: INE084A01016
A179: BANSWRAS | B179: EQ | C179: 68 | D179: 70.35 | E179: 67.2 | F179: 69.75 | G179: 69.8 | H179: 69.1 | I179: 1474 | J179: 102320.15 | K179: 2019-04-04 | L179: 31 | M179: INE629D01012
A180: BARTRONICS | B180: EQ | C180: 6.6 | D180: 6.6 | E180: 6.45 | F180: 6.5 | G180: 6.55 | H180: 6.6 | I180: 8041 | J180: 52247.15 | K180: 2019-04-04 | L180: 59 | M180: INE855F01034
A181: BASF | B181: EQ | C181: 1410 | D181: 1429.65 | E181: 1375 | F181: 1413.6 | G181: 1408.5 | H181: 1408.6 | I181: 11647 | J181: 16320363.75 | K181: 2019-04-04 | L181: 1433 | M181: INE373A01013
A182: BASML | B182: EQ | C182: 188.85 | D182: 188.85 | E182: 188 | F182: 188 | G182: 188 | H182: 187.3 | I182: 274 | J182: 51525.65 | K182: 2019-04-04 | L182: 10 | M182: INE186H01014
A183: BATAINDIA | B183: EQ | C183: 1396.3 | D183: 1405.5 | E183: 1385.1 | F183: 1401.3 | G183: 1405 | H183: 1397.35 | I183: 454117 | J183: 633061676.5 | K183: 2019-04-04 | L183: 34254 | M183: INE176A01028
A184: BAYERCROP | B184: EQ | C184: 4394 | D184: 4394 | E184: 4284 | F184: 4310.35 | G184: 4302 | H184: 4368.25 | I184: 7043 | J184: 30359294.9 | K184: 2019-04-04 | L184: 2429 | M184: INE462A01022
A185: BBL | B185: EQ | C185: 1122.2 | D185: 1128 | E185: 1094 | F185: 1099.95 | G185: 1105 | H185: 1118.45 | I185: 2003 | J185: 2219394.95 | K185: 2019-04-04 | L185: 394 | M185: INE464A01028
A186: BBTC | B186: EQ | C186: 1284 | D186: 1301.85 | E186: 1273 | F186: 1293.05 | G186: 1290 | H186: 1278.65 | I186: 47214 | J186: 60786962.65 | K186: 2019-04-04 | L186: 3494 | M186: INE050A01025
A187: BCG | B187: BE | C187: 3.65 | D187: 3.65 | E187: 3.65 | F187: 3.65 | G187: 3.65 | H187: 3.5 | I187: 86441 | J187: 315509.65 | K187: 2019-04-04 | L187: 60 | M187: INE425B01027
A188: BDL | B188: EQ | C188: 283.5 | D188: 286.1 | E188: 282 | F188: 282.55 | G188: 282 | H188: 283.1 | I188: 13137 | J188: 3717987.8 | K188: 2019-04-04 | L188: 807 | M188: INE171Z01018
A189: BEARDSELL | B189: EQ | C189: 15.45 | D189: 15.7 | E189: 14.65 | F189: 15.05 | G189: 15.05 | H189: 14.9 | I189: 5722 | J189: 87207.15 | K189: 2019-04-04 | L189: 35 | M189: INE520H01022
A190: BEDMUTHA | B190: EQ | C190: 19.15 | D190: 19.15 | E190: 17.4 | F190: 17.5 | G190: 17.4 | H190: 18.15 | I190: 1976 | J190: 34791.35 | K190: 2019-04-04 | L190: 25 | M190: INE844K01012
A191: BEL | B191: EQ | C191: 97.3 | D191: 99 | E191: 96.1 | F191: 97.35 | G191: 97.75 | H191: 97.25 | I191: 12449954 | J191: 1219590191 | K191: 2019-04-04 | L191: 46484 | M191: INE263A01024
A192: BEML | B192: EQ | C192: 1004.9 | D192: 1011.75 | E192: 980 | F192: 982.8 | G192: 985 | H192: 1002.9 | I192: 1342349 | J192: 1336448099 | K192: 2019-04-04 | L192: 27108 | M192: INE258A01016
A193: BEPL | B193: EQ | C193: 71.15 | D193: 71.65 | E193: 69.65 | F193: 70.25 | G193: 70.45 | H193: 70.55 | I193: 382534 | J193: 26941639 | K193: 2019-04-04 | L193: 3018 | M193: INE922A01025
A194: BERGEPAINT | B194: EQ | C194: 330 | D194: 332.9 | E194: 327.75 | F194: 331.75 | G194: 331.5 | H194: 330.45 | I194: 280347 | J194: 92839046.25 | K194: 2019-04-04 | L194: 5919 | M194: INE463A01038
A195: BFINVEST | B195: EQ | C195: 255.9 | D195: 258.3 | E195: 253.2 | F195: 255.9 | G195: 256.25 | H195: 254.85 | I195: 31988 | J195: 8177862.95 | K195: 2019-04-04 | L195: 893 | M195: INE878K01010
A196: BFUTILITIE | B196: EQ | C196: 199.7 | D196: 202.9 | E196: 193.05 | F196: 195.05 | G196: 195.95 | H196: 198.65 | I196: 507027 | J196: 100069561.5 | K196: 2019-04-04 | L196: 8381 | M196: INE243D01012
A197: BGLOBAL | B197: BE | C197: 2.4 | D197: 2.45 | E197: 2.25 | F197: 2.35 | G197: 2.35 | H197: 2.35 | I197: 30520 | J197: 70866.8 | K197: 2019-04-04 | L197: 20 | M197: INE224M01013
A198: BGRENERGY | B198: EQ | C198: 63 | D198: 63 | E198: 60.1 | F198: 60.95 | G198: 60.95 | H198: 62.25 | I198: 118935 | J198: 7313057.05 | K198: 2019-04-04 | L198: 1504 | M198: INE661I01014
A199: BHAGERIA | B199: EQ | C199: 284 | D199: 285 | E199: 278.3 | F199: 282.95 | G199: 285 | H199: 281.8 | I199: 4595 | J199: 1296800.9 | K199: 2019-04-04 | L199: 283 | M199: INE354C01027
A200: BHAGYANGR | B200: EQ | C200: 32.7 | D200: 32.7 | E200: 29.4 | F200: 30.9 | G200: 31 | H200: 32.2 | I200: 7678 | J200: 237733.7 | K200: 2019-04-04 | L200: 93 | M200: INE458B01036
... 1441 more rows

Sheet Sheet1 (hidden)

Sheet Sheet3 (hidden)

Sheet Sheet4 (hidden)
